Workbook

Sheet Report
A1: WK Code | B1: Type | C1: EAN number | D1: Base unit of measure | E1: Description | F1: Description 2 | G1: Description 3 | H1: Product type | I1: Product sub type | J1: Model group | K1: Model Subgroup | L1: Door Model | M1: Type | N1: Subtype | O1: Replenishment | P1: Type of wood | Q1: FSC | R1: Doorblade type | S1: Finish | T1: Height | U1: Width | V1: Thickness | W1: Design | X1: XL | Y1: Rebate | Z1: Fire resistance | AA1: Gross price | AB1: Gross price incl VAT | AC1: Nett price | AE1: Brandline | AF1: Discount group
A2: 8718528022504 | B2: Artikel | C2: 8718528022504 | D2: STUKS | E2: WK042, 780x2015x38, bwh 244 | F2: PEFC-CS PHW | G2: V:RAL9010, vent.sl., isogl., solid/FJ | H2: DEUR | I2: BALKON | J2: BALKON | K2: BS | L2: 042 | O2: Inventory | P2: PHW | Q2: FALSE | S2: RAL 9010 | T2: 2015 | U2: 780 | V2: 38 | X2: FALSE | Y2: FALSE | Z2: FALSE | AA2: 403.31 | AB2: 488 | AC2: =ROUND(AA2*(1-VLOOKUP(AF2,Discounts!C:E,3,0)),2) -> 403.31 | AE2: 18030 | AF2: E055
A3: 8718528022528 | B3: Artikel | C3: 8718528022528 | D3: STUKS | E3: WK042, 780x2115x38, bwh 244 | F3: PEFC-CS PHW | G3: V:RAL9010, vent.sl., isogl., solid/FJ | H3: DEUR | I3: BALKON | J3: BALKON | K3: BS | L3: 042 | O3: Inventory | P3: PHW | Q3: FALSE | S3: RAL 9010 | T3: 2115 | U3: 780 | V3: 38 | X3: FALSE | Y3: FALSE | Z3: FALSE | AA3: 403.31 | AB3: 488 | AC3: =ROUND(AA3*(1-VLOOKUP(AF3,Discounts!C:E,3,0)),2) -> 403.31 | AE3: 18030 | AF3: E055
A4: 8718528022542 | B4: Artikel | C4: 8718528022542 | D4: STUKS | E4: WK042, 830x2015x38, bwh 244 | F4: PEFC-CS PHW | G4: V:RAL9010, vent.sl., isogl., solid/FJ | H4: DEUR | I4: BALKON | J4: BALKON | K4: BS | L4: 042 | O4: Inventory | P4: PHW | Q4: FALSE | S4: RAL 9010 | T4: 2015 | U4: 830 | V4: 38 | X4: FALSE | Y4: FALSE | Z4: FALSE | AA4: 403.31 | AB4: 488 | AC4: =ROUND(AA4*(1-VLOOKUP(AF4,Discounts!C:E,3,0)),2) -> 403.31 | AE4: 18030 | AF4: E055
A5: 8718528022566 | B5: Artikel | C5: 8718528022566 | D5: STUKS | E5: WK042, 830x2115x38, bwh 244 | F5: PEFC-CS PHW | G5: V:RAL9010, vent.sl., isogl., solid/FJ | H5: DEUR | I5: BALKON | J5: BALKON | K5: BS | L5: 042 | O5: Inventory | P5: PHW | Q5: FALSE | S5: RAL 9010 | T5: 2115 | U5: 830 | V5: 38 | X5: FALSE | Y5: FALSE | Z5: FALSE | AA5: 403.31 | AB5: 488 | AC5: =ROUND(AA5*(1-VLOOKUP(AF5,Discounts!C:E,3,0)),2) -> 403.31 | AE5: 18030 | AF5: E055
A6: 8718528022665 | B6: Artikel | C6: 8718528022665 | D6: STUKS | E6: WK042, 930x2015x38, bwh 244 | F6: PEFC-CS PHW | G6: V:RAL9010, vent.sl., isogl., solid/FJ | H6: DEUR | I6: BALKON | J6: BALKON | K6: BS | L6: 042 | O6: Inventory | P6: PHW | Q6: FALSE | S6: RAL 9010 | T6: 2015 | U6: 930 | V6: 38 | X6: FALSE | Y6: FALSE | Z6: FALSE | AA6: 403.31 | AB6: 488 | AC6: =ROUND(AA6*(1-VLOOKUP(AF6,Discounts!C:E,3,0)),2) -> 403.31 | AE6: 18030 | AF6: E055
A7: 8718528022726 | B7: Artikel | C7: 8718528022726 | D7: STUKS | E7: WK043, 780x2015x38, bwh 349 | F7: PEFC-CS PHW | G7: V:RAL9010, vent.sl., isogl., solid/FJ | H7: DEUR | I7: BALKON | J7: BALKON | K7: BS | L7: 043 | O7: Inventory | P7: PHW | Q7: FALSE | S7: RAL 9010 | T7: 2015 | U7: 780 | V7: 38 | X7: FALSE | Y7: FALSE | Z7: FALSE | AA7: 424.8 | AB7: 514 | AC7: =ROUND(AA7*(1-VLOOKUP(AF7,Discounts!C:E,3,0)),2) -> 424.8 | AE7: 18040 | AF7: E055
A8: 8718528022757 | B8: Artikel | C8: 8718528022757 | D8: STUKS | E8: WK043, 780x2115x38, bwh 349 | F8: PEFC-CS PHW | G8: V:RAL9010, vent.sl., isogl., solid/FJ | H8: DEUR | I8: BALKON | J8: BALKON | K8: BS | L8: 043 | O8: Inventory | P8: PHW | Q8: FALSE | S8: RAL 9010 | T8: 2115 | U8: 780 | V8: 38 | X8: FALSE | Y8: FALSE | Z8: FALSE | AA8: 424.8 | AB8: 514 | AC8: =ROUND(AA8*(1-VLOOKUP(AF8,Discounts!C:E,3,0)),2) -> 424.8 | AE8: 18040 | AF8: E055
A9: 8718528022788 | B9: Artikel | C9: 8718528022788 | D9: STUKS | E9: WK043, 830x2015x38, bwh 349 | F9: PEFC-CS PHW | G9: V:RAL9010, vent.sl., isogl., solid/FJ | H9: DEUR | I9: BALKON | J9: BALKON | K9: BS | L9: 043 | O9: Inventory | P9: PHW | Q9: FALSE | S9: RAL 9010 | T9: 2015 | U9: 830 | V9: 38 | X9: FALSE | Y9: FALSE | Z9: FALSE | AA9: 424.8 | AB9: 514 | AC9: =ROUND(AA9*(1-VLOOKUP(AF9,Discounts!C:E,3,0)),2) -> 424.8 | AE9: 18040 | AF9: E055
A10: 8718528022818 | B10: Artikel | C10: 8718528022818 | D10: STUKS | E10: WK043, 830x2115x38, bwh 349 | F10: PEFC-CS PHW | G10: V:RAL9010, vent.sl., isogl., solid/FJ | H10: DEUR | I10: BALKON | J10: BALKON | K10: BS | L10: 043 | O10: Inventory | P10: PHW | Q10: FALSE | S10: RAL 9010 | T10: 2115 | U10: 830 | V10: 38 | X10: FALSE | Y10: FALSE | Z10: FALSE | AA10: 424.8 | AB10: 514 | AC10: =ROUND(AA10*(1-VLOOKUP(AF10,Discounts!C:E,3,0)),2) -> 424.8 | AE10: 18040 | AF10: E055
A11: 8718528022900 | B11: Artikel | C11: 8718528022900 | D11: STUKS | E11: WK043, 880x2115x38, bwh 349 | F11: PEFC-CS PHW | G11: V:RAL9010, vent.sl., isogl., solid/FJ | H11: DEUR | I11: BALKON | J11: BALKON | K11: BS | L11: 043 | O11: Inventory | P11: PHW | Q11: FALSE | S11: RAL 9010 | T11: 2115 | U11: 880 | V11: 38 | X11: FALSE | Y11: FALSE | Z11: FALSE | AA11: 424.8 | AB11: 514 | AC11: =ROUND(AA11*(1-VLOOKUP(AF11,Discounts!C:E,3,0)),2) -> 424.8 | AE11: 18040 | AF11: E055
A12: 8718528022993 | B12: Artikel | C12: 8718528022993 | D12: STUKS | E12: WK043, 930x2115x38, bwh 349 | F12: PEFC-CS PHW | G12: V:RAL9010, vent.sl., isogl., solid/FJ | H12: DEUR | I12: BALKON | J12: BALKON | K12: BS | L12: 043 | O12: Inventory | P12: PHW | Q12: FALSE | S12: RAL 9010 | T12: 2115 | U12: 930 | V12: 38 | X12: FALSE | Y12: FALSE | Z12: FALSE | AA12: 424.8 | AB12: 514 | AC12: =ROUND(AA12*(1-VLOOKUP(AF12,Discounts!C:E,3,0)),2) -> 424.8 | AE12: 18040 | AF12: E055
A13: 8718528023853 | B13: Artikel | C13: 8718528023853 | D13: STUKS | E13: WK043, 730x2115x38, bwh 349 | F13: PEFC-CS PHW | G13: V:RAL9010, vent.sl., isogl., solid/FJ | H13: DEUR | I13: BALKON | J13: BALKON | K13: BS | L13: 043 | O13: Inventory | P13: PHW | Q13: FALSE | S13: RAL 9010 | T13: 2115 | U13: 730 | V13: 38 | X13: FALSE | Y13: FALSE | Z13: FALSE | AA13: 424.8 | AB13: 514 | AC13: =ROUND(AA13*(1-VLOOKUP(AF13,Discounts!C:E,3,0)),2) -> 424.8 | AE13: 18040 | AF13: E055
A14: 8718528219904 | B14: Artikel | C14: 8718528219904 | D14: STUKS | E14: WK043, 880x2115x38, bwh 349 | F14: PEFC-CS PHW, NON-KOMO | G14: V:RAL9010, vent.sl., isogl., solid/FJ | H14: DEUR | I14: BALKON | J14: BALKON | K14: BS | L14: 043 | O14: Inventory | P14: PHW | Q14: FALSE | S14: RAL 9010 | T14: 2115 | U14: 880 | V14: 38 | X14: FALSE | Y14: FALSE | Z14: FALSE | AA14: 424.8 | AB14: 514 | AC14: =ROUND(AA14*(1-VLOOKUP(AF14,Discounts!C:E,3,0)),2) -> 424.8 | AE14: 18040 | AF14: E055
A15: 8718528220269 | B15: Artikel | C15: 8718528220269 | D15: STUKS | E15: WK043, 880x2015x38, bwh 349 | F15: PEFC-CS PHW, NON-KOMO | G15: V:RAL9010, vent.sl., isogl., solid/FJ | H15: DEUR | I15: BALKON | J15: BALKON | K15: BS | L15: 043 | O15: Inventory | P15: PHW | Q15: FALSE | S15: RAL 9010 | T15: 2015 | U15: 880 | V15: 38 | X15: FALSE | Y15: FALSE | Z15: FALSE | AA15: 424.8 | AB15: 514 | AC15: =ROUND(AA15*(1-VLOOKUP(AF15,Discounts!C:E,3,0)),2) -> 424.8 | AE15: 18040 | AF15: E055
A16: 8718528023877 | B16: Artikel | C16: 8718528023877 | D16: STUKS | E16: WK044, 780x2115x38, bwh 454 | F16: PEFC-CS PHW | G16: V:RAL9010, vent.sl., isogl., solid/FJ | H16: DEUR | I16: BALKON | J16: BALKON | K16: BS | L16: 044 | O16: Inventory | P16: PHW | Q16: FALSE | S16: RAL 9010 | T16: 2115 | U16: 780 | V16: 38 | X16: FALSE | Y16: FALSE | Z16: FALSE | AA16: 445.46 | AB16: 539 | AC16: =ROUND(AA16*(1-VLOOKUP(AF16,Discounts!C:E,3,0)),2) -> 445.46 | AE16: 18050 | AF16: E055
A17: 8718528023884 | B17: Artikel | C17: 8718528023884 | D17: STUKS | E17: WK044, 830x2015x38, bwh 454 | F17: PEFC-CS PHW | G17: V:RAL9010, vent.sl., isogl., solid/FJ | H17: DEUR | I17: BALKON | J17: BALKON | K17: BS | L17: 044 | O17: Inventory | P17: PHW | Q17: FALSE | S17: RAL 9010 | T17: 2015 | U17: 830 | V17: 38 | X17: FALSE | Y17: FALSE | Z17: FALSE | AA17: 445.46 | AB17: 539 | AC17: =ROUND(AA17*(1-VLOOKUP(AF17,Discounts!C:E,3,0)),2) -> 445.46 | AE17: 18050 | AF17: E055
A18: 8718528023891 | B18: Artikel | C18: 8718528023891 | D18: STUKS | E18: WK044, 830x2115x38, bwh 454 | F18: PEFC-CS PHW | G18: V:RAL9010, vent.sl., isogl., solid/FJ | H18: DEUR | I18: BALKON | J18: BALKON | K18: BS | L18: 044 | O18: Inventory | P18: PHW | Q18: FALSE | S18: RAL 9010 | T18: 2115 | U18: 830 | V18: 38 | X18: FALSE | Y18: FALSE | Z18: FALSE | AA18: 445.46 | AB18: 539 | AC18: =ROUND(AA18*(1-VLOOKUP(AF18,Discounts!C:E,3,0)),2) -> 445.46 | AE18: 18050 | AF18: E055
A19: 8718528023907 | B19: Artikel | C19: 8718528023907 | D19: STUKS | E19: WK044, 880x2015x38, bwh 454 | F19: PEFC-CS PHW | G19: V:RAL9010, vent.sl., isogl., solid/FJ | H19: DEUR | I19: BALKON | J19: BALKON | K19: BS | L19: 044 | O19: Inventory | P19: PHW | Q19: FALSE | S19: RAL 9010 | T19: 2015 | U19: 880 | V19: 38 | X19: FALSE | Y19: FALSE | Z19: FALSE | AA19: 445.46 | AB19: 539 | AC19: =ROUND(AA19*(1-VLOOKUP(AF19,Discounts!C:E,3,0)),2) -> 445.46 | AE19: 18050 | AF19: E055
A20: 8718528220450 | B20: Artikel | C20: 8718528220450 | D20: STUKS | E20: WK044, 780x2115x38, bwh 454 | F20: PEFC-CS PHW, NON-KOMO | G20: V:RAL9010, vent.sl., isogl., solid/FJ | H20: DEUR | I20: BALKON | J20: BALKON | K20: BS | L20: 044 | O20: Inventory | P20: PHW | Q20: FALSE | S20: RAL 9010 | T20: 2115 | U20: 780 | V20: 38 | X20: FALSE | Y20: FALSE | Z20: FALSE | AA20: 445.46 | AB20: 539 | AC20: =ROUND(AA20*(1-VLOOKUP(AF20,Discounts!C:E,3,0)),2) -> 445.46 | AE20: 18050 | AF20: E055
A21: 8718528023051 | B21: Artikel | C21: 8718528023051 | D21: STUKS | E21: WK046, 780x2015x38, bwh 664 | F21: PEFC-CS PHW | G21: V:RAL9010, vent.sl., isogl., solid/FJ | H21: DEUR | I21: BALKON | J21: BALKON | K21: BS | L21: 046 | O21: Inventory | P21: PHW | Q21: FALSE | S21: RAL 9010 | T21: 2015 | U21: 780 | V21: 38 | X21: FALSE | Y21: FALSE | Z21: FALSE | AA21: 488.43 | AB21: 591 | AC21: =ROUND(AA21*(1-VLOOKUP(AF21,Discounts!C:E,3,0)),2) -> 488.43 | AE21: 18060 | AF21: E055
A22: 8718528023112 | B22: Artikel | C22: 8718528023112 | D22: STUKS | E22: WK046, 830x2015x38, bwh 664 | F22: PEFC-CS PHW | G22: V:RAL9010, vent.sl., isogl., solid/FJ | H22: DEUR | I22: BALKON | J22: BALKON | K22: BS | L22: 046 | O22: Inventory | P22: PHW | Q22: FALSE | S22: RAL 9010 | T22: 2015 | U22: 830 | V22: 38 | X22: FALSE | Y22: FALSE | Z22: FALSE | AA22: 488.43 | AB22: 591 | AC22: =ROUND(AA22*(1-VLOOKUP(AF22,Discounts!C:E,3,0)),2) -> 488.43 | AE22: 18060 | AF22: E055
A23: 8718528023143 | B23: Artikel | C23: 8718528023143 | D23: STUKS | E23: WK046, 830x2115x38, bwh 664 | F23: PEFC-CS PHW | G23: V:RAL9010, vent.sl., isogl., solid/FJ | H23: DEUR | I23: BALKON | J23: BALKON | K23: BS | L23: 046 | O23: Inventory | P23: PHW | Q23: FALSE | S23: RAL 9010 | T23: 2115 | U23: 830 | V23: 38 | X23: FALSE | Y23: FALSE | Z23: FALSE | AA23: 488.43 | AB23: 591 | AC23: =ROUND(AA23*(1-VLOOKUP(AF23,Discounts!C:E,3,0)),2) -> 488.43 | AE23: 18060 | AF23: E055
A24: 8718528023235 | B24: Artikel | C24: 8718528023235 | D24: STUKS | E24: WK046, 930x2015x38, bwh 664 | F24: PEFC-CS PHW | G24: V:RAL9010, vent.sl., isogl., solid/FJ | H24: DEUR | I24: BALKON | J24: BALKON | K24: BS | L24: 046 | O24: Inventory | P24: PHW | Q24: FALSE | S24: RAL 9010 | T24: 2015 | U24: 930 | V24: 38 | X24: FALSE | Y24: FALSE | Z24: FALSE | AA24: 488.43 | AB24: 591 | AC24: =ROUND(AA24*(1-VLOOKUP(AF24,Discounts!C:E,3,0)),2) -> 488.43 | AE24: 18060 | AF24: E055
A25: 8718528023266 | B25: Artikel | C25: 8718528023266 | D25: STUKS | E25: WK046, 930x2115x38, bwh 664 | F25: PEFC-CS PHW | G25: V:RAL9010, vent.sl., isogl., solid/FJ | H25: DEUR | I25: BALKON | J25: BALKON | K25: BS | L25: 046 | O25: Inventory | P25: PHW | Q25: FALSE | S25: RAL 9010 | T25: 2115 | U25: 930 | V25: 38 | X25: FALSE | Y25: FALSE | Z25: FALSE | AA25: 488.43 | AB25: 591 | AC25: =ROUND(AA25*(1-VLOOKUP(AF25,Discounts!C:E,3,0)),2) -> 488.43 | AE25: 18060 | AF25: E055
A26: 8718528023297 | B26: Artikel | C26: 8718528023297 | D26: STUKS | E26: WK048, 780x2015x38, bwh 874 | F26: PEFC-CS PHW | G26: V:RAL9010, vent.sl., isogl., solid/FJ | H26: DEUR | I26: BALKON | J26: BALKON | K26: BS | L26: 048 | O26: Inventory | P26: PHW | Q26: FALSE | S26: RAL 9010 | T26: 2015 | U26: 780 | V26: 38 | X26: FALSE | Y26: FALSE | Z26: FALSE | AA26: 531.41 | AB26: 643 | AC26: =ROUND(AA26*(1-VLOOKUP(AF26,Discounts!C:E,3,0)),2) -> 531.41 | AE26: 18070 | AF26: E055
A27: 8718528023358 | B27: Artikel | C27: 8718528023358 | D27: STUKS | E27: WK048, 830x2015x38, bwh 874 | F27: PEFC-CS PHW | G27: V:RAL9010, vent.sl., isogl., solid/FJ | H27: DEUR | I27: BALKON | J27: BALKON | K27: BS | L27: 048 | O27: Inventory | P27: PHW | Q27: FALSE | S27: RAL 9010 | T27: 2015 | U27: 830 | V27: 38 | X27: FALSE | Y27: FALSE | Z27: FALSE | AA27: 531.41 | AB27: 643 | AC27: =ROUND(AA27*(1-VLOOKUP(AF27,Discounts!C:E,3,0)),2) -> 531.41 | AE27: 18070 | AF27: E055
A28: 8718528023440 | B28: Artikel | C28: 8718528023440 | D28: STUKS | E28: WK048, 880x2115x38, bwh 874 | F28: PEFC-CS PHW | G28: V:RAL9010, vent.sl., isogl., solid/FJ | H28: DEUR | I28: BALKON | J28: BALKON | K28: BS | L28: 048 | O28: Inventory | P28: PHW | Q28: FALSE | S28: RAL 9010 | T28: 2115 | U28: 880 | V28: 38 | X28: FALSE | Y28: FALSE | Z28: FALSE | AA28: 531.41 | AB28: 643 | AC28: =ROUND(AA28*(1-VLOOKUP(AF28,Discounts!C:E,3,0)),2) -> 531.41 | AE28: 18070 | AF28: E055
A29: 8718528023495 | B29: Artikel | C29: 8718528023495 | D29: STUKS | E29: WK048, 930x2015x38, bwh 874 | F29: PEFC-CS PHW | G29: V:RAL9010, vent.sl., isogl., solid/FJ | H29: DEUR | I29: BALKON | J29: BALKON | K29: BS | L29: 048 | O29: Inventory | P29: PHW | Q29: FALSE | S29: RAL 9010 | T29: 2015 | U29: 930 | V29: 38 | X29: FALSE | Y29: FALSE | Z29: FALSE | AA29: 531.41 | AB29: 643 | AC29: =ROUND(AA29*(1-VLOOKUP(AF29,Discounts!C:E,3,0)),2) -> 531.41 | AE29: 18070 | AF29: E055
A30: 8718528023525 | B30: Artikel | C30: 8718528023525 | D30: STUKS | E30: WK048, 930x2115x38, bwh 874 | F30: PEFC-CS PHW | G30: V:RAL9010, vent.sl., isogl., solid/FJ | H30: DEUR | I30: BALKON | J30: BALKON | K30: BS | L30: 048 | O30: Inventory | P30: PHW | Q30: FALSE | S30: RAL 9010 | T30: 2115 | U30: 930 | V30: 38 | X30: FALSE | Y30: FALSE | Z30: FALSE | AA30: 531.41 | AB30: 643 | AC30: =ROUND(AA30*(1-VLOOKUP(AF30,Discounts!C:E,3,0)),2) -> 531.41 | AE30: 18070 | AF30: E055
A31: 8718528025284 | B31: Artikel | C31: 8718528025284 | D31: STUKS | E31: WK042, 830x2015x38, bwh 244 | F31: FSC® cert. Premium Hardwood | G31: V:RAL9010, vent.sl., isogl., FSC Mix 70% CU-COC 800339 | H31: DEUR | I31: BALKON | J31: BALKON | K31: BS | L31: 042 | O31: Inventory | P31: FSCPHW | Q31: TRUE | S31: RAL 9010 | T31: 2015 | U31: 830 | V31: 38 | X31: FALSE | Y31: FALSE | Z31: FALSE | AA31: 452.89 | AB31: 548 | AC31: =ROUND(AA31*(1-VLOOKUP(AF31,Discounts!C:E,3,0)),2) -> 452.89 | AE31: 18080 | AF31: E075
A32: 8718528025291 | B32: Artikel | C32: 8718528025291 | D32: STUKS | E32: WK042, 830x2115x38, bwh 244 | F32: FSC® cert. Premium Hardwood | G32: V:RAL9010, vent.sl., isogl., FSC Mix 70% CU-COC 800339 | H32: DEUR | I32: BALKON | J32: BALKON | K32: BS | L32: 042 | O32: Inventory | P32: FSCPHW | Q32: TRUE | S32: RAL 9010 | T32: 2115 | U32: 830 | V32: 38 | X32: FALSE | Y32: FALSE | Z32: FALSE | AA32: 452.89 | AB32: 548 | AC32: =ROUND(AA32*(1-VLOOKUP(AF32,Discounts!C:E,3,0)),2) -> 452.89 | AE32: 18080 | AF32: E075
A33: 8718528025307 | B33: Artikel | C33: 8718528025307 | D33: STUKS | E33: WK042, 880x2015x38, bwh 244 | F33: FSC® cert. Premium Hardwood | G33: V:RAL9010, vent.sl., isogl., FSC Mix 70% CU-COC 800339 | H33: DEUR | I33: BALKON | J33: BALKON | K33: BS | L33: 042 | O33: Inventory | P33: FSCPHW | Q33: TRUE | S33: RAL 9010 | T33: 2015 | U33: 880 | V33: 38 | X33: FALSE | Y33: FALSE | Z33: FALSE | AA33: 452.89 | AB33: 548 | AC33: =ROUND(AA33*(1-VLOOKUP(AF33,Discounts!C:E,3,0)),2) -> 452.89 | AE33: 18080 | AF33: E075
A34: 8718528025314 | B34: Artikel | C34: 8718528025314 | D34: STUKS | E34: WK042, 880x2115x38, bwh 244 | F34: FSC® cert. Premium Hardwood | G34: V:RAL9010, vent.sl., isogl., FSC Mix 70% CU-COC 800339 | H34: DEUR | I34: BALKON | J34: BALKON | K34: BS | L34: 042 | O34: Inventory | P34: FSCPHW | Q34: TRUE | S34: RAL 9010 | T34: 2115 | U34: 880 | V34: 38 | X34: FALSE | Y34: FALSE | Z34: FALSE | AA34: 452.89 | AB34: 548 | AC34: =ROUND(AA34*(1-VLOOKUP(AF34,Discounts!C:E,3,0)),2) -> 452.89 | AE34: 18080 | AF34: E075
A35: 8718528025321 | B35: Artikel | C35: 8718528025321 | D35: STUKS | E35: WK042, 930x2015x38, bwh 244 | F35: FSC® cert. Premium Hardwood | G35: V:RAL9010, vent.sl., isogl., FSC Mix 70% CU-COC 800339 | H35: DEUR | I35: BALKON | J35: BALKON | K35: BS | L35: 042 | O35: Inventory | P35: FSCPHW | Q35: TRUE | S35: RAL 9010 | T35: 2015 | U35: 930 | V35: 38 | X35: FALSE | Y35: FALSE | Z35: FALSE | AA35: 452.89 | AB35: 548 | AC35: =ROUND(AA35*(1-VLOOKUP(AF35,Discounts!C:E,3,0)),2) -> 452.89 | AE35: 18080 | AF35: E075
A36: 8718528025338 | B36: Artikel | C36: 8718528025338 | D36: STUKS | E36: WK042, 930x2115x38, bwh 244 | F36: FSC® cert. Premium Hardwood | G36: V:RAL9010, vent.sl., isogl., FSC Mix 70% CU-COC 800339 | H36: DEUR | I36: BALKON | J36: BALKON | K36: BS | L36: 042 | O36: Inventory | P36: FSCPHW | Q36: TRUE | S36: RAL 9010 | T36: 2115 | U36: 930 | V36: 38 | X36: FALSE | Y36: FALSE | Z36: FALSE | AA36: 452.89 | AB36: 548 | AC36: =ROUND(AA36*(1-VLOOKUP(AF36,Discounts!C:E,3,0)),2) -> 452.89 | AE36: 18080 | AF36: E075
A37: 8718528345207 | B37: Artikel | C37: 8718528345207 | D37: STUKS | E37: WK042, 780x2015x38, bwh 244 | F37: FSC® cert. PHW KOMO | G37: V:RAL9010, vent.sl., isogl., solid/FJ | H37: DEUR | I37: BALKON | J37: BALKON | K37: BS | L37: 042 | O37: Inventory | P37: FSCPHW | Q37: TRUE | S37: RAL 9010 | T37: 0 | U37: 0 | V37: 38 | X37: FALSE | Y37: FALSE | Z37: FALSE | AA37: 452.89 | AB37: 548 | AC37: =ROUND(AA37*(1-VLOOKUP(AF37,Discounts!C:E,3,0)),2) -> 452.89 | AE37: 18080 | AF37: E075
A38: 8718528345269 | B38: Artikel | C38: 8718528345269 | D38: STUKS | E38: WK042, 780x2115x38, bwh 244 | F38: FSC® cert. PHW KOMO | G38: V:RAL9010, vent.sl., isogl., solid/FJ | H38: DEUR | I38: BALKON | J38: BALKON | K38: BS | L38: 042 | O38: Inventory | P38: FSCPHW | Q38: TRUE | S38: RAL 9010 | T38: 0 | U38: 0 | V38: 38 | X38: FALSE | Y38: FALSE | Z38: FALSE | AA38: 452.89 | AB38: 548 | AC38: =ROUND(AA38*(1-VLOOKUP(AF38,Discounts!C:E,3,0)),2) -> 452.89 | AE38: 18080 | AF38: E075
A39: 8718528024508 | B39: Artikel | C39: 8718528024508 | D39: STUKS | E39: WK043, 780x2015x38, bwh 349 | F39: FSC® cert. Premium Hardwood | G39: V:RAL9010, vent.sl., isogl., FSC Mix 70% CU-COC 800339 | H39: DEUR | I39: BALKON | J39: BALKON | K39: BS | L39: 043 | O39: Inventory | P39: FSCPHW | Q39: TRUE | S39: RAL 9010 | T39: 2015 | U39: 780 | V39: 38 | X39: FALSE | Y39: FALSE | Z39: FALSE | AA39: 476.86 | AB39: 577 | AC39: =ROUND(AA39*(1-VLOOKUP(AF39,Discounts!C:E,3,0)),2) -> 476.86 | AE39: 18090 | AF39: E075
A40: 8718528024515 | B40: Artikel | C40: 8718528024515 | D40: STUKS | E40: WK043, 780x2115x38, bwh 349 | F40: FSC® cert. Premium Hardwood | G40: V:RAL9010, vent.sl., isogl., FSC Mix 70% CU-COC 800339 | H40: DEUR | I40: BALKON | J40: BALKON | K40: BS | L40: 043 | O40: Inventory | P40: FSCPHW | Q40: TRUE | S40: RAL 9010 | T40: 2115 | U40: 780 | V40: 38 | X40: FALSE | Y40: FALSE | Z40: FALSE | AA40: 476.86 | AB40: 577 | AC40: =ROUND(AA40*(1-VLOOKUP(AF40,Discounts!C:E,3,0)),2) -> 476.86 | AE40: 18090 | AF40: E075
A41: 8718528024522 | B41: Artikel | C41: 8718528024522 | D41: STUKS | E41: WK043, 830x2015x38, bwh 349 | F41: FSC® cert. Premium Hardwood | G41: V:RAL9010, vent.sl., isogl., FSC Mix 70% CU-COC 800339 | H41: DEUR | I41: BALKON | J41: BALKON | K41: BS | L41: 043 | O41: Inventory | P41: FSCPHW | Q41: TRUE | S41: RAL 9010 | T41: 2015 | U41: 830 | V41: 38 | X41: FALSE | Y41: FALSE | Z41: FALSE | AA41: 476.86 | AB41: 577 | AC41: =ROUND(AA41*(1-VLOOKUP(AF41,Discounts!C:E,3,0)),2) -> 476.86 | AE41: 18090 | AF41: E075
A42: 8718528024539 | B42: Artikel | C42: 8718528024539 | D42: STUKS | E42: WK043, 830x2115x38, bwh 349 | F42: FSC® cert. Premium Hardwood | G42: V:RAL9010, vent.sl., isogl., FSC Mix 70% CU-COC 800339 | H42: DEUR | I42: BALKON | J42: BALKON | K42: BS | L42: 043 | O42: Inventory | P42: FSCPHW | Q42: TRUE | S42: RAL 9010 | T42: 2115 | U42: 830 | V42: 38 | X42: FALSE | Y42: FALSE | Z42: FALSE | AA42: 476.86 | AB42: 577 | AC42: =ROUND(AA42*(1-VLOOKUP(AF42,Discounts!C:E,3,0)),2) -> 476.86 | AE42: 18090 | AF42: E075
A43: 8718528024546 | B43: Artikel | C43: 8718528024546 | D43: STUKS | E43: WK043, 880x2015x38, bwh 349 | F43: FSC® cert. Premium Hardwood | G43: V:RAL9010, vent.sl., isogl., FSC Mix 70% CU-COC 800339 | H43: DEUR | I43: BALKON | J43: BALKON | K43: BS | L43: 043 | O43: Inventory | P43: FSCPHW | Q43: TRUE | S43: RAL 9010 | T43: 2015 | U43: 880 | V43: 38 | X43: FALSE | Y43: FALSE | Z43: FALSE | AA43: 476.86 | AB43: 577 | AC43: =ROUND(AA43*(1-VLOOKUP(AF43,Discounts!C:E,3,0)),2) -> 476.86 | AE43: 18090 | AF43: E075
A44: 8718528024553 | B44: Artikel | C44: 8718528024553 | D44: STUKS | E44: WK043, 880x2115x38, bwh 349 | F44: FSC® cert. Premium Hardwood | G44: V:RAL9010, vent.sl., isogl., FSC Mix 70% CU-COC 800339 | H44: DEUR | I44: BALKON | J44: BALKON | K44: BS | L44: 043 | O44: Inventory | P44: FSCPHW | Q44: TRUE | S44: RAL 9010 | T44: 2115 | U44: 880 | V44: 38 | X44: FALSE | Y44: FALSE | Z44: FALSE | AA44: 476.86 | AB44: 577 | AC44: =ROUND(AA44*(1-VLOOKUP(AF44,Discounts!C:E,3,0)),2) -> 476.86 | AE44: 18090 | AF44: E075
A45: 8718528024560 | B45: Artikel | C45: 8718528024560 | D45: STUKS | E45: WK043, 930x2015x38, bwh 349 | F45: FSC® cert. Premium Hardwood | G45: V:RAL9010, vent.sl., isogl., FSC Mix 70% CU-COC 800339 | H45: DEUR | I45: BALKON | J45: BALKON | K45: BS | L45: 043 | O45: Inventory | P45: FSCPHW | Q45: TRUE | S45: RAL 9010 | T45: 2015 | U45: 930 | V45: 38 | X45: FALSE | Y45: FALSE | Z45: FALSE | AA45: 476.86 | AB45: 577 | AC45: =ROUND(AA45*(1-VLOOKUP(AF45,Discounts!C:E,3,0)),2) -> 476.86 | AE45: 18090 | AF45: E075
A46: 8718528024577 | B46: Artikel | C46: 8718528024577 | D46: STUKS | E46: WK043, 930x2115x38, bwh 349 | F46: FSC® cert. Premium Hardwood | G46: V:RAL9010, vent.sl., isogl., FSC Mix 70% CU-COC 800339 | H46: DEUR | I46: BALKON | J46: BALKON | K46: BS | L46: 043 | O46: Inventory | P46: FSCPHW | Q46: TRUE | S46: RAL 9010 | T46: 2115 | U46: 930 | V46: 38 | X46: FALSE | Y46: FALSE | Z46: FALSE | AA46: 476.86 | AB46: 577 | AC46: =ROUND(AA46*(1-VLOOKUP(AF46,Discounts!C:E,3,0)),2) -> 476.86 | AE46: 18090 | AF46: E075
A47: 8718528345290 | B47: Artikel | C47: 8718528345290 | D47: STUKS | E47: WK043, 730x2015x38, bwh 349 | F47: FSC® cert. PHW KOMO | G47: V:RAL9010, vent.sl., isogl., solid/FJ | H47: DEUR | I47: BALKON | J47: BALKON | K47: BS | L47: 043 | O47: Inventory | P47: FSCPHW | Q47: TRUE | S47: RAL 9010 | T47: 0 | U47: 0 | V47: 38 | X47: FALSE | Y47: FALSE | Z47: FALSE | AA47: 476.86 | AB47: 577 | AC47: =ROUND(AA47*(1-VLOOKUP(AF47,Discounts!C:E,3,0)),2) -> 476.86 | AE47: 18090 | AF47: E075
A48: 8718528345320 | B48: Artikel | C48: 8718528345320 | D48: STUKS | E48: WK043, 730x2115x38, bwh 349 | F48: FSC® cert. PHW KOMO | G48: V:RAL9010, vent.sl., isogl., solid/FJ | H48: DEUR | I48: BALKON | J48: BALKON | K48: BS | L48: 043 | O48: Inventory | P48: FSCPHW | Q48: TRUE | S48: RAL 9010 | T48: 0 | U48: 0 | V48: 38 | X48: FALSE | Y48: FALSE | Z48: FALSE | AA48: 476.86 | AB48: 577 | AC48: =ROUND(AA48*(1-VLOOKUP(AF48,Discounts!C:E,3,0)),2) -> 476.86 | AE48: 18090 | AF48: E075
A49: 8718528025376 | B49: Artikel | C49: 8718528025376 | D49: STUKS | E49: WK044, 830x2015x38, bwh 454 | F49: FSC® cert. Premium Hardwood | G49: V:RAL9010, vent.sl., isogl., FSC Mix 70% CU-COC 800339 | H49: DEUR | I49: BALKON | J49: BALKON | K49: BS | L49: 044 | O49: Inventory | P49: FSCPHW | Q49: TRUE | S49: RAL 9010 | T49: 2015 | U49: 830 | V49: 38 | X49: FALSE | Y49: FALSE | Z49: FALSE | AA49: 499.18 | AB49: 604 | AC49: =ROUND(AA49*(1-VLOOKUP(AF49,Discounts!C:E,3,0)),2) -> 499.18 | AE49: 18100 | AF49: E075
A50: 8718528025383 | B50: Artikel | C50: 8718528025383 | D50: STUKS | E50: WK044, 830x2115x38, bwh 454 | F50: FSC® cert. Premium Hardwood | G50: V:RAL9010, vent.sl., isogl., FSC Mix 70% CU-COC 800339 | H50: DEUR | I50: BALKON | J50: BALKON | K50: BS | L50: 044 | O50: Inventory | P50: FSCPHW | Q50: TRUE | S50: RAL 9010 | T50: 2115 | U50: 830 | V50: 38 | X50: FALSE | Y50: FALSE | Z50: FALSE | AA50: 499.18 | AB50: 604 | AC50: =ROUND(AA50*(1-VLOOKUP(AF50,Discounts!C:E,3,0)),2) -> 499.18 | AE50: 18100 | AF50: E075
A51: 8718528025390 | B51: Artikel | C51: 8718528025390 | D51: STUKS | E51: WK044, 880x2015x38, bwh 454 | F51: FSC® cert. Premium Hardwood | G51: V:RAL9010, vent.sl., isogl., FSC Mix 70% CU-COC 800339 | H51: DEUR | I51: BALKON | J51: BALKON | K51: BS | L51: 044 | O51: Inventory | P51: FSCPHW | Q51: TRUE | S51: RAL 9010 | T51: 2015 | U51: 880 | V51: 38 | X51: FALSE | Y51: FALSE | Z51: FALSE | AA51: 499.18 | AB51: 604 | AC51: =ROUND(AA51*(1-VLOOKUP(AF51,Discounts!C:E,3,0)),2) -> 499.18 | AE51: 18100 | AF51: E075
A52: 8718528025406 | B52: Artikel | C52: 8718528025406 | D52: STUKS | E52: WK044, 880x2115x38, bwh 454 | F52: FSC® cert. Premium Hardwood | G52: V:RAL9010, vent.sl., isogl., FSC Mix 70% CU-COC 800339 | H52: DEUR | I52: BALKON | J52: BALKON | K52: BS | L52: 044 | O52: Inventory | P52: FSCPHW | Q52: TRUE | S52: RAL 9010 | T52: 2115 | U52: 880 | V52: 38 | X52: FALSE | Y52: FALSE | Z52: FALSE | AA52: 499.18 | AB52: 604 | AC52: =ROUND(AA52*(1-VLOOKUP(AF52,Discounts!C:E,3,0)),2) -> 499.18 | AE52: 18100 | AF52: E075
A53: 8718528025413 | B53: Artikel | C53: 8718528025413 | D53: STUKS | E53: WK044, 930x2015x38, bwh 454 | F53: FSC® cert. Premium Hardwood | G53: V:RAL9010, vent.sl., isogl., FSC Mix 70% CU-COC 800339 | H53: DEUR | I53: BALKON | J53: BALKON | K53: BS | L53: 044 | O53: Inventory | P53: FSCPHW | Q53: TRUE | S53: RAL 9010 | T53: 2015 | U53: 930 | V53: 38 | X53: FALSE | Y53: FALSE | Z53: FALSE | AA53: 499.18 | AB53: 604 | AC53: =ROUND(AA53*(1-VLOOKUP(AF53,Discounts!C:E,3,0)),2) -> 499.18 | AE53: 18100 | AF53: E075
A54: 8718528025420 | B54: Artikel | C54: 8718528025420 | D54: STUKS | E54: WK044, 930x2115x38, bwh 454 | F54: FSC® cert. Premium Hardwood | G54: V:RAL9010, vent.sl., isogl., FSC Mix 70% CU-COC 800339 | H54: DEUR | I54: BALKON | J54: BALKON | K54: BS | L54: 044 | O54: Inventory | P54: FSCPHW | Q54: TRUE | S54: RAL 9010 | T54: 2115 | U54: 930 | V54: 38 | X54: FALSE | Y54: FALSE | Z54: FALSE | AA54: 499.18 | AB54: 604 | AC54: =ROUND(AA54*(1-VLOOKUP(AF54,Discounts!C:E,3,0)),2) -> 499.18 | AE54: 18100 | AF54: E075
A55: 8718528345351 | B55: Artikel | C55: 8718528345351 | D55: STUKS | E55: WK044, 780x2015x38, bwh 454 | F55: FSC® cert. PHW KOMO | G55: V:RAL9010, vent.sl., isogl., solid/FJ | H55: DEUR | I55: BALKON | J55: BALKON | K55: BS | L55: 044 | O55: Inventory | P55: FSCPHW | Q55: TRUE | S55: RAL 9010 | T55: 0 | U55: 0 | V55: 38 | X55: FALSE | Y55: FALSE | Z55: FALSE | AA55: 499.18 | AB55: 604 | AC55: =ROUND(AA55*(1-VLOOKUP(AF55,Discounts!C:E,3,0)),2) -> 499.18 | AE55: 18100 | AF55: E075
A56: 8718528345382 | B56: Artikel | C56: 8718528345382 | D56: STUKS | E56: WK044, 780x2115x38, bwh 454 | F56: FSC® cert. PHW KOMO | G56: V:RAL9010, vent.sl., isogl., solid/FJ | H56: DEUR | I56: BALKON | J56: BALKON | K56: BS | L56: 044 | O56: Inventory | P56: FSCPHW | Q56: TRUE | S56: RAL 9010 | T56: 0 | U56: 0 | V56: 38 | X56: FALSE | Y56: FALSE | Z56: FALSE | AA56: 499.18 | AB56: 604 | AC56: =ROUND(AA56*(1-VLOOKUP(AF56,Discounts!C:E,3,0)),2) -> 499.18 | AE56: 18100 | AF56: E075
A57: 8718528024614 | B57: Artikel | C57: 8718528024614 | D57: STUKS | E57: WK046, 830x2015x38, bwh 664 | F57: FSC® cert. Premium Hardwood | G57: V:RAL9010, vent.sl., isogl., FSC Mix 70% CU-COC 800339 | H57: DEUR | I57: BALKON | J57: BALKON | K57: BS | L57: 046 | O57: Inventory | P57: FSCPHW | Q57: TRUE | S57: RAL 9010 | T57: 2015 | U57: 830 | V57: 38 | X57: FALSE | Y57: FALSE | Z57: FALSE | AA57: 549.59 | AB57: 665 | AC57: =ROUND(AA57*(1-VLOOKUP(AF57,Discounts!C:E,3,0)),2) -> 549.59 | AE57: 18110 | AF57: E075
A58: 8718528024621 | B58: Artikel | C58: 8718528024621 | D58: STUKS | E58: WK046, 830x2115x38, bwh 664 | F58: FSC® cert. Premium Hardwood | G58: V:RAL9010, vent.sl., isogl., FSC Mix 70% CU-COC 800339 | H58: DEUR | I58: BALKON | J58: BALKON | K58: BS | L58: 046 | O58: Inventory | P58: FSCPHW | Q58: TRUE | S58: RAL 9010 | T58: 2115 | U58: 830 | V58: 38 | X58: FALSE | Y58: FALSE | Z58: FALSE | AA58: 549.59 | AB58: 665 | AC58: =ROUND(AA58*(1-VLOOKUP(AF58,Discounts!C:E,3,0)),2) -> 549.59 | AE58: 18110 | AF58: E075
A59: 8718528024638 | B59: Artikel | C59: 8718528024638 | D59: STUKS | E59: WK046, 880x2015x38, bwh 664 | F59: FSC® cert. Premium Hardwood | G59: V:RAL9010, vent.sl., isogl., FSC Mix 70% CU-COC 800339 | H59: DEUR | I59: BALKON | J59: BALKON | K59: BS | L59: 046 | O59: Inventory | P59: FSCPHW | Q59: TRUE | S59: RAL 9010 | T59: 2015 | U59: 880 | V59: 38 | X59: FALSE | Y59: FALSE | Z59: FALSE | AA59: 549.59 | AB59: 665 | AC59: =ROUND(AA59*(1-VLOOKUP(AF59,Discounts!C:E,3,0)),2) -> 549.59 | AE59: 18110 | AF59: E075
A60: 8718528024645 | B60: Artikel | C60: 8718528024645 | D60: STUKS | E60: WK046, 880x2115x38, bwh 664 | F60: FSC® cert. Premium Hardwood | G60: V:RAL9010, vent.sl., isogl., FSC Mix 70% CU-COC 800339 | H60: DEUR | I60: BALKON | J60: BALKON | K60: BS | L60: 046 | O60: Inventory | P60: FSCPHW | Q60: TRUE | S60: RAL 9010 | T60: 2115 | U60: 880 | V60: 38 | X60: FALSE | Y60: FALSE | Z60: FALSE | AA60: 549.59 | AB60: 665 | AC60: =ROUND(AA60*(1-VLOOKUP(AF60,Discounts!C:E,3,0)),2) -> 549.59 | AE60: 18110 | AF60: E075
A61: 8718528024652 | B61: Artikel | C61: 8718528024652 | D61: STUKS | E61: WK046, 930x2015x38, bwh 664 | F61: FSC® cert. Premium Hardwood | G61: V:RAL9010, vent.sl., isogl., FSC Mix 70% CU-COC 800339 | H61: DEUR | I61: BALKON | J61: BALKON | K61: BS | L61: 046 | O61: Inventory | P61: FSCPHW | Q61: TRUE | S61: RAL 9010 | T61: 2015 | U61: 930 | V61: 38 | X61: FALSE | Y61: FALSE | Z61: FALSE | AA61: 549.59 | AB61: 665 | AC61: =ROUND(AA61*(1-VLOOKUP(AF61,Discounts!C:E,3,0)),2) -> 549.59 | AE61: 18110 | AF61: E075
A62: 8718528024669 | B62: Artikel | C62: 8718528024669 | D62: STUKS | E62: WK046, 930x2115x38, bwh 664 | F62: FSC® cert. Premium Hardwood | G62: V:RAL9010, vent.sl., isogl., FSC Mix 70% CU-COC 800339 | H62: DEUR | I62: BALKON | J62: BALKON | K62: BS | L62: 046 | O62: Inventory | P62: FSCPHW | Q62: TRUE | S62: RAL 9010 | T62: 2115 | U62: 930 | V62: 38 | X62: FALSE | Y62: FALSE | Z62: FALSE | AA62: 549.59 | AB62: 665 | AC62: =ROUND(AA62*(1-VLOOKUP(AF62,Discounts!C:E,3,0)),2) -> 549.59 | AE62: 18110 | AF62: E075
A63: 8718528345412 | B63: Artikel | C63: 8718528345412 | D63: STUKS | E63: WK046, 780x2015x38, bwh 664 | F63: FSC® cert. PHW KOMO | G63: V:RAL9010, vent.sl., isogl., solid/FJ | H63: DEUR | I63: BALKON | J63: BALKON | K63: BS | L63: 046 | O63: Inventory | P63: FSCPHW | Q63: TRUE | S63: RAL 9010 | T63: 0 | U63: 0 | V63: 38 | X63: FALSE | Y63: FALSE | Z63: FALSE | AA63: 549.59 | AB63: 665 | AC63: =ROUND(AA63*(1-VLOOKUP(AF63,Discounts!C:E,3,0)),2) -> 549.59 | AE63: 18110 | AF63: E075
A64: 8718528345443 | B64: Artikel | C64: 8718528345443 | D64: STUKS | E64: WK046, 780x2115x38, bwh 664 | F64: FSC® cert. PHW KOMO | G64: V:RAL9010, vent.sl., isogl., solid/FJ | H64: DEUR | I64: BALKON | J64: BALKON | K64: BS | L64: 046 | O64: Inventory | P64: FSCPHW | Q64: TRUE | S64: RAL 9010 | T64: 0 | U64: 0 | V64: 38 | X64: FALSE | Y64: FALSE | Z64: FALSE | AA64: 549.59 | AB64: 665 | AC64: =ROUND(AA64*(1-VLOOKUP(AF64,Discounts!C:E,3,0)),2) -> 549.59 | AE64: 18110 | AF64: E075
A65: 8718528024690 | B65: Artikel | C65: 8718528024690 | D65: STUKS | E65: WK048, 830x2015x38, bwh 874 | F65: FSC® cert. Premium Hardwood | G65: V:RAL9010, vent.sl., isogl., FSC Mix 70% CU-COC 800339 | H65: DEUR | I65: BALKON | J65: BALKON | K65: BS | L65: 048 | O65: Inventory | P65: FSCPHW | Q65: TRUE | S65: RAL 9010 | T65: 2015 | U65: 830 | V65: 38 | X65: FALSE | Y65: FALSE | Z65: FALSE | AA65: 598.35 | AB65: 724 | AC65: =ROUND(AA65*(1-VLOOKUP(AF65,Discounts!C:E,3,0)),2) -> 598.35 | AE65: 18130 | AF65: E075
A66: 8718528024706 | B66: Artikel | C66: 8718528024706 | D66: STUKS | E66: WK048, 830x2115x38, bwh 874 | F66: FSC® cert. Premium Hardwood | G66: V:RAL9010, vent.sl., isogl., FSC Mix 70% CU-COC 800339 | H66: DEUR | I66: BALKON | J66: BALKON | K66: BS | L66: 048 | O66: Inventory | P66: FSCPHW | Q66: TRUE | S66: RAL 9010 | T66: 2115 | U66: 830 | V66: 38 | X66: FALSE | Y66: FALSE | Z66: FALSE | AA66: 598.35 | AB66: 724 | AC66: =ROUND(AA66*(1-VLOOKUP(AF66,Discounts!C:E,3,0)),2) -> 598.35 | AE66: 18130 | AF66: E075
A67: 8718528024713 | B67: Artikel | C67: 8718528024713 | D67: STUKS | E67: WK048, 880x2015x38, bwh 874 | F67: FSC® cert. Premium Hardwood | G67: V:RAL9010, vent.sl., isogl., FSC Mix 70% CU-COC 800339 | H67: DEUR | I67: BALKON | J67: BALKON | K67: BS | L67: 048 | O67: Inventory | P67: FSCPHW | Q67: TRUE | S67: RAL 9010 | T67: 2015 | U67: 880 | V67: 38 | X67: FALSE | Y67: FALSE | Z67: FALSE | AA67: 598.35 | AB67: 724 | AC67: =ROUND(AA67*(1-VLOOKUP(AF67,Discounts!C:E,3,0)),2) -> 598.35 | AE67: 18130 | AF67: E075
A68: 8718528024720 | B68: Artikel | C68: 8718528024720 | D68: STUKS | E68: WK048, 880x2115x38, bwh 874 | F68: FSC® cert. Premium Hardwood | G68: V:RAL9010, vent.sl., isogl., FSC Mix 70% CU-COC 800339 | H68: DEUR | I68: BALKON | J68: BALKON | K68: BS | L68: 048 | O68: Inventory | P68: FSCPHW | Q68: TRUE | S68: RAL 9010 | T68: 2115 | U68: 880 | V68: 38 | X68: FALSE | Y68: FALSE | Z68: FALSE | AA68: 598.35 | AB68: 724 | AC68: =ROUND(AA68*(1-VLOOKUP(AF68,Discounts!C:E,3,0)),2) -> 598.35 | AE68: 18130 | AF68: E075
A69: 8718528024737 | B69: Artikel | C69: 8718528024737 | D69: STUKS | E69: WK048, 930x2015x38, bwh 874 | F69: FSC® cert. Premium Hardwood | G69: V:RAL9010, vent.sl., isogl., FSC Mix 70% CU-COC 800339 | H69: DEUR | I69: BALKON | J69: BALKON | K69: BS | L69: 048 | O69: Inventory | P69: FSCPHW | Q69: TRUE | S69: RAL 9010 | T69: 2015 | U69: 930 | V69: 38 | X69: FALSE | Y69: FALSE | Z69: FALSE | AA69: 598.35 | AB69: 724 | AC69: =ROUND(AA69*(1-VLOOKUP(AF69,Discounts!C:E,3,0)),2) -> 598.35 | AE69: 18130 | AF69: E075
A70: 8718528024744 | B70: Artikel | C70: 8718528024744 | D70: STUKS | E70: WK048, 930x2115x38, bwh 874 | F70: FSC® cert. Premium Hardwood | G70: V:RAL9010, vent.sl., isogl., FSC Mix 70% CU-COC 800339 | H70: DEUR | I70: BALKON | J70: BALKON | K70: BS | L70: 048 | O70: Inventory | P70: FSCPHW | Q70: TRUE | S70: RAL 9010 | T70: 2115 | U70: 930 | V70: 38 | X70: FALSE | Y70: FALSE | Z70: FALSE | AA70: 598.35 | AB70: 724 | AC70: =ROUND(AA70*(1-VLOOKUP(AF70,Discounts!C:E,3,0)),2) -> 598.35 | AE70: 18130 | AF70: E075
A71: 8718528345474 | B71: Artikel | C71: 8718528345474 | D71: STUKS | E71: WK048, 780x2015x38, bwh 874 | F71: FSC® cert. PHW KOMO | G71: V:RAL9010, vent.sl., isogl., solid/FJ | H71: DEUR | I71: BALKON | J71: BALKON | K71: BS | L71: 048 | O71: Inventory | P71: FSCPHW | Q71: TRUE | S71: RAL 9010 | T71: 0 | U71: 0 | V71: 38 | X71: FALSE | Y71: FALSE | Z71: FALSE | AA71: 598.35 | AB71: 724 | AC71: =ROUND(AA71*(1-VLOOKUP(AF71,Discounts!C:E,3,0)),2) -> 598.35 | AE71: 18130 | AF71: E075
A72: 8718528345504 | B72: Artikel | C72: 8718528345504 | D72: STUKS | E72: WK048, 780x2115x38, bwh 874 | F72: FSC® cert. PHW KOMO | G72: V:RAL9010, vent.sl., isogl., solid/FJ | H72: DEUR | I72: BALKON | J72: BALKON | K72: BS | L72: 048 | O72: Inventory | P72: FSCPHW | Q72: TRUE | S72: RAL 9010 | T72: 0 | U72: 0 | V72: 38 | X72: FALSE | Y72: FALSE | Z72: FALSE | AA72: 598.35 | AB72: 724 | AC72: =ROUND(AA72*(1-VLOOKUP(AF72,Discounts!C:E,3,0)),2) -> 598.35 | AE72: 18130 | AF72: E075
A73: 8718528024850 | B73: Artikel | C73: 8718528024850 | D73: STUKS | E73: WK042, 830x2015x38, bwh 244 | F73: FSC® cert. Hardwood | G73: V:RAL7035,vent.sl.,isogl.,solid/FJ,FSC Mix 70% CU-COC 800339 | H73: DEUR | I73: BALKON | J73: BALKON | K73: BS | L73: 042 | O73: Inventory | P73: FSCHW | Q73: TRUE | S73: RAL 7035 | T73: 2015 | U73: 830 | V73: 38 | X73: FALSE | Y73: FALSE | Z73: FALSE | AA73: 392.56 | AB73: 475 | AC73: =ROUND(AA73*(1-VLOOKUP(AF73,Discounts!C:E,3,0)),2) -> 392.56 | AE73: 18140 | AF73: E065
A74: 8718528024867 | B74: Artikel | C74: 8718528024867 | D74: STUKS | E74: WK042, 830x2115x38, bwh 244 | F74: FSC® cert. Hardwood | G74: V:RAL7035,vent.sl.,isogl.,solid/FJ,FSC Mix 70% CU-COC 800339 | H74: DEUR | I74: BALKON | J74: BALKON | K74: BS | L74: 042 | O74: Inventory | P74: FSCHW | Q74: TRUE | S74: RAL 7035 | T74: 2115 | U74: 830 | V74: 38 | X74: FALSE | Y74: FALSE | Z74: FALSE | AA74: 392.56 | AB74: 475 | AC74: =ROUND(AA74*(1-VLOOKUP(AF74,Discounts!C:E,3,0)),2) -> 392.56 | AE74: 18140 | AF74: E065
A75: 8718528024874 | B75: Artikel | C75: 8718528024874 | D75: STUKS | E75: WK042, 880x2015x38, bwh 244 | F75: FSC® cert. Hardwood | G75: V:RAL7035,vent.sl.,isogl.,solid/FJ,FSC Mix 70% CU-COC 800339 | H75: DEUR | I75: BALKON | J75: BALKON | K75: BS | L75: 042 | O75: Inventory | P75: FSCHW | Q75: TRUE | S75: RAL 7035 | T75: 2015 | U75: 880 | V75: 38 | X75: FALSE | Y75: FALSE | Z75: FALSE | AA75: 392.56 | AB75: 475 | AC75: =ROUND(AA75*(1-VLOOKUP(AF75,Discounts!C:E,3,0)),2) -> 392.56 | AE75: 18140 | AF75: E065
A76: 8718528024881 | B76: Artikel | C76: 8718528024881 | D76: STUKS | E76: WK042, 880x2115x38, bwh 244 | F76: FSC® cert. Hardwood | G76: V:RAL7035,vent.sl.,isogl.,solid/FJ,FSC Mix 70% CU-COC 800339 | H76: DEUR | I76: BALKON | J76: BALKON | K76: BS | L76: 042 | O76: Inventory | P76: FSCHW | Q76: TRUE | S76: RAL 7035 | T76: 2115 | U76: 880 | V76: 38 | X76: FALSE | Y76: FALSE | Z76: FALSE | AA76: 392.56 | AB76: 475 | AC76: =ROUND(AA76*(1-VLOOKUP(AF76,Discounts!C:E,3,0)),2) -> 392.56 | AE76: 18140 | AF76: E065
A77: 8718528024898 | B77: Artikel | C77: 8718528024898 | D77: STUKS | E77: WK042, 930x2015x38, bwh 244 | F77: FSC® cert. Hardwood | G77: V:RAL7035,vent.sl.,isogl.,solid/FJ,FSC Mix 70% CU-COC 800339 | H77: DEUR | I77: BALKON | J77: BALKON | K77: BS | L77: 042 | O77: Inventory | P77: FSCHW | Q77: TRUE | S77: RAL 7035 | T77: 2015 | U77: 930 | V77: 38 | X77: FALSE | Y77: FALSE | Z77: FALSE | AA77: 392.56 | AB77: 475 | AC77: =ROUND(AA77*(1-VLOOKUP(AF77,Discounts!C:E,3,0)),2) -> 392.56 | AE77: 18140 | AF77: E065
A78: 8718528024904 | B78: Artikel | C78: 8718528024904 | D78: STUKS | E78: WK042, 930x2115x38, bwh 244 | F78: FSC® cert. Hardwood | G78: V:RAL7035,vent.sl.,isogl.,solid/FJ,FSC Mix 70% CU-COC 800339 | H78: DEUR | I78: BALKON | J78: BALKON | K78: BS | L78: 042 | O78: Inventory | P78: FSCHW | Q78: TRUE | S78: RAL 7035 | T78: 2115 | U78: 930 | V78: 38 | X78: FALSE | Y78: FALSE | Z78: FALSE | AA78: 392.56 | AB78: 475 | AC78: =ROUND(AA78*(1-VLOOKUP(AF78,Discounts!C:E,3,0)),2) -> 392.56 | AE78: 18140 | AF78: E065
A79: 8718528219959 | B79: Artikel | C79: 8718528219959 | D79: STUKS | E79: WK042, 930x2115x38, bwh 244 | F79: FSC® cert. Hardwood NON-KOMO | G79: V:RAL7035,vent.sl.,isogl.,solid/FJ,FSC Mix 70% CU-COC 800339 | H79: DEUR | I79: BALKON | J79: BALKON | K79: BS | L79: 042 | O79: Inventory | P79: FSCHW | Q79: TRUE | S79: RAL 7035 | T79: 2115 | U79: 930 | V79: 38 | X79: FALSE | Y79: FALSE | Z79: FALSE | AA79: 392.56 | AB79: 475 | AC79: =ROUND(AA79*(1-VLOOKUP(AF79,Discounts!C:E,3,0)),2) -> 392.56 | AE79: 18140 | AF79: E065
A80: 8718528220627 | B80: Artikel | C80: 8718528220627 | D80: STUKS | E80: WK042, 830x2015x38, bwh 244 | F80: FSC® cert. Hardwood NON-KOMO | G80: V:RAL7035,vent.sl.,isogl.,solid/FJ,FSC Mix 70% CU-COC 800339 | H80: DEUR | I80: BALKON | J80: BALKON | K80: BS | L80: 042 | O80: Inventory | P80: FSCHW | Q80: TRUE | S80: RAL 7035 | T80: 2015 | U80: 830 | V80: 38 | X80: FALSE | Y80: FALSE | Z80: FALSE | AA80: 392.56 | AB80: 475 | AC80: =ROUND(AA80*(1-VLOOKUP(AF80,Discounts!C:E,3,0)),2) -> 392.56 | AE80: 18140 | AF80: E065
A81: 8718528220634 | B81: Artikel | C81: 8718528220634 | D81: STUKS | E81: WK042, 830x2115x38, bwh 244 | F81: FSC® cert. Hardwood NON-KOMO | G81: V:RAL7035,vent.sl.,isogl.,solid/FJ,FSC Mix 70% CU-COC 800339 | H81: DEUR | I81: BALKON | J81: BALKON | K81: BS | L81: 042 | O81: Inventory | P81: FSCHW | Q81: TRUE | S81: RAL 7035 | T81: 2115 | U81: 830 | V81: 38 | X81: FALSE | Y81: FALSE | Z81: FALSE | AA81: 392.56 | AB81: 475 | AC81: =ROUND(AA81*(1-VLOOKUP(AF81,Discounts!C:E,3,0)),2) -> 392.56 | AE81: 18140 | AF81: E065
A82: 8718528220641 | B82: Artikel | C82: 8718528220641 | D82: STUKS | E82: WK042, 880x2115x38, bwh 244 | F82: FSC® cert. Hardwood NON-KOMO | G82: V:RAL7035,vent.sl.,isogl.,solid/FJ,FSC Mix 70% CU-COC 800339 | H82: DEUR | I82: BALKON | J82: BALKON | K82: BS | L82: 042 | O82: Inventory | P82: FSCHW | Q82: TRUE | S82: RAL 7035 | T82: 2115 | U82: 880 | V82: 38 | X82: FALSE | Y82: FALSE | Z82: FALSE | AA82: 392.56 | AB82: 475 | AC82: =ROUND(AA82*(1-VLOOKUP(AF82,Discounts!C:E,3,0)),2) -> 392.56 | AE82: 18140 | AF82: E065
A83: 8718528345115 | B83: Artikel | C83: 8718528345115 | D83: STUKS | E83: WK042, 730x2015x38, bwh 244 | F83: FSC® cert. Hardwood KOMO | G83: V:RAL7035, vent.sl., isogl., solid/FJ | H83: DEUR | I83: BALKON | J83: BALKON | K83: BS | L83: 042 | O83: Inventory | P83: FSCHW | Q83: TRUE | S83: RAL 7035 | T83: 0 | U83: 0 | V83: 38 | X83: FALSE | Y83: FALSE | Z83: FALSE | AA83: 392.56 | AB83: 475 | AC83: =ROUND(AA83*(1-VLOOKUP(AF83,Discounts!C:E,3,0)),2) -> 392.56 | AE83: 18140 | AF83: E065
A84: 8718528345146 | B84: Artikel | C84: 8718528345146 | D84: STUKS | E84: WK042, 730x2115x38, bwh 244 | F84: FSC® cert. Hardwood KOMO | G84: V:RAL7035, vent.sl., isogl., solid/FJ | H84: DEUR | I84: BALKON | J84: BALKON | K84: BS | L84: 042 | O84: Inventory | P84: FSCHW | Q84: TRUE | S84: RAL 7035 | T84: 0 | U84: 0 | V84: 38 | X84: FALSE | Y84: FALSE | Z84: FALSE | AA84: 392.56 | AB84: 475 | AC84: =ROUND(AA84*(1-VLOOKUP(AF84,Discounts!C:E,3,0)),2) -> 392.56 | AE84: 18140 | AF84: E065
A85: 8718528345177 | B85: Artikel | C85: 8718528345177 | D85: STUKS | E85: WK042, 780x2015x38, bwh 244 | F85: FSC® cert. Hardwood KOMO | G85: V:RAL7035, vent.sl., isogl., solid/FJ | H85: DEUR | I85: BALKON | J85: BALKON | K85: BS | L85: 042 | O85: Inventory | P85: FSCHW | Q85: TRUE | S85: RAL 7035 | T85: 0 | U85: 0 | V85: 38 | X85: FALSE | Y85: FALSE | Z85: FALSE | AA85: 392.56 | AB85: 475 | AC85: =ROUND(AA85*(1-VLOOKUP(AF85,Discounts!C:E,3,0)),2) -> 392.56 | AE85: 18140 | AF85: E065
A86: 8718528345238 | B86: Artikel | C86: 8718528345238 | D86: STUKS | E86: WK042, 780x2115x38, bwh 244 | F86: FSC® cert. Hardwood KOMO | G86: V:RAL7035, vent.sl., isogl., solid/FJ | H86: DEUR | I86: BALKON | J86: BALKON | K86: BS | L86: 042 | O86: Inventory | P86: FSCHW | Q86: TRUE | S86: RAL 7035 | T86: 0 | U86: 0 | V86: 38 | X86: FALSE | Y86: FALSE | Z86: FALSE | AA86: 392.56 | AB86: 475 | AC86: =ROUND(AA86*(1-VLOOKUP(AF86,Discounts!C:E,3,0)),2) -> 392.56 | AE86: 18140 | AF86: E065
A87: 8718528024942 | B87: Artikel | C87: 8718528024942 | D87: STUKS | E87: WK043, 830x2015x38, bwh 349 | F87: FSC® cert. Hardwood | G87: V:RAL7035,vent.sl.,isogl.,solid/FJ,FSC Mix 70% CU-COC 800339 | H87: DEUR | I87: BALKON | J87: BALKON | K87: BS | L87: 043 | O87: Inventory | P87: FSCHW | Q87: TRUE | S87: RAL 7035 | T87: 2015 | U87: 830 | V87: 38 | X87: FALSE | Y87: FALSE | Z87: FALSE | AA87: 413.23 | AB87: 500 | AC87: =ROUND(AA87*(1-VLOOKUP(AF87,Discounts!C:E,3,0)),2) -> 413.23 | AE87: 18150 | AF87: E065
A88: 8718528024959 | B88: Artikel | C88: 8718528024959 | D88: STUKS | E88: WK043, 830x2115x38, bwh 349 | F88: FSC® cert. Hardwood | G88: V:RAL7035,vent.sl.,isogl.,solid/FJ,FSC Mix 70% CU-COC 800339 | H88: DEUR | I88: BALKON | J88: BALKON | K88: BS | L88: 043 | O88: Inventory | P88: FSCHW | Q88: TRUE | S88: RAL 7035 | T88: 2115 | U88: 830 | V88: 38 | X88: FALSE | Y88: FALSE | Z88: FALSE | AA88: 413.23 | AB88: 500 | AC88: =ROUND(AA88*(1-VLOOKUP(AF88,Discounts!C:E,3,0)),2) -> 413.23 | AE88: 18150 | AF88: E065
A89: 8718528024966 | B89: Artikel | C89: 8718528024966 | D89: STUKS | E89: WK043, 880x2015x38, bwh 349 | F89: FSC® cert. Hardwood | G89: V:RAL7035,vent.sl.,isogl.,solid/FJ,FSC Mix 70% CU-COC 800339 | H89: DEUR | I89: BALKON | J89: BALKON | K89: BS | L89: 043 | O89: Inventory | P89: FSCHW | Q89: TRUE | S89: RAL 7035 | T89: 2015 | U89: 880 | V89: 38 | X89: FALSE | Y89: FALSE | Z89: FALSE | AA89: 413.23 | AB89: 500 | AC89: =ROUND(AA89*(1-VLOOKUP(AF89,Discounts!C:E,3,0)),2) -> 413.23 | AE89: 18150 | AF89: E065
A90: 8718528024973 | B90: Artikel | C90: 8718528024973 | D90: STUKS | E90: WK043, 880x2115x38, bwh 349 | F90: FSC® cert. Hardwood | G90: V:RAL7035,vent.sl.,isogl.,solid/FJ,FSC Mix 70% CU-COC 800339 | H90: DEUR | I90: BALKON | J90: BALKON | K90: BS | L90: 043 | O90: Inventory | P90: FSCHW | Q90: TRUE | S90: RAL 7035 | T90: 2115 | U90: 880 | V90: 38 | X90: FALSE | Y90: FALSE | Z90: FALSE | AA90: 413.23 | AB90: 500 | AC90: =ROUND(AA90*(1-VLOOKUP(AF90,Discounts!C:E,3,0)),2) -> 413.23 | AE90: 18150 | AF90: E065
A91: 8718528024980 | B91: Artikel | C91: 8718528024980 | D91: STUKS | E91: WK043, 930x2015x38, bwh 349 | F91: FSC® cert. Hardwood | G91: V:RAL7035,vent.sl.,isogl.,solid/FJ,FSC Mix 70% CU-COC 800339 | H91: DEUR | I91: BALKON | J91: BALKON | K91: BS | L91: 043 | O91: Inventory | P91: FSCHW | Q91: TRUE | S91: RAL 7035 | T91: 2015 | U91: 930 | V91: 38 | X91: FALSE | Y91: FALSE | Z91: FALSE | AA91: 413.23 | AB91: 500 | AC91: =ROUND(AA91*(1-VLOOKUP(AF91,Discounts!C:E,3,0)),2) -> 413.23 | AE91: 18150 | AF91: E065
A92: 8718528024997 | B92: Artikel | C92: 8718528024997 | D92: STUKS | E92: WK043, 930x2115x38, bwh 349 | F92: FSC® cert. Hardwood | G92: V:RAL7035,vent.sl.,isogl.,solid/FJ,FSC Mix 70% CU-COC 800339 | H92: DEUR | I92: BALKON | J92: BALKON | K92: BS | L92: 043 | O92: Inventory | P92: FSCHW | Q92: TRUE | S92: RAL 7035 | T92: 2115 | U92: 930 | V92: 38 | X92: FALSE | Y92: FALSE | Z92: FALSE | AA92: 413.23 | AB92: 500 | AC92: =ROUND(AA92*(1-VLOOKUP(AF92,Discounts!C:E,3,0)),2) -> 413.23 | AE92: 18150 | AF92: E065
A93: 8718528219973 | B93: Artikel | C93: 8718528219973 | D93: STUKS | E93: WK043, 830x2115x38, bwh 349 | F93: FSC® cert. Hardwood NON-KOMO | G93: V:RAL7035,vent.sl.,isogl.,solid/FJ,FSC Mix 70% CU-COC 800339 | H93: DEUR | I93: BALKON | J93: BALKON | K93: BS | L93: 043 | O93: Inventory | P93: FSCHW | Q93: TRUE | S93: RAL 7035 | T93: 2115 | U93: 830 | V93: 38 | X93: FALSE | Y93: FALSE | Z93: FALSE | AA93: 413.23 | AB93: 500 | AC93: =ROUND(AA93*(1-VLOOKUP(AF93,Discounts!C:E,3,0)),2) -> 413.23 | AE93: 18150 | AF93: E065
A94: 8718528219980 | B94: Artikel | C94: 8718528219980 | D94: STUKS | E94: WK043, 880x2115x38, bwh 349 | F94: FSC® cert. Hardwood NON-KOMO | G94: V:RAL7035,vent.sl.,isogl.,solid/FJ,FSC Mix 70% CU-COC 800339 | H94: DEUR | I94: BALKON | J94: BALKON | K94: BS | L94: 043 | O94: Inventory | P94: FSCHW | Q94: TRUE | S94: RAL 7035 | T94: 2115 | U94: 880 | V94: 38 | X94: FALSE | Y94: FALSE | Z94: FALSE | AA94: 413.23 | AB94: 500 | AC94: =ROUND(AA94*(1-VLOOKUP(AF94,Discounts!C:E,3,0)),2) -> 413.23 | AE94: 18150 | AF94: E065
A95: 8718528220665 | B95: Artikel | C95: 8718528220665 | D95: STUKS | E95: WK043, 880x2015x38, bwh 349 | F95: FSC® cert. Hardwood NON-KOMO | G95: V:RAL7035,vent.sl.,isogl.,solid/FJ,FSC Mix 70% CU-COC 800339 | H95: DEUR | I95: BALKON | J95: BALKON | K95: BS | L95: 043 | O95: Inventory | P95: FSCHW | Q95: TRUE | S95: RAL 7035 | T95: 2015 | U95: 880 | V95: 38 | X95: FALSE | Y95: FALSE | Z95: FALSE | AA95: 413.23 | AB95: 500 | AC95: =ROUND(AA95*(1-VLOOKUP(AF95,Discounts!C:E,3,0)),2) -> 413.23 | AE95: 18150 | AF95: E065
A96: 8718528220672 | B96: Artikel | C96: 8718528220672 | D96: STUKS | E96: WK043, 930x2015x38, bwh 349 | F96: FSC® cert. Hardwood NON-KOMO | G96: V:RAL7035,vent.sl.,isogl.,solid/FJ,FSC Mix 70% CU-COC 800339 | H96: DEUR | I96: BALKON | J96: BALKON | K96: BS | L96: 043 | O96: Inventory | P96: FSCHW | Q96: TRUE | S96: RAL 7035 | T96: 2015 | U96: 930 | V96: 38 | X96: FALSE | Y96: FALSE | Z96: FALSE | AA96: 413.23 | AB96: 500 | AC96: =ROUND(AA96*(1-VLOOKUP(AF96,Discounts!C:E,3,0)),2) -> 413.23 | AE96: 18150 | AF96: E065
A97: 8718528025031 | B97: Artikel | C97: 8718528025031 | D97: STUKS | E97: WK044, 830x2015x38, bwh 454 | F97: FSC® cert. Hardwood | G97: V:RAL7035,vent.sl.,isogl.,solid/FJ,FSC Mix 70% CU-COC 800339 | H97: DEUR | I97: BALKON | J97: BALKON | K97: BS | L97: 044 | O97: Inventory | P97: FSCHW | Q97: TRUE | S97: RAL 7035 | T97: 2015 | U97: 830 | V97: 38 | X97: FALSE | Y97: FALSE | Z97: FALSE | AA97: 433.06 | AB97: 524 | AC97: =ROUND(AA97*(1-VLOOKUP(AF97,Discounts!C:E,3,0)),2) -> 433.06 | AE97: 18160 | AF97: E065
A98: 8718528025048 | B98: Artikel | C98: 8718528025048 | D98: STUKS | E98: WK044, 830x2115x38, bwh 454 | F98: FSC® cert. Hardwood | G98: V:RAL7035,vent.sl.,isogl.,solid/FJ,FSC Mix 70% CU-COC 800339 | H98: DEUR | I98: BALKON | J98: BALKON | K98: BS | L98: 044 | O98: Inventory | P98: FSCHW | Q98: TRUE | S98: RAL 7035 | T98: 2115 | U98: 830 | V98: 38 | X98: FALSE | Y98: FALSE | Z98: FALSE | AA98: 433.06 | AB98: 524 | AC98: =ROUND(AA98*(1-VLOOKUP(AF98,Discounts!C:E,3,0)),2) -> 433.06 | AE98: 18160 | AF98: E065
A99: 8718528025055 | B99: Artikel | C99: 8718528025055 | D99: STUKS | E99: WK044, 880x2015x38, bwh 454 | F99: FSC® cert. Hardwood | G99: V:RAL7035,vent.sl.,isogl.,solid/FJ,FSC Mix 70% CU-COC 800339 | H99: DEUR | I99: BALKON | J99: BALKON | K99: BS | L99: 044 | O99: Inventory | P99: FSCHW | Q99: TRUE | S99: RAL 7035 | T99: 2015 | U99: 880 | V99: 38 | X99: FALSE | Y99: FALSE | Z99: FALSE | AA99: 433.06 | AB99: 524 | AC99: =ROUND(AA99*(1-VLOOKUP(AF99,Discounts!C:E,3,0)),2) -> 433.06 | AE99: 18160 | AF99: E065
A100: 8718528025062 | B100: Artikel | C100: 8718528025062 | D100: STUKS | E100: WK044, 880x2115x38, bwh 454 | F100: FSC® cert. Hardwood | G100: V:RAL7035,vent.sl.,isogl.,solid/FJ,FSC Mix 70% CU-COC 800339 | H100: DEUR | I100: BALKON | J100: BALKON | K100: BS | L100: 044 | O100: Inventory | P100: FSCHW | Q100: TRUE | S100: RAL 7035 | T100: 2115 | U100: 880 | V100: 38 | X100: FALSE | Y100: FALSE | Z100: FALSE | AA100: 433.06 | AB100: 524 | AC100: =ROUND(AA100*(1-VLOOKUP(AF100,Discounts!C:E,3,0)),2) -> 433.06 | AE100: 18160 | AF100: E065
A101: 8718528025079 | B101: Artikel | C101: 8718528025079 | D101: STUKS | E101: WK044, 930x2015x38, bwh 454 | F101: FSC® cert. Hardwood | G101: V:RAL7035,vent.sl.,isogl.,solid/FJ,FSC Mix 70% CU-COC 800339 | H101: DEUR | I101: BALKON | J101: BALKON | K101: BS | L101: 044 | O101: Inventory | P101: FSCHW | Q101: TRUE | S101: RAL 7035 | T101: 2015 | U101: 930 | V101: 38 | X101: FALSE | Y101: FALSE | Z101: FALSE | AA101: 433.06 | AB101: 524 | AC101: =ROUND(AA101*(1-VLOOKUP(AF101,Discounts!C:E,3,0)),2) -> 433.06 | AE101: 18160 | AF101: E065
A102: 8718528025086 | B102: Artikel | C102: 8718528025086 | D102: STUKS | E102: WK044, 930x2115x38, bwh 454 | F102: FSC® cert. Hardwood | G102: V:RAL7035,vent.sl.,isogl.,solid/FJ,FSC Mix 70% CU-COC 800339 | H102: DEUR | I102: BALKON | J102: BALKON | K102: BS | L102: 044 | O102: Inventory | P102: FSCHW | Q102: TRUE | S102: RAL 7035 | T102: 2115 | U102: 930 | V102: 38 | X102: FALSE | Y102: FALSE | Z102: FALSE | AA102: 433.06 | AB102: 524 | AC102: =ROUND(AA102*(1-VLOOKUP(AF102,Discounts!C:E,3,0)),2) -> 433.06 | AE102: 18160 | AF102: E065
A103: 8718528220726 | B103: Artikel | C103: 8718528220726 | D103: STUKS | E103: WK044, 880x2115x38, bwh 454 | F103: FSC® cert. Hardwood NON-KOMO | G103: V:RAL7035,vent.sl.,isogl.,solid/FJ,FSC Mix 70% CU-COC 800339 | H103: DEUR | I103: BALKON | J103: BALKON | K103: BS | L103: 044 | O103: Inventory | P103: FSCHW | Q103: TRUE | S103: RAL 7035 | T103: 2115 | U103: 880 | V103: 38 | X103: FALSE | Y103: FALSE | Z103: FALSE | AA103: 433.06 | AB103: 524 | AC103: =ROUND(AA103*(1-VLOOKUP(AF103,Discounts!C:E,3,0)),2) -> 433.06 | AE103: 18160 | AF103: E065
A104: 8718528025123 | B104: Artikel | C104: 8718528025123 | D104: STUKS | E104: WK046, 830x2015x38, bwh 664 | F104: FSC® cert. Hardwood | G104: V:RAL7035,vent.sl.,isogl.,solid/FJ,FSC Mix 70% CU-COC 800339 | H104: DEUR | I104: BALKON | J104: BALKON | K104: BS | L104: 046 | O104: Inventory | P104: FSCHW | Q104: TRUE | S104: RAL 7035 | T104: 2015 | U104: 830 | V104: 38 | X104: FALSE | Y104: FALSE | Z104: FALSE | AA104: 473.56 | AB104: 573 | AC104: =ROUND(AA104*(1-VLOOKUP(AF104,Discounts!C:E,3,0)),2) -> 473.56 | AE104: 18170 | AF104: E065
A105: 8718528025130 | B105: Artikel | C105: 8718528025130 | D105: STUKS | E105: WK046, 830x2115x38, bwh 664 | F105: FSC® cert. Hardwood | G105: V:RAL7035,vent.sl.,isogl.,solid/FJ,FSC Mix 70% CU-COC 800339 | H105: DEUR | I105: BALKON | J105: BALKON | K105: BS | L105: 046 | O105: Inventory | P105: FSCHW | Q105: TRUE | S105: RAL 7035 | T105: 2115 | U105: 830 | V105: 38 | X105: FALSE | Y105: FALSE | Z105: FALSE | AA105: 473.56 | AB105: 573 | AC105: =ROUND(AA105*(1-VLOOKUP(AF105,Discounts!C:E,3,0)),2) -> 473.56 | AE105: 18170 | AF105: E065
A106: 8718528025147 | B106: Artikel | C106: 8718528025147 | D106: STUKS | E106: WK046, 880x2015x38, bwh 664 | F106: FSC® cert. Hardwood | G106: V:RAL7035,vent.sl.,isogl.,solid/FJ,FSC Mix 70% CU-COC 800339 | H106: DEUR | I106: BALKON | J106: BALKON | K106: BS | L106: 046 | O106: Inventory | P106: FSCHW | Q106: TRUE | S106: RAL 7035 | T106: 2015 | U106: 880 | V106: 38 | X106: FALSE | Y106: FALSE | Z106: FALSE | AA106: 473.56 | AB106: 573 | AC106: =ROUND(AA106*(1-VLOOKUP(AF106,Discounts!C:E,3,0)),2) -> 473.56 | AE106: 18170 | AF106: E065
A107: 8718528025154 | B107: Artikel | C107: 8718528025154 | D107: STUKS | E107: WK046, 880x2115x38, bwh 664 | F107: FSC® cert. Hardwood | G107: V:RAL7035,vent.sl.,isogl.,solid/FJ,FSC Mix 70% CU-COC 800339 | H107: DEUR | I107: BALKON | J107: BALKON | K107: BS | L107: 046 | O107: Inventory | P107: FSCHW | Q107: TRUE | S107: RAL 7035 | T107: 2115 | U107: 880 | V107: 38 | X107: FALSE | Y107: FALSE | Z107: FALSE | AA107: 473.56 | AB107: 573 | AC107: =ROUND(AA107*(1-VLOOKUP(AF107,Discounts!C:E,3,0)),2) -> 473.56 | AE107: 18170 | AF107: E065
A108: 8718528025161 | B108: Artikel | C108: 8718528025161 | D108: STUKS | E108: WK046, 930x2015x38, bwh 664 | F108: FSC® cert. Hardwood | G108: V:RAL7035,vent.sl.,isogl.,solid/FJ,FSC Mix 70% CU-COC 800339 | H108: DEUR | I108: BALKON | J108: BALKON | K108: BS | L108: 046 | O108: Inventory | P108: FSCHW | Q108: TRUE | S108: RAL 7035 | T108: 2015 | U108: 930 | V108: 38 | X108: FALSE | Y108: FALSE | Z108: FALSE | AA108: 473.56 | AB108: 573 | AC108: =ROUND(AA108*(1-VLOOKUP(AF108,Discounts!C:E,3,0)),2) -> 473.56 | AE108: 18170 | AF108: E065
A109: 8718528025178 | B109: Artikel | C109: 8718528025178 | D109: STUKS | E109: WK046, 930x2115x38, bwh 664 | F109: FSC® cert. Hardwood | G109: V:RAL7035,vent.sl.,isogl.,solid/FJ,FSC Mix 70% CU-COC 800339 | H109: DEUR | I109: BALKON | J109: BALKON | K109: BS | L109: 046 | O109: Inventory | P109: FSCHW | Q109: TRUE | S109: RAL 7035 | T109: 2115 | U109: 930 | V109: 38 | X109: FALSE | Y109: FALSE | Z109: FALSE | AA109: 473.56 | AB109: 573 | AC109: =ROUND(AA109*(1-VLOOKUP(AF109,Discounts!C:E,3,0)),2) -> 473.56 | AE109: 18170 | AF109: E065
A110: 8718528220771 | B110: Artikel | C110: 8718528220771 | D110: STUKS | E110: WK046, 880x2115x38, bwh 664 | F110: FSC® cert. Hardwood NON-KOMO | G110: V:RAL7035,vent.sl.,isogl.,solid/FJ,FSC Mix 70% CU-COC 800339 | H110: DEUR | I110: BALKON | J110: BALKON | K110: BS | L110: 046 | O110: Inventory | P110: FSCHW | Q110: TRUE | S110: RAL 7035 | T110: 2115 | U110: 880 | V110: 38 | X110: FALSE | Y110: FALSE | Z110: FALSE | AA110: 473.56 | AB110: 573 | AC110: =ROUND(AA110*(1-VLOOKUP(AF110,Discounts!C:E,3,0)),2) -> 473.56 | AE110: 18170 | AF110: E065
A111: 8718528025208 | B111: Artikel | C111: 8718528025208 | D111: STUKS | E111: WK048, 830x2015x38, bwh 874 | F111: FSC® cert. Hardwood | G111: V:RAL7035,vent.sl.,isogl.,solid/FJ,FSC Mix 70% CU-COC 800339 | H111: DEUR | I111: BALKON | J111: BALKON | K111: BS | L111: 048 | O111: Inventory | P111: FSCHW | Q111: TRUE | S111: RAL 7035 | T111: 2015 | U111: 830 | V111: 38 | X111: FALSE | Y111: FALSE | Z111: FALSE | AA111: 511.57 | AB111: 619 | AC111: =ROUND(AA111*(1-VLOOKUP(AF111,Discounts!C:E,3,0)),2) -> 511.57 | AE111: 18180 | AF111: E065
A112: 8718528025215 | B112: Artikel | C112: 8718528025215 | D112: STUKS | E112: WK048, 830x2115x38, bwh 874 | F112: FSC® cert. Hardwood | G112: V:RAL7035,vent.sl.,isogl.,solid/FJ,FSC Mix 70% CU-COC 800339 | H112: DEUR | I112: BALKON | J112: BALKON | K112: BS | L112: 048 | O112: Inventory | P112: FSCHW | Q112: TRUE | S112: RAL 7035 | T112: 2115 | U112: 830 | V112: 38 | X112: FALSE | Y112: FALSE | Z112: FALSE | AA112: 511.57 | AB112: 619 | AC112: =ROUND(AA112*(1-VLOOKUP(AF112,Discounts!C:E,3,0)),2) -> 511.57 | AE112: 18180 | AF112: E065
A113: 8718528025222 | B113: Artikel | C113: 8718528025222 | D113: STUKS | E113: WK048, 880x2015x38, bwh 874 | F113: FSC® cert. Hardwood | G113: V:RAL7035,vent.sl.,isogl.,solid/FJ,FSC Mix 70% CU-COC 800339 | H113: DEUR | I113: BALKON | J113: BALKON | K113: BS | L113: 048 | O113: Inventory | P113: FSCHW | Q113: TRUE | S113: RAL 7035 | T113: 2015 | U113: 880 | V113: 38 | X113: FALSE | Y113: FALSE | Z113: FALSE | AA113: 511.57 | AB113: 619 | AC113: =ROUND(AA113*(1-VLOOKUP(AF113,Discounts!C:E,3,0)),2) -> 511.57 | AE113: 18180 | AF113: E065
A114: 8718528025239 | B114: Artikel | C114: 8718528025239 | D114: STUKS | E114: WK048, 880x2115x38, bwh 874 | F114: FSC® cert. Hardwood | G114: V:RAL7035,vent.sl.,isogl.,solid/FJ,FSC Mix 70% CU-COC 800339 | H114: DEUR | I114: BALKON | J114: BALKON | K114: BS | L114: 048 | O114: Inventory | P114: FSCHW | Q114: TRUE | S114: RAL 7035 | T114: 2115 | U114: 880 | V114: 38 | X114: FALSE | Y114: FALSE | Z114: FALSE | AA114: 511.57 | AB114: 619 | AC114: =ROUND(AA114*(1-VLOOKUP(AF114,Discounts!C:E,3,0)),2) -> 511.57 | AE114: 18180 | AF114: E065
A115: 8718528025246 | B115: Artikel | C115: 8718528025246 | D115: STUKS | E115: WK048, 930x2015x38, bwh 874 | F115: FSC® cert. Hardwood | G115: V:RAL7035,vent.sl.,isogl.,solid/FJ,FSC Mix 70% CU-COC 800339 | H115: DEUR | I115: BALKON | J115: BALKON | K115: BS | L115: 048 | O115: Inventory | P115: FSCHW | Q115: TRUE | S115: RAL 7035 | T115: 2015 | U115: 930 | V115: 38 | X115: FALSE | Y115: FALSE | Z115: FALSE | AA115: 511.57 | AB115: 619 | AC115: =ROUND(AA115*(1-VLOOKUP(AF115,Discounts!C:E,3,0)),2) -> 511.57 | AE115: 18180 | AF115: E065
A116: 8718528025253 | B116: Artikel | C116: 8718528025253 | D116: STUKS | E116: WK048, 930x2115x38, bwh 874 | F116: FSC® cert. Hardwood | G116: V:RAL7035,vent.sl.,isogl.,solid/FJ,FSC Mix 70% CU-COC 800339 | H116: DEUR | I116: BALKON | J116: BALKON | K116: BS | L116: 048 | O116: Inventory | P116: FSCHW | Q116: TRUE | S116: RAL 7035 | T116: 2115 | U116: 930 | V116: 38 | X116: FALSE | Y116: FALSE | Z116: FALSE | AA116: 511.57 | AB116: 619 | AC116: =ROUND(AA116*(1-VLOOKUP(AF116,Discounts!C:E,3,0)),2) -> 511.57 | AE116: 18180 | AF116: E065
A117: 8718528220832 | B117: Artikel | C117: 8718528220832 | D117: STUKS | E117: WK048, 930x2015x38, bwh 874 | F117: FSC® cert. Hardwood NON-KOMO | G117: V:RAL7035,vent.sl.,isogl.,solid/FJ,FSC Mix 70% CU-COC 800339 | H117: DEUR | I117: BALKON | J117: BALKON | K117: BS | L117: 048 | O117: Inventory | P117: FSCHW | Q117: TRUE | S117: RAL 7035 | T117: 2015 | U117: 930 | V117: 38 | X117: FALSE | Y117: FALSE | Z117: FALSE | AA117: 511.57 | AB117: 619 | AC117: =ROUND(AA117*(1-VLOOKUP(AF117,Discounts!C:E,3,0)),2) -> 511.57 | AE117: 18180 | AF117: E065
A118: 8718528219850 | B118: Artikel | C118: 8718528219850 | D118: STUKS | E118: WK042XL, 930x2340x38, bwh 269 | F118: PEFC-CS PHW, NON-KOMO | G118: V:RAL9010, vent.sl., isogl., solid/FJ | H118: DEUR | I118: BALKON | J118: BALKON | K118: BS | L118: 042 | O118: Inventory | P118: PHW | Q118: FALSE | S118: RAL 9010 | T118: 2340 | U118: 930 | V118: 38 | X118: TRUE | Y118: FALSE | Z118: FALSE | AA118: 467.77 | AB118: 566 | AC118: =ROUND(AA118*(1-VLOOKUP(AF118,Discounts!C:E,3,0)),2) -> 467.77 | AE118: 18240 | AF118: E055
A119: 8718528220375 | B119: Artikel | C119: 8718528220375 | D119: STUKS | E119: WK042XL, 830x2340x38, bwh 269 | F119: PEFC-CS PHW, NON-KOMO | G119: V:RAL9010, vent.sl., isogl., solid/FJ | H119: DEUR | I119: BALKON | J119: BALKON | K119: BS | L119: 042 | O119: Inventory | P119: PHW | Q119: FALSE | S119: RAL 9010 | T119: 2340 | U119: 830 | V119: 38 | X119: TRUE | Y119: FALSE | Z119: FALSE | AA119: 467.77 | AB119: 566 | AC119: =ROUND(AA119*(1-VLOOKUP(AF119,Discounts!C:E,3,0)),2) -> 467.77 | AE119: 18240 | AF119: E055
A120: 8718528022849 | B120: Artikel | C120: 8718528022849 | D120: STUKS | E120: WK043XL, 830x2340x38, bwh 374 | F120: PEFC-CS PHW | G120: V:RAL9010, vent.sl., isogl., solid/FJ | H120: DEUR | I120: BALKON | J120: BALKON | K120: BS | L120: 043 | O120: Inventory | P120: PHW | Q120: FALSE | S120: RAL 9010 | T120: 2340 | U120: 830 | V120: 38 | X120: TRUE | Y120: FALSE | Z120: FALSE | AA120: 488.43 | AB120: 591 | AC120: =ROUND(AA120*(1-VLOOKUP(AF120,Discounts!C:E,3,0)),2) -> 488.43 | AE120: 18250 | AF120: E055
A121: 8718528023037 | B121: Artikel | C121: 8718528023037 | D121: STUKS | E121: WK043XL, 930x2340x38, bwh 374 | F121: PEFC-CS PHW | G121: V:RAL9010, vent.sl., isogl., solid/FJ | H121: DEUR | I121: BALKON | J121: BALKON | K121: BS | L121: 043 | O121: Inventory | P121: PHW | Q121: FALSE | S121: RAL 9010 | T121: 2340 | U121: 930 | V121: 38 | X121: TRUE | Y121: FALSE | Z121: FALSE | AA121: 488.43 | AB121: 591 | AC121: =ROUND(AA121*(1-VLOOKUP(AF121,Discounts!C:E,3,0)),2) -> 488.43 | AE121: 18250 | AF121: E055
A122: 8718528220276 | B122: Artikel | C122: 8718528220276 | D122: STUKS | E122: WK043XL, 880x2340x38, bwh 374 | F122: PEFC-CS PHW, NON-KOMO | G122: V:RAL9010, vent.sl., isogl., solid/FJ | H122: DEUR | I122: BALKON | J122: BALKON | K122: BS | L122: 043 | O122: Inventory | P122: PHW | Q122: FALSE | S122: RAL 9010 | T122: 2340 | U122: 880 | V122: 38 | X122: TRUE | Y122: FALSE | Z122: FALSE | AA122: 488.43 | AB122: 591 | AC122: =ROUND(AA122*(1-VLOOKUP(AF122,Discounts!C:E,3,0)),2) -> 488.43 | AE122: 18250 | AF122: E055
A123: 8718528023945 | B123: Artikel | C123: 8718528023945 | D123: STUKS | E123: WK044XL, 830x2340x38, bwh 479 | F123: PEFC-CS PHW | G123: V:RAL9010, vent.sl., isogl., solid/FJ | H123: DEUR | I123: BALKON | J123: BALKON | K123: BS | L123: 044 | O123: Inventory | P123: PHW | Q123: FALSE | S123: RAL 9010 | T123: 2340 | U123: 830 | V123: 38 | X123: TRUE | Y123: FALSE | Z123: FALSE | AA123: 510.75 | AB123: 618 | AC123: =ROUND(AA123*(1-VLOOKUP(AF123,Discounts!C:E,3,0)),2) -> 510.75 | AE123: 18260 | AF123: E055
A124: 8718528023952 | B124: Artikel | C124: 8718528023952 | D124: STUKS | E124: WK044XL, 880x2340x38, bwh 479 | F124: PEFC-CS PHW | G124: V:RAL9010, vent.sl., isogl., solid/FJ | H124: DEUR | I124: BALKON | J124: BALKON | K124: BS | L124: 044 | O124: Inventory | P124: PHW | Q124: FALSE | S124: RAL 9010 | T124: 2340 | U124: 880 | V124: 38 | X124: TRUE | Y124: FALSE | Z124: FALSE | AA124: 510.75 | AB124: 618 | AC124: =ROUND(AA124*(1-VLOOKUP(AF124,Discounts!C:E,3,0)),2) -> 510.75 | AE124: 18260 | AF124: E055
A125: 8718528023990 | B125: Artikel | C125: 8718528023990 | D125: STUKS | E125: WK046XL, 880x2340x38, bwh 689 | F125: PEFC-CS PHW | G125: V:RAL9010, vent.sl., isogl., solid/FJ | H125: DEUR | I125: BALKON | J125: BALKON | K125: BS | L125: 046 | O125: Inventory | P125: PHW | Q125: FALSE | S125: RAL 9010 | T125: 2340 | U125: 880 | V125: 38 | X125: TRUE | Y125: FALSE | Z125: FALSE | AA125: 552.07 | AB125: 668 | AC125: =ROUND(AA125*(1-VLOOKUP(AF125,Discounts!C:E,3,0)),2) -> 552.07 | AE125: 18270 | AF125: E055
A126: 8718528023471 | B126: Artikel | C126: 8718528023471 | D126: STUKS | E126: WK048XL, 880x2340x38, bwh 899 | F126: PEFC-CS PHW | G126: V:RAL9010, vent.sl., isogl., solid/FJ | H126: DEUR | I126: BALKON | J126: BALKON | K126: BS | L126: 048 | O126: Inventory | P126: PHW | Q126: FALSE | S126: RAL 9010 | T126: 2340 | U126: 880 | V126: 38 | X126: TRUE | Y126: FALSE | Z126: FALSE | AA126: 591.74 | AB126: 716 | AC126: =ROUND(AA126*(1-VLOOKUP(AF126,Discounts!C:E,3,0)),2) -> 591.74 | AE126: 18280 | AF126: E055
A127: 8718528220245 | B127: Artikel | C127: 8718528220245 | D127: STUKS | E127: WK048XL, 930x2340x38, bwh 899 | F127: PEFC-CS PHW, NON-KOMO | G127: V:RAL9010, vent.sl., isogl., solid/FJ | H127: DEUR | I127: BALKON | J127: BALKON | K127: BS | L127: 048 | O127: Inventory | P127: PHW | Q127: FALSE | S127: RAL 9010 | T127: 2340 | U127: 930 | V127: 38 | X127: TRUE | Y127: FALSE | Z127: FALSE | AA127: 591.74 | AB127: 716 | AC127: =ROUND(AA127*(1-VLOOKUP(AF127,Discounts!C:E,3,0)),2) -> 591.74 | AE127: 18280 | AF127: E055
A128: 8718528220429 | B128: Artikel | C128: 8718528220429 | D128: STUKS | E128: WK048XL, 880x2340x38, bwh 899 | F128: PEFC-CS PHW, NON-KOMO | G128: V:RAL9010, vent.sl., isogl., solid/FJ | H128: DEUR | I128: BALKON | J128: BALKON | K128: BS | L128: 048 | O128: Inventory | P128: PHW | Q128: FALSE | S128: RAL 9010 | T128: 2340 | U128: 880 | V128: 38 | X128: TRUE | Y128: FALSE | Z128: FALSE | AA128: 591.74 | AB128: 716 | AC128: =ROUND(AA128*(1-VLOOKUP(AF128,Discounts!C:E,3,0)),2) -> 591.74 | AE128: 18280 | AF128: E055
A129: 8718528025345 | B129: Artikel | C129: 8718528025345 | D129: STUKS | E129: WK042XL, 830x2340x38, bwh 269 | F129: FSC® cert. Premium Hardwood | G129: V:RAL9010, vent.sl., isogl., FSC Mix 70% CU-COC 800339 | H129: DEUR | I129: BALKON | J129: BALKON | K129: BS | L129: 042 | O129: Inventory | P129: FSCPHW | Q129: TRUE | S129: RAL 9010 | T129: 2340 | U129: 830 | V129: 38 | X129: TRUE | Y129: FALSE | Z129: FALSE | AA129: 526.45 | AB129: 637 | AC129: =ROUND(AA129*(1-VLOOKUP(AF129,Discounts!C:E,3,0)),2) -> 526.45 | AE129: 18290 | AF129: E075
A130: 8718528025352 | B130: Artikel | C130: 8718528025352 | D130: STUKS | E130: WK042XL, 880x2340x38, bwh 269 | F130: FSC® cert. Premium Hardwood | G130: V:RAL9010, vent.sl., isogl., FSC Mix 70% CU-COC 800339 | H130: DEUR | I130: BALKON | J130: BALKON | K130: BS | L130: 042 | O130: Inventory | P130: FSCPHW | Q130: TRUE | S130: RAL 9010 | T130: 2340 | U130: 880 | V130: 38 | X130: TRUE | Y130: FALSE | Z130: FALSE | AA130: 526.45 | AB130: 637 | AC130: =ROUND(AA130*(1-VLOOKUP(AF130,Discounts!C:E,3,0)),2) -> 526.45 | AE130: 18290 | AF130: E075
A131: 8718528025369 | B131: Artikel | C131: 8718528025369 | D131: STUKS | E131: WK042XL, 930x2340x38, bwh 269 | F131: FSC® cert. Premium Hardwood | G131: V:RAL9010, vent.sl., isogl., FSC Mix 70% CU-COC 800339 | H131: DEUR | I131: BALKON | J131: BALKON | K131: BS | L131: 042 | O131: Inventory | P131: FSCPHW | Q131: TRUE | S131: RAL 9010 | T131: 2340 | U131: 930 | V131: 38 | X131: TRUE | Y131: FALSE | Z131: FALSE | AA131: 526.45 | AB131: 637 | AC131: =ROUND(AA131*(1-VLOOKUP(AF131,Discounts!C:E,3,0)),2) -> 526.45 | AE131: 18290 | AF131: E075
A132: 8718528024584 | B132: Artikel | C132: 8718528024584 | D132: STUKS | E132: WK043XL, 830x2340x38, bwh 374 | F132: FSC® cert. Premium Hardwood | G132: V:RAL9010, vent.sl., isogl., FSC Mix 70% CU-COC 800339 | H132: DEUR | I132: BALKON | J132: BALKON | K132: BS | L132: 043 | O132: Inventory | P132: FSCPHW | Q132: TRUE | S132: RAL 9010 | T132: 2340 | U132: 830 | V132: 38 | X132: TRUE | Y132: FALSE | Z132: FALSE | AA132: 549.59 | AB132: 665 | AC132: =ROUND(AA132*(1-VLOOKUP(AF132,Discounts!C:E,3,0)),2) -> 549.59 | AE132: 18300 | AF132: E075
A133: 8718528024591 | B133: Artikel | C133: 8718528024591 | D133: STUKS | E133: WK043XL, 880x2340x38, bwh 374 | F133: FSC® cert. Premium Hardwood | G133: V:RAL9010, vent.sl., isogl., FSC Mix 70% CU-COC 800339 | H133: DEUR | I133: BALKON | J133: BALKON | K133: BS | L133: 043 | O133: Inventory | P133: FSCPHW | Q133: TRUE | S133: RAL 9010 | T133: 2340 | U133: 880 | V133: 38 | X133: TRUE | Y133: FALSE | Z133: FALSE | AA133: 549.59 | AB133: 665 | AC133: =ROUND(AA133*(1-VLOOKUP(AF133,Discounts!C:E,3,0)),2) -> 549.59 | AE133: 18300 | AF133: E075
A134: 8718528024607 | B134: Artikel | C134: 8718528024607 | D134: STUKS | E134: WK043XL, 930x2340x38, bwh 374 | F134: FSC® cert. Premium Hardwood | G134: V:RAL9010, vent.sl., isogl., FSC Mix 70% CU-COC 800339 | H134: DEUR | I134: BALKON | J134: BALKON | K134: BS | L134: 043 | O134: Inventory | P134: FSCPHW | Q134: TRUE | S134: RAL 9010 | T134: 2340 | U134: 930 | V134: 38 | X134: TRUE | Y134: FALSE | Z134: FALSE | AA134: 549.59 | AB134: 665 | AC134: =ROUND(AA134*(1-VLOOKUP(AF134,Discounts!C:E,3,0)),2) -> 549.59 | AE134: 18300 | AF134: E075
A135: 8718528025437 | B135: Artikel | C135: 8718528025437 | D135: STUKS | E135: WK044XL, 830x2340x38, bwh 479 | F135: FSC® cert. Premium Hardwood | G135: V:RAL9010, vent.sl., isogl., FSC Mix 70% CU-COC 800339 | H135: DEUR | I135: BALKON | J135: BALKON | K135: BS | L135: 044 | O135: Inventory | P135: FSCPHW | Q135: TRUE | S135: RAL 9010 | T135: 2340 | U135: 830 | V135: 38 | X135: TRUE | Y135: FALSE | Z135: FALSE | AA135: 575.21 | AB135: 696 | AC135: =ROUND(AA135*(1-VLOOKUP(AF135,Discounts!C:E,3,0)),2) -> 575.21 | AE135: 18310 | AF135: E075
A136: 8718528025444 | B136: Artikel | C136: 8718528025444 | D136: STUKS | E136: WK044XL, 880x2340x38, bwh 479 | F136: FSC® cert. Premium Hardwood | G136: V:RAL9010, vent.sl., isogl., FSC Mix 70% CU-COC 800339 | H136: DEUR | I136: BALKON | J136: BALKON | K136: BS | L136: 044 | O136: Inventory | P136: FSCPHW | Q136: TRUE | S136: RAL 9010 | T136: 2340 | U136: 880 | V136: 38 | X136: TRUE | Y136: FALSE | Z136: FALSE | AA136: 575.21 | AB136: 696 | AC136: =ROUND(AA136*(1-VLOOKUP(AF136,Discounts!C:E,3,0)),2) -> 575.21 | AE136: 18310 | AF136: E075
A137: 8718528025451 | B137: Artikel | C137: 8718528025451 | D137: STUKS | E137: WK044XL, 930x2340x38, bwh 479 | F137: FSC® cert. Premium Hardwood | G137: V:RAL9010, vent.sl., isogl., FSC Mix 70% CU-COC 800339 | H137: DEUR | I137: BALKON | J137: BALKON | K137: BS | L137: 044 | O137: Inventory | P137: FSCPHW | Q137: TRUE | S137: RAL 9010 | T137: 2340 | U137: 930 | V137: 38 | X137: TRUE | Y137: FALSE | Z137: FALSE | AA137: 575.21 | AB137: 696 | AC137: =ROUND(AA137*(1-VLOOKUP(AF137,Discounts!C:E,3,0)),2) -> 575.21 | AE137: 18310 | AF137: E075
A138: 8718528024676 | B138: Artikel | C138: 8718528024676 | D138: STUKS | E138: WK046XL, 880x2340x38, bwh 689 | F138: FSC® cert. Premium Hardwood | G138: V:RAL9010, vent.sl., isogl., FSC Mix 70% CU-COC 800339 | H138: DEUR | I138: BALKON | J138: BALKON | K138: BS | L138: 046 | O138: Inventory | P138: FSCPHW | Q138: TRUE | S138: RAL 9010 | T138: 2340 | U138: 880 | V138: 38 | X138: TRUE | Y138: FALSE | Z138: FALSE | AA138: 622.32 | AB138: 753 | AC138: =ROUND(AA138*(1-VLOOKUP(AF138,Discounts!C:E,3,0)),2) -> 622.32 | AE138: 18320 | AF138: E075
A139: 8718528024683 | B139: Artikel | C139: 8718528024683 | D139: STUKS | E139: WK046XL, 930x2340x38, bwh 689 | F139: FSC® cert. Premium Hardwood | G139: V:RAL9010, vent.sl., isogl., FSC Mix 70% CU-COC 800339 | H139: DEUR | I139: BALKON | J139: BALKON | K139: BS | L139: 046 | O139: Inventory | P139: FSCPHW | Q139: TRUE | S139: RAL 9010 | T139: 2340 | U139: 930 | V139: 38 | X139: TRUE | Y139: FALSE | Z139: FALSE | AA139: 622.32 | AB139: 753 | AC139: =ROUND(AA139*(1-VLOOKUP(AF139,Discounts!C:E,3,0)),2) -> 622.32 | AE139: 18320 | AF139: E075
A140: 8718528024751 | B140: Artikel | C140: 8718528024751 | D140: STUKS | E140: WK048XL, 880x2340x38, bwh 899 | F140: FSC® cert. Premium Hardwood | G140: V:RAL9010, vent.sl., isogl., FSC Mix 70% CU-COC 800339 | H140: DEUR | I140: BALKON | J140: BALKON | K140: BS | L140: 048 | O140: Inventory | P140: FSCPHW | Q140: TRUE | S140: RAL 9010 | T140: 2340 | U140: 880 | V140: 38 | X140: TRUE | Y140: FALSE | Z140: FALSE | AA140: 670.25 | AB140: 811 | AC140: =ROUND(AA140*(1-VLOOKUP(AF140,Discounts!C:E,3,0)),2) -> 670.25 | AE140: 18330 | AF140: E075
A141: 8718528024768 | B141: Artikel | C141: 8718528024768 | D141: STUKS | E141: WK048XL, 930x2340x38, bwh 899 | F141: FSC® cert. Premium Hardwood | G141: V:RAL9010, vent.sl., isogl., FSC Mix 70% CU-COC 800339 | H141: DEUR | I141: BALKON | J141: BALKON | K141: BS | L141: 048 | O141: Inventory | P141: FSCPHW | Q141: TRUE | S141: RAL 9010 | T141: 2340 | U141: 930 | V141: 38 | X141: TRUE | Y141: FALSE | Z141: FALSE | AA141: 670.25 | AB141: 811 | AC141: =ROUND(AA141*(1-VLOOKUP(AF141,Discounts!C:E,3,0)),2) -> 670.25 | AE141: 18330 | AF141: E075
A142: 8718528024911 | B142: Artikel | C142: 8718528024911 | D142: STUKS | E142: WK042XL, 830x2340x38, bwh 269 | F142: FSC® cert. Hardwood | G142: V:RAL7035,vent.sl.,isogl.,solid/FJ,FSC Mix 70% CU-COC 800339 | H142: DEUR | I142: BALKON | J142: BALKON | K142: BS | L142: 042 | O142: Inventory | P142: FSCHW | Q142: TRUE | S142: RAL 7035 | T142: 2340 | U142: 830 | V142: 38 | X142: TRUE | Y142: FALSE | Z142: FALSE | AA142: 440.5 | AB142: 533 | AC142: =ROUND(AA142*(1-VLOOKUP(AF142,Discounts!C:E,3,0)),2) -> 440.5 | AE142: 18340 | AF142: E065
A143: 8718528024928 | B143: Artikel | C143: 8718528024928 | D143: STUKS | E143: WK042XL, 880x2340x38, bwh 269 | F143: FSC® cert. Hardwood | G143: V:RAL7035,vent.sl.,isogl.,solid/FJ,FSC Mix 70% CU-COC 800339 | H143: DEUR | I143: BALKON | J143: BALKON | K143: BS | L143: 042 | O143: Inventory | P143: FSCHW | Q143: TRUE | S143: RAL 7035 | T143: 2340 | U143: 880 | V143: 38 | X143: TRUE | Y143: FALSE | Z143: FALSE | AA143: 440.5 | AB143: 533 | AC143: =ROUND(AA143*(1-VLOOKUP(AF143,Discounts!C:E,3,0)),2) -> 440.5 | AE143: 18340 | AF143: E065
A144: 8718528024935 | B144: Artikel | C144: 8718528024935 | D144: STUKS | E144: WK042XL, 930x2340x38, bwh 269 | F144: FSC® cert. Hardwood | G144: V:RAL7035,vent.sl.,isogl.,solid/FJ,FSC Mix 70% CU-COC 800339 | H144: DEUR | I144: BALKON | J144: BALKON | K144: BS | L144: 042 | O144: Inventory | P144: FSCHW | Q144: TRUE | S144: RAL 7035 | T144: 2340 | U144: 930 | V144: 38 | X144: TRUE | Y144: FALSE | Z144: FALSE | AA144: 440.5 | AB144: 533 | AC144: =ROUND(AA144*(1-VLOOKUP(AF144,Discounts!C:E,3,0)),2) -> 440.5 | AE144: 18340 | AF144: E065
A145: 8718528025000 | B145: Artikel | C145: 8718528025000 | D145: STUKS | E145: WK043XL, 830x2340x38, bwh 374 | F145: FSC® cert. Hardwood | G145: V:RAL7035,vent.sl.,isogl.,solid/FJ,FSC Mix 70% CU-COC 800339 | H145: DEUR | I145: BALKON | J145: BALKON | K145: BS | L145: 043 | O145: Inventory | P145: FSCHW | Q145: TRUE | S145: RAL 7035 | T145: 2340 | U145: 830 | V145: 38 | X145: TRUE | Y145: FALSE | Z145: FALSE | AA145: 458.68 | AB145: 555 | AC145: =ROUND(AA145*(1-VLOOKUP(AF145,Discounts!C:E,3,0)),2) -> 458.68 | AE145: 18350 | AF145: E065
A146: 8718528025017 | B146: Artikel | C146: 8718528025017 | D146: STUKS | E146: WK043XL, 880x2340x38, bwh 374 | F146: FSC® cert. Hardwood | G146: V:RAL7035,vent.sl.,isogl.,solid/FJ,FSC Mix 70% CU-COC 800339 | H146: DEUR | I146: BALKON | J146: BALKON | K146: BS | L146: 043 | O146: Inventory | P146: FSCHW | Q146: TRUE | S146: RAL 7035 | T146: 2340 | U146: 880 | V146: 38 | X146: TRUE | Y146: FALSE | Z146: FALSE | AA146: 458.68 | AB146: 555 | AC146: =ROUND(AA146*(1-VLOOKUP(AF146,Discounts!C:E,3,0)),2) -> 458.68 | AE146: 18350 | AF146: E065
A147: 8718528025024 | B147: Artikel | C147: 8718528025024 | D147: STUKS | E147: WK043XL, 930x2340x38, bwh 374 | F147: FSC® cert. Hardwood | G147: V:RAL7035,vent.sl.,isogl.,solid/FJ,FSC Mix 70% CU-COC 800339 | H147: DEUR | I147: BALKON | J147: BALKON | K147: BS | L147: 043 | O147: Inventory | P147: FSCHW | Q147: TRUE | S147: RAL 7035 | T147: 2340 | U147: 930 | V147: 38 | X147: TRUE | Y147: FALSE | Z147: FALSE | AA147: 458.68 | AB147: 555 | AC147: =ROUND(AA147*(1-VLOOKUP(AF147,Discounts!C:E,3,0)),2) -> 458.68 | AE147: 18350 | AF147: E065
A148: 8718528025093 | B148: Artikel | C148: 8718528025093 | D148: STUKS | E148: WK044XL, 830x2340x38, bwh 479 | F148: FSC® cert. Hardwood | G148: V:RAL7035,vent.sl.,isogl.,solid/FJ,FSC Mix 70% CU-COC 800339 | H148: DEUR | I148: BALKON | J148: BALKON | K148: BS | L148: 044 | O148: Inventory | P148: FSCHW | Q148: TRUE | S148: RAL 7035 | T148: 2340 | U148: 830 | V148: 38 | X148: TRUE | Y148: FALSE | Z148: FALSE | AA148: 478.51 | AB148: 579 | AC148: =ROUND(AA148*(1-VLOOKUP(AF148,Discounts!C:E,3,0)),2) -> 478.51 | AE148: 18360 | AF148: E065
A149: 8718528025109 | B149: Artikel | C149: 8718528025109 | D149: STUKS | E149: WK044XL, 880x2340x38, bwh 479 | F149: FSC® cert. Hardwood | G149: V:RAL7035,vent.sl.,isogl.,solid/FJ,FSC Mix 70% CU-COC 800339 | H149: DEUR | I149: BALKON | J149: BALKON | K149: BS | L149: 044 | O149: Inventory | P149: FSCHW | Q149: TRUE | S149: RAL 7035 | T149: 2340 | U149: 880 | V149: 38 | X149: TRUE | Y149: FALSE | Z149: FALSE | AA149: 478.51 | AB149: 579 | AC149: =ROUND(AA149*(1-VLOOKUP(AF149,Discounts!C:E,3,0)),2) -> 478.51 | AE149: 18360 | AF149: E065
A150: 8718528025116 | B150: Artikel | C150: 8718528025116 | D150: STUKS | E150: WK044XL, 930x2340x38, bwh 479 | F150: FSC® cert. Hardwood | G150: V:RAL7035,vent.sl.,isogl.,solid/FJ,FSC Mix 70% CU-COC 800339 | H150: DEUR | I150: BALKON | J150: BALKON | K150: BS | L150: 044 | O150: Inventory | P150: FSCHW | Q150: TRUE | S150: RAL 7035 | T150: 2340 | U150: 930 | V150: 38 | X150: TRUE | Y150: FALSE | Z150: FALSE | AA150: 478.51 | AB150: 579 | AC150: =ROUND(AA150*(1-VLOOKUP(AF150,Discounts!C:E,3,0)),2) -> 478.51 | AE150: 18360 | AF150: E065
A151: 8718528025185 | B151: Artikel | C151: 8718528025185 | D151: STUKS | E151: WK046XL, 880x2340x38, bwh 689 | F151: FSC® cert. Hardwood | G151: V:RAL7035,vent.sl.,isogl.,solid/FJ,FSC Mix 70% CU-COC 800339 | H151: DEUR | I151: BALKON | J151: BALKON | K151: BS | L151: 046 | O151: Inventory | P151: FSCHW | Q151: TRUE | S151: RAL 7035 | T151: 2340 | U151: 880 | V151: 38 | X151: TRUE | Y151: FALSE | Z151: FALSE | AA151: 519.01 | AB151: 628 | AC151: =ROUND(AA151*(1-VLOOKUP(AF151,Discounts!C:E,3,0)),2) -> 519.01 | AE151: 18370 | AF151: E065
A152: 8718528025192 | B152: Artikel | C152: 8718528025192 | D152: STUKS | E152: WK046XL, 930x2340x38, bwh 689 | F152: FSC® cert. Hardwood | G152: V:RAL7035,vent.sl.,isogl.,solid/FJ,FSC Mix 70% CU-COC 800339 | H152: DEUR | I152: BALKON | J152: BALKON | K152: BS | L152: 046 | O152: Inventory | P152: FSCHW | Q152: TRUE | S152: RAL 7035 | T152: 2340 | U152: 930 | V152: 38 | X152: TRUE | Y152: FALSE | Z152: FALSE | AA152: 519.01 | AB152: 628 | AC152: =ROUND(AA152*(1-VLOOKUP(AF152,Discounts!C:E,3,0)),2) -> 519.01 | AE152: 18370 | AF152: E065
A153: 8718528025260 | B153: Artikel | C153: 8718528025260 | D153: STUKS | E153: WK048XL, 880x2340x38, bwh 899 | F153: FSC® cert. Hardwood | G153: V:RAL7035,vent.sl.,isogl.,solid/FJ,FSC Mix 70% CU-COC 800339 | H153: DEUR | I153: BALKON | J153: BALKON | K153: BS | L153: 048 | O153: Inventory | P153: FSCHW | Q153: TRUE | S153: RAL 7035 | T153: 2340 | U153: 880 | V153: 38 | X153: TRUE | Y153: FALSE | Z153: FALSE | AA153: 560.33 | AB153: 678 | AC153: =ROUND(AA153*(1-VLOOKUP(AF153,Discounts!C:E,3,0)),2) -> 560.33 | AE153: 18380 | AF153: E065
A154: 8718528025277 | B154: Artikel | C154: 8718528025277 | D154: STUKS | E154: WK048XL, 930x2340x38, bwh 899 | F154: FSC® cert. Hardwood | G154: V:RAL7035,vent.sl.,isogl.,solid/FJ,FSC Mix 70% CU-COC 800339 | H154: DEUR | I154: BALKON | J154: BALKON | K154: BS | L154: 048 | O154: Inventory | P154: FSCHW | Q154: TRUE | S154: RAL 7035 | T154: 2340 | U154: 930 | V154: 38 | X154: TRUE | Y154: FALSE | Z154: FALSE | AA154: 560.33 | AB154: 678 | AC154: =ROUND(AA154*(1-VLOOKUP(AF154,Discounts!C:E,3,0)),2) -> 560.33 | AE154: 18380 | AF154: E065
A155: 8718528220849 | B155: Artikel | C155: 8718528220849 | D155: STUKS | E155: WK048XL, 930x2340x38, bwh 899 | F155: FSC® cert. Hardwood NON-KOMO | G155: V:RAL7035,vent.sl.,isogl.,solid/FJ,FSC Mix 70% CU-COC 800339 | H155: DEUR | I155: BALKON | J155: BALKON | K155: BS | L155: 048 | O155: Inventory | P155: FSCHW | Q155: TRUE | S155: RAL 7035 | T155: 2340 | U155: 930 | V155: 38 | X155: TRUE | Y155: FALSE | Z155: FALSE | AA155: 560.33 | AB155: 678 | AC155: =ROUND(AA155*(1-VLOOKUP(AF155,Discounts!C:E,3,0)),2) -> 560.33 | AE155: 18380 | AF155: E065
A156: 8718528039038 | B156: Artikel | C156: 8718528039038 | D156: STUKS | E156: Voordeurknop Sky PVD Gold | H156: HENS | I156: BESLAG | M156: VOORDEURKNOP | N156: SKY | O156: Inventory | Q156: FALSE | T156: 0 | U156: 0 | V156: 0 | X156: FALSE | Y156: FALSE | Z156: FALSE | AA156: 145.45 | AB156: 176 | AC156: =ROUND(AA156*(1-VLOOKUP(AF156,Discounts!C:E,3,0)),2) -> 145.45 | AE156: 24770 | AF156: O115
A157: 8718528039052 | B157: Artikel | C157: 8718528039052 | D157: STUKS | E157: Voordeurknop Mistral PVD Gold | H157: HENS | I157: BESLAG | M157: VOORDEURKNOP | N157: MISTRAL | O157: Inventory | Q157: FALSE | T157: 0 | U157: 0 | V157: 0 | X157: FALSE | Y157: FALSE | Z157: FALSE | AA157: 106.61 | AB157: 129 | AC157: =ROUND(AA157*(1-VLOOKUP(AF157,Discounts!C:E,3,0)),2) -> 106.61 | AE157: 24780 | AF157: O115
A158: 8718528039267 | B158: Artikel | C158: 8718528039267 | D158: STUKS | E158: Briefplaat River PVD Gold | H158: HENS | I158: BESLAG | M158: BRIEFPLAAT | N158: RIVER | O158: Inventory | Q158: FALSE | T158: 0 | U158: 0 | V158: 0 | X158: FALSE | Y158: FALSE | Z158: FALSE | AA158: 228.1 | AB158: 276 | AC158: =ROUND(AA158*(1-VLOOKUP(AF158,Discounts!C:E,3,0)),2) -> 228.1 | AE158: 24810 | AF158: O115
A159: 8718528038871 | B159: Artikel | C159: 8718528038871 | D159: STUKS | E159: Deurkruk Frost PVD Gold | F159: links | H159: HENS | I159: BESLAG | M159: DEURKRUK LIFETIME | N159: FROST | O159: Inventory | Q159: FALSE | T159: 0 | U159: 0 | V159: 0 | X159: FALSE | Y159: FALSE | Z159: FALSE | AA159: 123.14 | AB159: 149 | AC159: =ROUND(AA159*(1-VLOOKUP(AF159,Discounts!C:E,3,0)),2) -> 123.14 | AE159: 24830 | AF159: O115
A160: 8718528038888 | B160: Artikel | C160: 8718528038888 | D160: STUKS | E160: Deurkruk Frost PVD Gold | F160: rechts | H160: HENS | I160: BESLAG | M160: DEURKRUK LIFETIME | N160: FROST | O160: Inventory | Q160: FALSE | T160: 0 | U160: 0 | V160: 0 | X160: FALSE | Y160: FALSE | Z160: FALSE | AA160: 123.14 | AB160: 149 | AC160: =ROUND(AA160*(1-VLOOKUP(AF160,Discounts!C:E,3,0)),2) -> 123.14 | AE160: 24830 | AF160: O115
A161: 8718528059029 | B161: Artikel | C161: 8718528059029 | D161: STUKS | E161: Deurkruk Breeze PVD Gold | F161: rechts | H161: HENS | I161: BESLAG | M161: DEURKRUK LIFETIME | N161: BREEZE | O161: Inventory | Q161: FALSE | T161: 0 | U161: 0 | V161: 0 | X161: FALSE | Y161: FALSE | Z161: FALSE | AA161: 89.26 | AB161: 108 | AC161: =ROUND(AA161*(1-VLOOKUP(AF161,Discounts!C:E,3,0)),2) -> 89.26 | AE161: 24840 | AF161: O115
A162: 8718528156773 | B162: Artikel | C162: 8718528156773 | D162: STUKS | E162: Deurkruk Breeze PVD Gold | F162: L/R | H162: HENS | I162: BESLAG | M162: DEURKRUK LIFETIME | N162: BREEZE | O162: Inventory | Q162: FALSE | T162: 0 | U162: 0 | V162: 0 | X162: FALSE | Y162: FALSE | Z162: FALSE | AA162: 89.26 | AB162: 108 | AC162: =ROUND(AA162*(1-VLOOKUP(AF162,Discounts!C:E,3,0)),2) -> 89.26 | AE162: 24840 | AF162: O115
A163: 8718528058831 | B163: Artikel | C163: 8718528058831 | D163: STUKS | E163: Deurkruk Bubble PVD Gold | F163: links + rechts | H163: HENS | I163: BESLAG | M163: DEURKRUK LIFETIME | N163: BUBBLE | O163: Inventory | Q163: FALSE | T163: 0 | U163: 0 | V163: 0 | X163: FALSE | Y163: FALSE | Z163: FALSE | AA163: 85.12 | AB163: 103 | AC163: =ROUND(AA163*(1-VLOOKUP(AF163,Discounts!C:E,3,0)),2) -> 85.12 | AE163: 24850 | AF163: O115
A164: 8718528040881 | B164: Artikel | C164: 8718528040881 | D164: STUKS | E164: Deurklopper Spring PVD Gold | H164: HENS | I164: BESLAG | M164: DEURKLOPPER | N164: SPRING | O164: Inventory | Q164: FALSE | T164: 0 | U164: 0 | V164: 0 | X164: FALSE | Y164: FALSE | Z164: FALSE | AA164: 238.84 | AB164: 289 | AC164: =ROUND(AA164*(1-VLOOKUP(AF164,Discounts!C:E,3,0)),2) -> 238.84 | AE164: 24860 | AF164: O115
A165: 8718528096024 | B165: Artikel | C165: 8718528096024 | D165: STUKS | E165: Los binnenrozet PVD Gold | F165: met ktb (52 mm) | H165: HENS | I165: BESLAG | M165: LOS BINNENROZET | O165: Inventory | Q165: FALSE | T165: 0 | U165: 0 | V165: 0 | X165: FALSE | Y165: FALSE | Z165: FALSE | AA165: 26.45 | AB165: 32 | AC165: =ROUND(AA165*(1-VLOOKUP(AF165,Discounts!C:E,3,0)),2) -> 26.45 | AE165: 24870 | AF165: O115
A166: 8718528040799 | B166: Artikel | C166: 8718528040799 | D166: STUKS | E166: Beldrukker Cool PVD Gold | H166: HENS | I166: BESLAG | M166: BELDRUKKER | N166: COOL | O166: Inventory | Q166: FALSE | T166: 0 | U166: 0 | V166: 0 | X166: FALSE | Y166: FALSE | Z166: FALSE | AA166: 54.55 | AB166: 66 | AC166: =ROUND(AA166*(1-VLOOKUP(AF166,Discounts!C:E,3,0)),2) -> 54.55 | AE166: 24880 | AF166: O115
A167: 8718528040836 | B167: Artikel | C167: 8718528040836 | D167: STUKS | E167: Beldrukker Sunny PVD Gold | H167: HENS | I167: BESLAG | M167: BELDRUKKER | N167: SUNNY | O167: Inventory | Q167: FALSE | T167: 0 | U167: 0 | V167: 0 | X167: FALSE | Y167: FALSE | Z167: FALSE | AA167: 54.55 | AB167: 66 | AC167: =ROUND(AA167*(1-VLOOKUP(AF167,Discounts!C:E,3,0)),2) -> 54.55 | AE167: 24890 | AF167: O115
A168: 8718528339701 | B168: Artikel | C168: 8718528339701 | D168: STUKS | E168: Buva deurbalk 8012 binnendr. | F168: L=2115 mm excl sluitplaat | H168: HENS | I168: SLOTEN | M168: BUVA DEURBALK | O168: Inventory | Q168: FALSE | T168: 0 | U168: 0 | V168: 0 | X168: FALSE | Y168: FALSE | Z168: FALSE | AA168: 233.06 | AB168: 282 | AC168: =ROUND(AA168*(1-VLOOKUP(AF168,Discounts!C:E,3,0)),2) -> 233.06 | AE168: 40180 | AF168: O505
A169: 8718528020449 | B169: Artikel | C169: 8718528020449 | D169: STUKS | E169: Buva deurbalk 8012 binnendr. | F169: L=2250 mm excl sluitplaat | H169: HENS | I169: SLOTEN | M169: BUVA DEURBALK | O169: Inventory | Q169: FALSE | T169: 0 | U169: 0 | V169: 0 | X169: FALSE | Y169: FALSE | Z169: FALSE | AA169: 233.06 | AB169: 282 | AC169: =ROUND(AA169*(1-VLOOKUP(AF169,Discounts!C:E,3,0)),2) -> 233.06 | AE169: 40180 | AF169: O505
A170: 8718528020456 | B170: Artikel | C170: 8718528020456 | D170: STUKS | E170: Buva deurbalk 8012 binnendr. | F170: L=2400 mm excl sluitplaat | H170: HENS | I170: SLOTEN | M170: BUVA DEURBALK | O170: Inventory | Q170: FALSE | T170: 0 | U170: 0 | V170: 0 | X170: FALSE | Y170: FALSE | Z170: FALSE | AA170: 233.06 | AB170: 282 | AC170: =ROUND(AA170*(1-VLOOKUP(AF170,Discounts!C:E,3,0)),2) -> 233.06 | AE170: 40180 | AF170: O505
A171: 8718528020463 | B171: Artikel | C171: 8718528020463 | D171: STUKS | E171: Buva deurbalk 8034 buitendr. | F171: L=2073 mm excl sluitplaat | H171: HENS | I171: SLOTEN | M171: BUVA DEURBALK | O171: Inventory | Q171: FALSE | T171: 0 | U171: 0 | V171: 0 | X171: FALSE | Y171: FALSE | Z171: FALSE | AA171: 233.06 | AB171: 282 | AC171: =ROUND(AA171*(1-VLOOKUP(AF171,Discounts!C:E,3,0)),2) -> 233.06 | AE171: 40180 | AF171: O505
A172: 8718528020470 | B172: Artikel | C172: 8718528020470 | D172: STUKS | E172: Buva deurbalk 8034 buitendr. | F172: L=2250 mm excl sluitplaat | H172: HENS | I172: SLOTEN | M172: BUVA DEURBALK | O172: Inventory | Q172: FALSE | T172: 0 | U172: 0 | V172: 0 | X172: FALSE | Y172: FALSE | Z172: FALSE | AA172: 233.06 | AB172: 282 | AC172: =ROUND(AA172*(1-VLOOKUP(AF172,Discounts!C:E,3,0)),2) -> 233.06 | AE172: 40180 | AF172: O505
A173: 8718528020487 | B173: Artikel | C173: 8718528020487 | D173: STUKS | E173: Buva deurbalk 8034 buitendr. | F173: L=2400 mm excl sluitplaat | H173: HENS | I173: SLOTEN | M173: BUVA DEURBALK | O173: Inventory | Q173: FALSE | T173: 0 | U173: 0 | V173: 0 | X173: FALSE | Y173: FALSE | Z173: FALSE | AA173: 233.06 | AB173: 282 | AC173: =ROUND(AA173*(1-VLOOKUP(AF173,Discounts!C:E,3,0)),2) -> 233.06 | AE173: 40180 | AF173: O505
A174: 8718528020494 | B174: Artikel | C174: 8718528020494 | D174: STUKS | E174: Buva deurbalk 8034 buitendr. | F174: L=2600 mm excl sluitplaat | H174: HENS | I174: SLOTEN | M174: BUVA DEURBALK | O174: Inventory | Q174: FALSE | T174: 0 | U174: 0 | V174: 0 | X174: FALSE | Y174: FALSE | Z174: FALSE | AA174: 233.06 | AB174: 282 | AC174: =ROUND(AA174*(1-VLOOKUP(AF174,Discounts!C:E,3,0)),2) -> 233.06 | AE174: 40180 | AF174: O505
A175: 8718528020500 | B175: Artikel | C175: 8718528020500 | D175: STUKS | E175: Buva duoslot tbv L1/L3 | H175: HENS | I175: SLOTEN | J175: LUXBUITEN | M175: SLOT | N175: DUO SLOT | O175: Inventory | Q175: FALSE | T175: 0 | U175: 0 | V175: 0 | X175: FALSE | Y175: FALSE | Z175: FALSE | AA175: 269.42 | AB175: 326 | AC175: =ROUND(AA175*(1-VLOOKUP(AF175,Discounts!C:E,3,0)),2) -> 269.42 | AE175: 40650 | AF175: O505
A176: 8718528020517 | B176: Artikel | C176: 8718528020517 | D176: STUKS | E176: Buva duoslot tbv R2/R4 | H176: HENS | I176: SLOTEN | J176: LUXBUITEN | M176: SLOT | N176: DUO SLOT | O176: Inventory | Q176: FALSE | T176: 0 | U176: 0 | V176: 0 | X176: FALSE | Y176: FALSE | Z176: FALSE | AA176: 269.42 | AB176: 326 | AC176: =ROUND(AA176*(1-VLOOKUP(AF176,Discounts!C:E,3,0)),2) -> 269.42 | AE176: 40650 | AF176: O505
A177: 8718528232002 | B177: Artikel | C177: 8718528232002 | D177: STUKS | E177: MultiFin Gen2 F20-55-72 SB | F177: vpl 1772 afg.dr 2 + 4 | H177: HENS | I177: SLOTEN | J177: LUXBUITEN | M177: SLOT | N177: BUVA 6220/7220 SB | O177: Inventory | Q177: FALSE | T177: 0 | U177: 0 | V177: 0 | X177: FALSE | Y177: FALSE | Z177: FALSE | AA177: 143.8 | AB177: 174 | AC177: =ROUND(AA177*(1-VLOOKUP(AF177,Discounts!C:E,3,0)),2) -> 143.8 | AE177: 40750 | AF177: O500
A178: 8718528232026 | B178: Artikel | C178: 8718528232026 | D178: STUKS | E178: MultiFin Gen2 F20-55-72 SB | F178: vpl 1772 afg.dr 1 + 3 | H178: HENS | I178: SLOTEN | J178: LUXBUITEN | M178: SLOT | N178: BUVA 6220/7220 SB | O178: Inventory | Q178: FALSE | T178: 0 | U178: 0 | V178: 0 | X178: FALSE | Y178: FALSE | Z178: FALSE | AA178: 143.8 | AB178: 174 | AC178: =ROUND(AA178*(1-VLOOKUP(AF178,Discounts!C:E,3,0)),2) -> 143.8 | AE178: 40750 | AF178: O500
A179: 8718528232088 | B179: Artikel | C179: 8718528232088 | D179: STUKS | E179: MultiFin Gen2 F20-55-72 SB | F179: vpl 2090 afg.dr 2 + 4 | H179: HENS | I179: SLOTEN | J179: LUXBUITEN | M179: SLOT | N179: BUVA 6220/7220 SB | O179: Inventory | Q179: FALSE | T179: 0 | U179: 0 | V179: 0 | X179: FALSE | Y179: FALSE | Z179: FALSE | AA179: 143.8 | AB179: 174 | AC179: =ROUND(AA179*(1-VLOOKUP(AF179,Discounts!C:E,3,0)),2) -> 143.8 | AE179: 40750 | AF179: O500
A180: 8718528232101 | B180: Artikel | C180: 8718528232101 | D180: STUKS | E180: MultiFin Gen2 F20-55-72 SB | F180: vpl 2090 afg.dr 1 + 3 | H180: HENS | I180: SLOTEN | J180: LUXBUITEN | M180: SLOT | N180: BUVA 6220/7220 SB | O180: Inventory | Q180: FALSE | T180: 0 | U180: 0 | V180: 0 | X180: FALSE | Y180: FALSE | Z180: FALSE | AA180: 143.8 | AB180: 174 | AC180: =ROUND(AA180*(1-VLOOKUP(AF180,Discounts!C:E,3,0)),2) -> 143.8 | AE180: 40750 | AF180: O500
A181: 8718528232163 | B181: Artikel | C181: 8718528232163 | D181: STUKS | E181: MultiFin Gen2 F20-55-72 SB | F181: vpl 1772 afg.dr 2 + 4 | H181: HENS | I181: SLOTEN | J181: LUXBUITEN | M181: SLOT | N181: BUVA 6220/7220 SB | O181: Inventory | Q181: FALSE | T181: 0 | U181: 0 | V181: 0 | X181: FALSE | Y181: FALSE | Z181: FALSE | AA181: 143.8 | AB181: 174 | AC181: =ROUND(AA181*(1-VLOOKUP(AF181,Discounts!C:E,3,0)),2) -> 143.8 | AE181: 40750 | AF181: O500
A182: 8718528232187 | B182: Artikel | C182: 8718528232187 | D182: STUKS | E182: MultiFin Gen2 F20-55-72 SB | F182: vpl 1772 afg.dr 1 + 3 | H182: HENS | I182: SLOTEN | J182: LUXBUITEN | M182: SLOT | N182: BUVA 6220/7220 SB | O182: Inventory | Q182: FALSE | T182: 0 | U182: 0 | V182: 0 | X182: FALSE | Y182: FALSE | Z182: FALSE | AA182: 143.8 | AB182: 174 | AC182: =ROUND(AA182*(1-VLOOKUP(AF182,Discounts!C:E,3,0)),2) -> 143.8 | AE182: 40750 | AF182: O500
A183: 8718528232248 | B183: Artikel | C183: 8718528232248 | D183: STUKS | E183: MultiFin Gen2 F20-55-72 SB | F183: vpl 2090 afg.dr 2 + 4 | H183: HENS | I183: SLOTEN | J183: LUXBUITEN | M183: SLOT | N183: BUVA 6220/7220 SB | O183: Inventory | Q183: FALSE | T183: 0 | U183: 0 | V183: 0 | X183: FALSE | Y183: FALSE | Z183: FALSE | AA183: 143.8 | AB183: 174 | AC183: =ROUND(AA183*(1-VLOOKUP(AF183,Discounts!C:E,3,0)),2) -> 143.8 | AE183: 40750 | AF183: O500
A184: 8718528232262 | B184: Artikel | C184: 8718528232262 | D184: STUKS | E184: MultiFin Gen2 F20-55-72 SB | F184: vpl 2090 afg.dr 1 + 3 | H184: HENS | I184: SLOTEN | J184: LUXBUITEN | M184: SLOT | N184: BUVA 6220/7220 SB | O184: Inventory | Q184: FALSE | T184: 0 | U184: 0 | V184: 0 | X184: FALSE | Y184: FALSE | Z184: FALSE | AA184: 143.8 | AB184: 174 | AC184: =ROUND(AA184*(1-VLOOKUP(AF184,Discounts!C:E,3,0)),2) -> 143.8 | AE184: 40750 | AF184: O500
A185: 8718528157053 | B185: Artikel | C185: 8718528157053 | D185: STUKS | E185: SLIM tbv Buva 6220/7220/6320 | F185: *uitsluitend voor RDC* | G185: see drawing 5386-09 v4 | H185: ACCESSOIRES | I185: OVERIG | M185: INFREESMAL | O185: Inventory | Q185: FALSE | T185: 0 | U185: 0 | V185: 0 | X185: FALSE | Y185: FALSE | Z185: FALSE | AA185: 85.95 | AB185: 104 | AC185: =ROUND(AA185*(1-VLOOKUP(AF185,Discounts!C:E,3,0)),2) -> 85.95 | AE185: 40980 | AF185: SD/SG
A186: 8718528157060 | B186: Artikel | C186: 8718528157060 | D186: STUKS | E186: SLIM tbv Buva 6220/7220/6320 | H186: ACCESSOIRES | I186: OVERIG | M186: INFREESMAL | O186: Inventory | Q186: FALSE | T186: 0 | U186: 0 | V186: 0 | X186: FALSE | Y186: FALSE | Z186: FALSE | AA186: 85.95 | AB186: 104 | AC186: =ROUND(AA186*(1-VLOOKUP(AF186,Discounts!C:E,3,0)),2) -> 85.95 | AE186: 40980 | AF186: SD/SG
A187: 8718528231456 | B187: Artikel | C187: 8718528231456 | D187: STUKS | E187: SLIM tbv Buva 6220/7220/6320S | F187: SEN | H187: ACCESSOIRES | I187: OVERIG | M187: INFREESMAL | O187: Inventory | Q187: FALSE | T187: 0 | U187: 0 | V187: 0 | X187: FALSE | Y187: FALSE | Z187: FALSE | AA187: 85.95 | AB187: 104 | AC187: =ROUND(AA187*(1-VLOOKUP(AF187,Discounts!C:E,3,0)),2) -> 85.95 | AE187: 40980 | AF187: SD/SG
A188: 8718528231463 | B188: Artikel | C188: 8718528231463 | D188: STUKS | E188: SLIM tbv Buva 6220/7220/6320S | F188: SEN *uitsluitend voor RDC* | H188: ACCESSOIRES | I188: OVERIG | M188: INFREESMAL | O188: Inventory | Q188: FALSE | T188: 0 | U188: 0 | V188: 0 | X188: FALSE | Y188: FALSE | Z188: FALSE | AA188: 85.95 | AB188: 104 | AC188: =ROUND(AA188*(1-VLOOKUP(AF188,Discounts!C:E,3,0)),2) -> 85.95 | AE188: 40980 | AF188: SD/SG
A189: 8718528157077 | B189: Artikel | C189: 8718528157077 | D189: STUKS | E189: SLIM tbv Buva 6220 DUO | H189: ACCESSOIRES | I189: OVERIG | M189: INFREESMAL | O189: Inventory | Q189: FALSE | T189: 0 | U189: 0 | V189: 0 | X189: FALSE | Y189: FALSE | Z189: FALSE | AA189: 85.95 | AB189: 104 | AC189: =ROUND(AA189*(1-VLOOKUP(AF189,Discounts!C:E,3,0)),2) -> 85.95 | AE189: 40980 | AF189: SD/SG
A190: 8718528297858 | B190: Artikel | C190: 8718528297858 | D190: STUKS | E190: SLIM tbv Nemef 4900 | F190: *uitsluitend voor RDC* | H190: ACCESSOIRES | I190: OVERIG | M190: INFREESMAL | O190: Inventory | Q190: FALSE | T190: 0 | U190: 0 | V190: 0 | X190: FALSE | Y190: FALSE | Z190: FALSE | AA190: 85.95 | AB190: 104 | AC190: =ROUND(AA190*(1-VLOOKUP(AF190,Discounts!C:E,3,0)),2) -> 85.95 | AE190: 40980 | AF190: SD/SG
A191: 8718528231470 | B191: Artikel | C191: 8718528231470 | D191: STUKS | E191: SLIM tbv Buva Ergonomic | H191: ACCESSOIRES | I191: OVERIG | M191: INFREESMAL | O191: Inventory | Q191: FALSE | T191: 0 | U191: 0 | V191: 0 | X191: FALSE | Y191: FALSE | Z191: FALSE | AA191: 85.95 | AB191: 104 | AC191: =ROUND(AA191*(1-VLOOKUP(AF191,Discounts!C:E,3,0)),2) -> 85.95 | AE191: 40980 | AF191: SD/SG
A192: 8718528297841 | B192: Artikel | C192: 8718528297841 | D192: STUKS | E192: SLIM tbv Buva 6220/7220/6320 | F192: *uitsluitend voor RDC* | H192: ACCESSOIRES | I192: OVERIG | M192: INFREESMAL | O192: Inventory | Q192: FALSE | T192: 0 | U192: 0 | V192: 0 | X192: FALSE | Y192: FALSE | Z192: FALSE | AA192: 85.95 | AB192: 104 | AC192: =ROUND(AA192*(1-VLOOKUP(AF192,Discounts!C:E,3,0)),2) -> 85.95 | AE192: 40980 | AF192: SD/SG
A193: 8718528297865 | B193: Artikel | C193: 8718528297865 | D193: STUKS | E193: SLIM tbv KFV 4500-4900 W268 | F193: *uitsluitend voor RDC* | H193: ACCESSOIRES | I193: OVERIG | M193: INFREESMAL | O193: Inventory | Q193: FALSE | T193: 0 | U193: 0 | V193: 0 | X193: FALSE | Y193: FALSE | Z193: FALSE | AA193: 85.95 | AB193: 104 | AC193: =ROUND(AA193*(1-VLOOKUP(AF193,Discounts!C:E,3,0)),2) -> 85.95 | AE193: 40980 | AF193: SD/SG
A194: 8718528231562 | B194: Artikel | C194: 8718528231562 | D194: STUKS | E194: SLIM tbv KFV 5500S W269/W270 | H194: ACCESSOIRES | I194: OVERIG | M194: INFREESMAL | O194: Inventory | Q194: FALSE | T194: 0 | U194: 0 | V194: 0 | X194: FALSE | Y194: FALSE | Z194: FALSE | AA194: 85.95 | AB194: 104 | AC194: =ROUND(AA194*(1-VLOOKUP(AF194,Discounts!C:E,3,0)),2) -> 85.95 | AE194: 40980 | AF194: SD/SG
A195: 8718528232958 | B195: Artikel | C195: 8718528232958 | D195: STUKS | E195: SLIM tbv Buva MultiFin | F195: acc. drawing 0888-21 | H195: ACCESSOIRES | I195: OVERIG | M195: INFREESMAL | O195: Inventory | Q195: FALSE | T195: 0 | U195: 0 | V195: 0 | X195: FALSE | Y195: FALSE | Z195: FALSE | AA195: 85.95 | AB195: 104 | AC195: =ROUND(AA195*(1-VLOOKUP(AF195,Discounts!C:E,3,0)),2) -> 85.95 | AE195: 40980 | AF195: SD/SG
A196: 8718528356166 | B196: Artikel | C196: 8718528356166 | D196: STUKS | E196: Sluitkom infreesmal | F196: tbv Renovatie Multifin Gen2 | G196: sluitkom 6025+ en 2x InLine+bijzetkommen vlgs tek.5046-24 | H196: ACCESSOIRES | I196: OVERIG | M196: INFREESMAL | O196: Inventory | Q196: FALSE | T196: 0 | U196: 0 | V196: 0 | X196: FALSE | Y196: FALSE | Z196: FALSE | AA196: 85.95 | AB196: 104 | AC196: =ROUND(AA196*(1-VLOOKUP(AF196,Discounts!C:E,3,0)),2) -> 85.95 | AE196: 40980 | AF196: SD/SG
A197: 8718528115510 | B197: Artikel | C197: 8718528115510 | D197: STUKS | E197: Glas-in-lood model 1546-1 | F197: 1 ruit, d=25 mm, U=1,4 | H197: GLAS | J197: LUXBUITEN | K197: VD | L197: 1546-1 | M197: GLAS-IN-LOOD | O197: Inventory | Q197: FALSE | T197: 0 | U197: 0 | V197: 0 | X197: FALSE | Y197: FALSE | Z197: FALSE | AA197: 286.78 | AB197: 347 | AC197: =ROUND(AA197*(1-VLOOKUP(AF197,Discounts!C:E,3,0)),2) -> 286.78 | AE197: 43810 | AF197: P106
A198: 8718528157275 | B198: Artikel | C198: 8718528157275 | D198: STUKS | E198: Blank isolatieglas tbv WK1903 | F198: 880x2115 | H198: GLAS | J198: LUXBUITEN | K198: VD | L198: 1903 | M198: BLANK | N198: ISOLATIEGLAS | O198: Inventory | Q198: FALSE | T198: 0 | U198: 0 | V198: 0 | X198: FALSE | Y198: FALSE | Z198: FALSE | AA198: 136.36 | AB198: 165 | AC198: =ROUND(AA198*(1-VLOOKUP(AF198,Discounts!C:E,3,0)),2) -> 136.36 | AE198: 43840 | AF198: P106
A199: 8718528157282 | B199: Artikel | C199: 8718528157282 | D199: STUKS | E199: Blank isolatieglas tbv WK1903 | F199: 930x2115 | H199: GLAS | J199: LUXBUITEN | K199: VD | L199: 1903 | M199: BLANK | N199: ISOLATIEGLAS | O199: Inventory | Q199: FALSE | T199: 0 | U199: 0 | V199: 0 | X199: FALSE | Y199: FALSE | Z199: FALSE | AA199: 136.36 | AB199: 165 | AC199: =ROUND(AA199*(1-VLOOKUP(AF199,Discounts!C:E,3,0)),2) -> 136.36 | AE199: 43840 | AF199: P106
A200: 8718528157299 | B200: Artikel | C200: 8718528157299 | D200: STUKS | E200: Blank isolatieglas tbv WK1903 | F200: 880x2340 | H200: GLAS | J200: LUXBUITEN | K200: VD | L200: 1903 | M200: BLANK | N200: ISOLATIEGLAS | O200: Inventory | Q200: FALSE | T200: 0 | U200: 0 | V200: 0 | X200: FALSE | Y200: FALSE | Z200: FALSE | AA200: 136.36 | AB200: 165 | AC200: =ROUND(AA200*(1-VLOOKUP(AF200,Discounts!C:E,3,0)),2) -> 136.36 | AE200: 43840 | AF200: P106
... 2050 more rows

Sheet Discounts
A1: Auto+Hide+Values
C4: Code | D4: Omschrijving | E4: Korting
C5: Code | D5: Description | E5: 0%
C6: A010 | D6: Voordeuren / Duetdeuren | E6: 0%
C7: A015 | D7: Vroeg-Nederlandse modellen | E7: 0%
C8: A050 | D8: Voordeuren voorraad | E8: 0%
C9: A055 | D9: Vroeg Ned. modellen voorraad | E9: 0%
C10: A090 | D10: Specials voordeuren | E10: 0%
C11: A095 | D11: Specials Vroeg Ned. modellen | E11: 0%
C12: B010 | D12: Binnendeuren | E12: 0%
C13: B015 | D13: Maatwerk Living Doors | E13: 0%
C14: B055 | D14: Living Doors | E14: 0%
C15: B055-1 | D15: Living Doors | E15: 0%
C16: B090 | D16: Specials binnendeuren | E16: 0%
C17: B095 | D17: Specials Living Doors | E17: 0%
C18: C010 | D18: Terrasdeuren | E18: 0%
C19: C050 | D19: Terrasdeuren voorraad | E19: 0%
C20: C090 | D20: Specials terrasdeuren | E20: 0%
C21: D010 | D21: Vlakke deuren StabielGarant | E21: 0%
C22: D050 | D22: Vlakke deuren StabielGarant vr | E22: 0%
C23: D060 | D23: Alumaxx | E23: 0%
C24: E010 | D24: SD merbau maatwerk | E24: 0%
C25: E011 | D25: SD meranti en HW maatwerk | E25: 0%
C26: E012 | D26: SD 54 mm deuren Merbau | E26: 0%
C27: E013 | D27: SD 54 mm deuren niet Merbau | E27: 0%
C28: E015 | D28: SD brede stijl Merbau | E28: 0%
C29: E016 | D29: SD brede stijl niet Merbau | E29: 0%
C30: E020 | D30: SD garage Merbau 38 mm | E30: 0%
C31: E021 | D31: SD garage Merbau 54 mm | E31: 0%
C32: E022 | D32: SD garage niet Merbau 38 mm | E32: 0%
C33: E023 | D33: SD garage niet Merbau 54 mm | E33: 0%
C34: E050 | D34: SD merbau smalle stijl vrd | E34: 0%
C35: E051 | D35: SD meranti smalle stijl vrd | E35: 0%
C36: E052 | D36: SD mb sm. stijl vrd UITLOPEND | E36: 0%
C37: E055 | D37: SD merbau brede stijl vrd | E37: 0%
C38: E056 | D38: SD HW brede stijl vrd | E38: 0%
C39: E057 | D39: SD merbau brede stijl 54mm vrd | E39: 0%
C40: E058 | D40: SD HW brede stijl 54mm vrd | E40: 0%
C41: E059 | D41: SD FSC HW brede stijl 54mm vrd | E41: 0%
C42: E061 | D42: SD FSC meranti smalle st. vrd | E42: 0%
C43: E065 | D43: SD FSC meranti brede st. vrd | E43: 0%
C44: E075 | D44: SD FSC PHW brede st. vrd | E44: 0%
C45: E090 | D45: Specials SD | E45: 0%
C46: E095 | D46: SD TC geisoleerd | E46: 0%
C47: H100 | D47: Ramen | E47: 0%
C48: J100 | D48: Kozijnen | E48: 0%
C49: K600 | D49: Raamprofielen | E49: 0%
C50: LUXE | D50: WAP | E50: 0%
C51: O100 | D51: Hang- & sluitwerk sierbeslag | E51: 0%
C52: O105 | D52: Uitlopend hang&sluit | E52: 0%
C53: O110 | D53: Life Time beslag binnen | E53: 0%
C54: O115 | D54: Life time beslag buiten | E54: 0%
C55: O500 | D55: Hang- & sluitwerk sloten | E55: 0%
C56: O505 | D56: Af te monteren sluitwerk | E56: 0%
C57: P100 | D57: Glas / Speciaal hang/sluitwerk | E57: 0%
C58: P101 | D58: Ingekocht hang en sluitwerk | E58: 0%
C59: P102 | D59: Ingekocht h&s voorraad | E59: 0%
C60: P104 | D60: Glas voor stapeldorpeldeuren | E60: 0%
C61: P105 | D61: Glas voor vroeg Ned modellen | E61: 0%
C62: P106 | D62: Glas voor overige luxe deuren | E62: 0%
C63: P107 | D63: Glas / Panelen Living Doors | E63: 0%
C64: P108 | D64: Glas voor ramen | E64: 0%
C65: P109 | D65: Maatwerkglas Living Doors | E65: 0%
C66: P111 | D66: Maatwerkglas SD/SG | E66: 0%
C67: R100 | D67: Lijstwerk uit voorraad | E67: 0%
C68: SD/SG | D68: WAP | E68: 0%
C69: SERVICE | D69: Services | E69: 0%
C70: VE001 | D70: Meranti kozijn | E70: 0%
C71: VE002 | D71: FSC meranti kozijn | E71: 0%
C72: W100 | D72: Catalogi | E72: 0%
C73: W120 | D73: Diversen | E73: 0%
C74: W125 | D74: Verpakking | E74: 0%

Sheet Combination lines (hidden)
A1: Auto+Hide+values+Formulas=Sheet5,Sheet1,Sheet2
B2: Combi | C2: Brandline | D2: Qty | E2: Type | F2: Gross | G2: Discount code | H2: Disctount | I2: Nett price
B3: 350 | C3: 118210 | D3: 1 | E3: Normal | F3: €1,641.32 | G3: A015 | H3: =IFERROR(VLOOKUP(G3,Discounts!C:E,3,0),0) -> 0 | I3: =IF(E3="Normal",F3*(1-H3),SUMIF(B:B,C3,I:I)*D3) -> €1,641.32
A4: Auto | B4: 350 | C4: 134070 | D4: 1 | E4: Normal | F4: 0 | G4: LUXE | H4: =IFERROR(VLOOKUP(G4,Discounts!C:E,3,0),0) -> 0 | I4: 0
A5: Auto | B5: 370 | C5: 118220 | D5: 1 | E5: Normal | F5: 0 | G5: A015 | H5: =IFERROR(VLOOKUP(G5,Discounts!C:E,3,0),0) -> 0 | I5: 0
A6: Auto | B6: 370 | C6: 134070 | D6: 1 | E6: Normal | F6: 0 | G6: LUXE | H6: =IFERROR(VLOOKUP(G6,Discounts!C:E,3,0),0) -> 0 | I6: 0
A7: Auto | B7: 390 | C7: 118230 | D7: 1 | E7: Normal | F7: €1,641.32 | G7: A015 | H7: =IFERROR(VLOOKUP(G7,Discounts!C:E,3,0),0) -> 0 | I7: €1,641.32
A8: Auto | B8: 390 | C8: 134070 | D8: 1 | E8: Normal | F8: 0 | G8: LUXE | H8: =IFERROR(VLOOKUP(G8,Discounts!C:E,3,0),0) -> 0 | I8: 0
A9: Auto | B9: 410 | C9: 118240 | D9: 1 | E9: Normal | F9: €1,641.32 | G9: A015 | H9: =IFERROR(VLOOKUP(G9,Discounts!C:E,3,0),0) -> 0 | I9: €1,641.32
A10: Auto | B10: 410 | C10: 134070 | D10: 1 | E10: Normal | F10: 0 | G10: LUXE | H10: =IFERROR(VLOOKUP(G10,Discounts!C:E,3,0),0) -> 0 | I10: 0
A11: Auto | B11: 430 | C11: 118250 | D11: 1 | E11: Normal | F11: €1,641.32 | G11: A015 | H11: =IFERROR(VLOOKUP(G11,Discounts!C:E,3,0),0) -> 0 | I11: €1,641.32
A12: Auto | B12: 430 | C12: 134070 | D12: 1 | E12: Normal | F12: 0 | G12: LUXE | H12: =IFERROR(VLOOKUP(G12,Discounts!C:E,3,0),0) -> 0 | I12: 0
A13: Auto | B13: 450 | C13: 118260 | D13: 1 | E13: Normal | F13: €1,641.32 | G13: A015 | H13: =IFERROR(VLOOKUP(G13,Discounts!C:E,3,0),0) -> 0 | I13: €1,641.32
A14: Auto | B14: 450 | C14: 134070 | D14: 1 | E14: Normal | F14: 0 | G14: LUXE | H14: =IFERROR(VLOOKUP(G14,Discounts!C:E,3,0),0) -> 0 | I14: 0
A15: Auto | B15: 470 | C15: 118270 | D15: 1 | E15: Normal | F15: 0 | G15: A015 | H15: =IFERROR(VLOOKUP(G15,Discounts!C:E,3,0),0) -> 0 | I15: 0
A16: Auto | B16: 470 | C16: 134070 | D16: 1 | E16: Normal | F16: 0 | G16: LUXE | H16: =IFERROR(VLOOKUP(G16,Discounts!C:E,3,0),0) -> 0 | I16: 0
A17: Auto | B17: 490 | C17: 118280 | D17: 1 | E17: Normal | F17: 0 | G17: A015 | H17: =IFERROR(VLOOKUP(G17,Discounts!C:E,3,0),0) -> 0 | I17: 0
A18: Auto | B18: 490 | C18: 134070 | D18: 1 | E18: Normal | F18: 0 | G18: LUXE | H18: =IFERROR(VLOOKUP(G18,Discounts!C:E,3,0),0) -> 0 | I18: 0
A19: Auto | B19: 510 | C19: 118290 | D19: 1 | E19: Normal | F19: 0 | G19: A015 | H19: =IFERROR(VLOOKUP(G19,Discounts!C:E,3,0),0) -> 0 | I19: 0
A20: Auto | B20: 510 | C20: 134070 | D20: 1 | E20: Normal | F20: 0 | G20: LUXE | H20: =IFERROR(VLOOKUP(G20,Discounts!C:E,3,0),0) -> 0 | I20: 0
A21: Auto | B21: 530 | C21: 118300 | D21: 1 | E21: Normal | F21: €2,237.19 | G21: A015 | H21: =IFERROR(VLOOKUP(G21,Discounts!C:E,3,0),0) -> 0 | I21: €2,237.19
A22: Auto | B22: 530 | C22: 134070 | D22: 1 | E22: Normal | F22: 0 | G22: LUXE | H22: =IFERROR(VLOOKUP(G22,Discounts!C:E,3,0),0) -> 0 | I22: 0
A23: Auto | B23: 550 | C23: 118310 | D23: 1 | E23: Normal | F23: €2,124.79 | G23: A015 | H23: =IFERROR(VLOOKUP(G23,Discounts!C:E,3,0),0) -> 0 | I23: €2,124.79
A24: Auto | B24: 550 | C24: 134070 | D24: 1 | E24: Normal | F24: 0 | G24: LUXE | H24: =IFERROR(VLOOKUP(G24,Discounts!C:E,3,0),0) -> 0 | I24: 0
A25: Auto | B25: 570 | C25: 118320 | D25: 1 | E25: Normal | F25: €2,220.66 | G25: A015 | H25: =IFERROR(VLOOKUP(G25,Discounts!C:E,3,0),0) -> 0 | I25: €2,220.66
A26: Auto | B26: 570 | C26: 134070 | D26: 1 | E26: Normal | F26: 0 | G26: LUXE | H26: =IFERROR(VLOOKUP(G26,Discounts!C:E,3,0),0) -> 0 | I26: 0
A27: Auto | B27: 590 | C27: 118330 | D27: 1 | E27: Normal | F27: €1,674.38 | G27: A015 | H27: =IFERROR(VLOOKUP(G27,Discounts!C:E,3,0),0) -> 0 | I27: €1,674.38
A28: Auto | B28: 590 | C28: 134070 | D28: 1 | E28: Normal | F28: 0 | G28: LUXE | H28: =IFERROR(VLOOKUP(G28,Discounts!C:E,3,0),0) -> 0 | I28: 0
A29: Auto | B29: 610 | C29: 118340 | D29: 1 | E29: Normal | F29: €1,674.38 | G29: A015 | H29: =IFERROR(VLOOKUP(G29,Discounts!C:E,3,0),0) -> 0 | I29: €1,674.38
A30: Auto | B30: 610 | C30: 134070 | D30: 1 | E30: Normal | F30: 0 | G30: LUXE | H30: =IFERROR(VLOOKUP(G30,Discounts!C:E,3,0),0) -> 0 | I30: 0
A31: Auto | B31: 630 | C31: 118350 | D31: 1 | E31: Normal | F31: €1,674.38 | G31: A015 | H31: =IFERROR(VLOOKUP(G31,Discounts!C:E,3,0),0) -> 0 | I31: €1,674.38
A32: Auto | B32: 630 | C32: 134070 | D32: 1 | E32: Normal | F32: 0 | G32: LUXE | H32: =IFERROR(VLOOKUP(G32,Discounts!C:E,3,0),0) -> 0 | I32: 0
A33: Auto | B33: 650 | C33: 118360 | D33: 1 | E33: Normal | F33: €1,980.99 | G33: A015 | H33: =IFERROR(VLOOKUP(G33,Discounts!C:E,3,0),0) -> 0 | I33: €1,980.99
A34: Auto | B34: 650 | C34: 134070 | D34: 1 | E34: Normal | F34: 0 | G34: LUXE | H34: =IFERROR(VLOOKUP(G34,Discounts!C:E,3,0),0) -> 0 | I34: 0
A35: Auto | B35: 670 | C35: 118370 | D35: 1 | E35: Normal | F35: €2,090.08 | G35: A015 | H35: =IFERROR(VLOOKUP(G35,Discounts!C:E,3,0),0) -> 0 | I35: €2,090.08
A36: Auto | B36: 670 | C36: 134070 | D36: 1 | E36: Normal | F36: 0 | G36: LUXE | H36: =IFERROR(VLOOKUP(G36,Discounts!C:E,3,0),0) -> 0 | I36: 0
A37: Auto | B37: 690 | C37: 118380 | D37: 1 | E37: Normal | F37: 0 | G37: A015 | H37: =IFERROR(VLOOKUP(G37,Discounts!C:E,3,0),0) -> 0 | I37: 0
A38: Auto | B38: 690 | C38: 134070 | D38: 1 | E38: Normal | F38: 0 | G38: LUXE | H38: =IFERROR(VLOOKUP(G38,Discounts!C:E,3,0),0) -> 0 | I38: 0
A39: Auto | B39: 710 | C39: 118390 | D39: 1 | E39: Normal | F39: 0 | G39: A015 | H39: =IFERROR(VLOOKUP(G39,Discounts!C:E,3,0),0) -> 0 | I39: 0
A40: Auto | B40: 710 | C40: 134070 | D40: 1 | E40: Normal | F40: 0 | G40: LUXE | H40: =IFERROR(VLOOKUP(G40,Discounts!C:E,3,0),0) -> 0 | I40: 0
A41: Auto | B41: 730 | C41: 134070 | D41: 1 | E41: Normal | F41: 0 | G41: LUXE | H41: =IFERROR(VLOOKUP(G41,Discounts!C:E,3,0),0) -> 0 | I41: 0
A42: Auto | B42: 730 | C42: 134090 | D42: 1 | E42: Normal | F42: €2,615.70 | G42: A010 | H42: =IFERROR(VLOOKUP(G42,Discounts!C:E,3,0),0) -> 0 | I42: €2,615.70
A43: Auto | B43: 750 | C43: 134070 | D43: 1 | E43: Normal | F43: 0 | G43: LUXE | H43: =IFERROR(VLOOKUP(G43,Discounts!C:E,3,0),0) -> 0 | I43: 0
A44: Auto | B44: 750 | C44: 134100 | D44: 1 | E44: Normal | F44: 0 | G44: A010 | H44: =IFERROR(VLOOKUP(G44,Discounts!C:E,3,0),0) -> 0 | I44: 0
A45: Auto | B45: 770 | C45: 134070 | D45: 1 | E45: Normal | F45: 0 | G45: LUXE | H45: =IFERROR(VLOOKUP(G45,Discounts!C:E,3,0),0) -> 0 | I45: 0
A46: Auto | B46: 770 | C46: 134110 | D46: 1 | E46: Normal | F46: 0 | G46: A010 | H46: =IFERROR(VLOOKUP(G46,Discounts!C:E,3,0),0) -> 0 | I46: 0
A47: Auto | B47: 790 | C47: 118400 | D47: 1 | E47: Normal | F47: €2,007.44 | G47: A010 | H47: =IFERROR(VLOOKUP(G47,Discounts!C:E,3,0),0) -> 0 | I47: €2,007.44
A48: Auto | B48: 790 | C48: 134070 | D48: 1 | E48: Normal | F48: 0 | G48: LUXE | H48: =IFERROR(VLOOKUP(G48,Discounts!C:E,3,0),0) -> 0 | I48: 0
A49: Auto | B49: 810 | C49: 118410 | D49: 1 | E49: Normal | F49: 0 | G49: A010 | H49: =IFERROR(VLOOKUP(G49,Discounts!C:E,3,0),0) -> 0 | I49: 0
A50: Auto | B50: 810 | C50: 134070 | D50: 1 | E50: Normal | F50: 0 | G50: LUXE | H50: =IFERROR(VLOOKUP(G50,Discounts!C:E,3,0),0) -> 0 | I50: 0
A51: Auto | B51: 830 | C51: 118420 | D51: 1 | E51: Normal | F51: €1,934.71 | G51: A010 | H51: =IFERROR(VLOOKUP(G51,Discounts!C:E,3,0),0) -> 0 | I51: €1,934.71
A52: Auto | B52: 830 | C52: 134070 | D52: 1 | E52: Normal | F52: 0 | G52: LUXE | H52: =IFERROR(VLOOKUP(G52,Discounts!C:E,3,0),0) -> 0 | I52: 0
A53: Auto | B53: 850 | C53: 118430 | D53: 1 | E53: Normal | F53: €1,838.02 | G53: A010 | H53: =IFERROR(VLOOKUP(G53,Discounts!C:E,3,0),0) -> 0 | I53: €1,838.02
A54: Auto | B54: 850 | C54: 134070 | D54: 1 | E54: Normal | F54: 0 | G54: LUXE | H54: =IFERROR(VLOOKUP(G54,Discounts!C:E,3,0),0) -> 0 | I54: 0
A55: Auto | B55: 870 | C55: 118440 | D55: 1 | E55: Normal | F55: €2,071.07 | G55: A010 | H55: =IFERROR(VLOOKUP(G55,Discounts!C:E,3,0),0) -> 0 | I55: €2,071.07
A56: Auto | B56: 870 | C56: 134070 | D56: 1 | E56: Normal | F56: 0 | G56: LUXE | H56: =IFERROR(VLOOKUP(G56,Discounts!C:E,3,0),0) -> 0 | I56: 0
A57: Auto | B57: 890 | C57: 118450 | D57: 1 | E57: Normal | F57: €1,742.98 | G57: A010 | H57: =IFERROR(VLOOKUP(G57,Discounts!C:E,3,0),0) -> 0 | I57: €1,742.98
A58: Auto | B58: 890 | C58: 134070 | D58: 1 | E58: Normal | F58: 0 | G58: LUXE | H58: =IFERROR(VLOOKUP(G58,Discounts!C:E,3,0),0) -> 0 | I58: 0
A59: Auto | B59: 910 | C59: 118460 | D59: 1 | E59: Normal | F59: €1,838.02 | G59: A010 | H59: =IFERROR(VLOOKUP(G59,Discounts!C:E,3,0),0) -> 0 | I59: €1,838.02
A60: Auto | B60: 910 | C60: 134070 | D60: 1 | E60: Normal | F60: 0 | G60: LUXE | H60: =IFERROR(VLOOKUP(G60,Discounts!C:E,3,0),0) -> 0 | I60: 0
A61: Auto | B61: 930 | C61: 118470 | D61: 1 | E61: Normal | F61: €2,615.70 | G61: A010 | H61: =IFERROR(VLOOKUP(G61,Discounts!C:E,3,0),0) -> 0 | I61: €2,615.70
A62: Auto | B62: 930 | C62: 134070 | D62: 1 | E62: Normal | F62: 0 | G62: LUXE | H62: =IFERROR(VLOOKUP(G62,Discounts!C:E,3,0),0) -> 0 | I62: 0
A63: Auto | B63: 950 | C63: 118480 | D63: 1 | E63: Normal | F63: 0 | G63: A010 | H63: =IFERROR(VLOOKUP(G63,Discounts!C:E,3,0),0) -> 0 | I63: 0
A64: Auto | B64: 950 | C64: 134070 | D64: 1 | E64: Normal | F64: 0 | G64: LUXE | H64: =IFERROR(VLOOKUP(G64,Discounts!C:E,3,0),0) -> 0 | I64: 0
A65: Auto | B65: 970 | C65: 118490 | D65: 1 | E65: Normal | F65: 0 | G65: A010 | H65: =IFERROR(VLOOKUP(G65,Discounts!C:E,3,0),0) -> 0 | I65: 0
A66: Auto | B66: 970 | C66: 134070 | D66: 1 | E66: Normal | F66: 0 | G66: LUXE | H66: =IFERROR(VLOOKUP(G66,Discounts!C:E,3,0),0) -> 0 | I66: 0
A67: Auto | B67: 990 | C67: 118500 | D67: 1 | E67: Normal | F67: €3,233.06 | G67: A010 | H67: =IFERROR(VLOOKUP(G67,Discounts!C:E,3,0),0) -> 0 | I67: =IF(E67="Normal",F67*(1-H67),SUMIF(B:B,C67,I:I)*D67) -> €3,233.06
A68: Auto | B68: 990 | C68: 134070 | D68: 1 | E68: Normal | F68: 0 | G68: LUXE | H68: =IFERROR(VLOOKUP(G68,Discounts!C:E,3,0),0) -> 0 | I68: 0
A69: Auto | B69: 1010 | C69: 118510 | D69: 1 | E69: Normal | F69: €2,932.23 | G69: A010 | H69: =IFERROR(VLOOKUP(G69,Discounts!C:E,3,0),0) -> 0 | I69: €2,932.23
A70: Auto | B70: 1010 | C70: 134070 | D70: 1 | E70: Normal | F70: 0 | G70: LUXE | H70: =IFERROR(VLOOKUP(G70,Discounts!C:E,3,0),0) -> 0 | I70: 0
A71: Auto | B71: 1030 | C71: 118520 | D71: 1 | E71: Normal | F71: 0 | G71: A010 | H71: =IFERROR(VLOOKUP(G71,Discounts!C:E,3,0),0) -> 0 | I71: 0
A72: Auto | B72: 1030 | C72: 134070 | D72: 1 | E72: Normal | F72: 0 | G72: LUXE | H72: =IFERROR(VLOOKUP(G72,Discounts!C:E,3,0),0) -> 0 | I72: 0
A73: Auto | B73: 1050 | C73: 118530 | D73: 1 | E73: Normal | F73: 0 | G73: A010 | H73: =IFERROR(VLOOKUP(G73,Discounts!C:E,3,0),0) -> 0 | I73: 0
A74: Auto | B74: 1050 | C74: 134070 | D74: 1 | E74: Normal | F74: 0 | G74: LUXE | H74: =IFERROR(VLOOKUP(G74,Discounts!C:E,3,0),0) -> 0 | I74: 0
A75: Auto | B75: 1070 | C75: 118540 | D75: 1 | E75: Normal | F75: 0 | G75: A010 | H75: =IFERROR(VLOOKUP(G75,Discounts!C:E,3,0),0) -> 0 | I75: 0
A76: Auto | B76: 1070 | C76: 134070 | D76: 1 | E76: Normal | F76: 0 | G76: LUXE | H76: =IFERROR(VLOOKUP(G76,Discounts!C:E,3,0),0) -> 0 | I76: 0
A77: Auto | B77: 1090 | C77: 118550 | D77: 1 | E77: Normal | F77: 0 | G77: A010 | H77: =IFERROR(VLOOKUP(G77,Discounts!C:E,3,0),0) -> 0 | I77: 0
A78: Auto | B78: 1090 | C78: 134070 | D78: 1 | E78: Normal | F78: 0 | G78: LUXE | H78: =IFERROR(VLOOKUP(G78,Discounts!C:E,3,0),0) -> 0 | I78: 0
A79: Auto | B79: 1110 | C79: 118560 | D79: 1 | E79: Normal | F79: €2,376.86 | G79: A010 | H79: =IFERROR(VLOOKUP(G79,Discounts!C:E,3,0),0) -> 0 | I79: €2,376.86
A80: Auto | B80: 1110 | C80: 134070 | D80: 1 | E80: Normal | F80: 0 | G80: LUXE | H80: =IFERROR(VLOOKUP(G80,Discounts!C:E,3,0),0) -> 0 | I80: 0
A81: Auto | B81: 1130 | C81: 118570 | D81: 1 | E81: Normal | F81: €2,241.32 | G81: A010 | H81: =IFERROR(VLOOKUP(G81,Discounts!C:E,3,0),0) -> 0 | I81: €2,241.32
A82: Auto | B82: 1130 | C82: 134070 | D82: 1 | E82: Normal | F82: 0 | G82: LUXE | H82: =IFERROR(VLOOKUP(G82,Discounts!C:E,3,0),0) -> 0 | I82: 0
A83: Auto | B83: 1150 | C83: 118580 | D83: 1 | E83: Normal | F83: €2,264.46 | G83: A010 | H83: =IFERROR(VLOOKUP(G83,Discounts!C:E,3,0),0) -> 0 | I83: €2,264.46
A84: Auto | B84: 1150 | C84: 134070 | D84: 1 | E84: Normal | F84: 0 | G84: LUXE | H84: =IFERROR(VLOOKUP(G84,Discounts!C:E,3,0),0) -> 0 | I84: 0
A85: Auto | B85: 1170 | C85: 118590 | D85: 1 | E85: Normal | F85: 0 | G85: A010 | H85: =IFERROR(VLOOKUP(G85,Discounts!C:E,3,0),0) -> 0 | I85: 0
A86: Auto | B86: 1170 | C86: 134070 | D86: 1 | E86: Normal | F86: 0 | G86: LUXE | H86: =IFERROR(VLOOKUP(G86,Discounts!C:E,3,0),0) -> 0 | I86: 0
A87: Auto | B87: 1190 | C87: 118600 | D87: 1 | E87: Normal | F87: €2,677.69 | G87: A010 | H87: =IFERROR(VLOOKUP(G87,Discounts!C:E,3,0),0) -> 0 | I87: €2,677.69
A88: Auto | B88: 1190 | C88: 134070 | D88: 1 | E88: Normal | F88: 0 | G88: LUXE | H88: =IFERROR(VLOOKUP(G88,Discounts!C:E,3,0),0) -> 0 | I88: 0
A89: Auto | B89: 1210 | C89: 118610 | D89: 1 | E89: Normal | F89: €2,474.38 | G89: A010 | H89: =IFERROR(VLOOKUP(G89,Discounts!C:E,3,0),0) -> 0 | I89: €2,474.38
A90: Auto | B90: 1210 | C90: 134070 | D90: 1 | E90: Normal | F90: 0 | G90: LUXE | H90: =IFERROR(VLOOKUP(G90,Discounts!C:E,3,0),0) -> 0 | I90: 0
A91: Auto | B91: 1230 | C91: 118620 | D91: 1 | E91: Normal | F91: 0 | G91: A010 | H91: =IFERROR(VLOOKUP(G91,Discounts!C:E,3,0),0) -> 0 | I91: 0
A92: Auto | B92: 1230 | C92: 134070 | D92: 1 | E92: Normal | F92: 0 | G92: LUXE | H92: =IFERROR(VLOOKUP(G92,Discounts!C:E,3,0),0) -> 0 | I92: 0
A93: Auto | B93: 1250 | C93: 118630 | D93: 1 | E93: Normal | F93: €2,728.93 | G93: A010 | H93: =IFERROR(VLOOKUP(G93,Discounts!C:E,3,0),0) -> 0 | I93: €2,728.93
A94: Auto | B94: 1250 | C94: 134070 | D94: 1 | E94: Normal | F94: 0 | G94: LUXE | H94: =IFERROR(VLOOKUP(G94,Discounts!C:E,3,0),0) -> 0 | I94: 0
A95: Auto | B95: 1270 | C95: 118640 | D95: 1 | E95: Normal | F95: €2,597.52 | G95: A010 | H95: =IFERROR(VLOOKUP(G95,Discounts!C:E,3,0),0) -> 0 | I95: €2,597.52
A96: Auto | B96: 1270 | C96: 134070 | D96: 1 | E96: Normal | F96: 0 | G96: LUXE | H96: =IFERROR(VLOOKUP(G96,Discounts!C:E,3,0),0) -> 0 | I96: 0
A97: Auto | B97: 1290 | C97: 118650 | D97: 1 | E97: Normal | F97: 0 | G97: A010 | H97: =IFERROR(VLOOKUP(G97,Discounts!C:E,3,0),0) -> 0 | I97: 0
A98: Auto | B98: 1290 | C98: 134070 | D98: 1 | E98: Normal | F98: 0 | G98: LUXE | H98: =IFERROR(VLOOKUP(G98,Discounts!C:E,3,0),0) -> 0 | I98: 0
A99: Auto | B99: 1310 | C99: 118660 | D99: 1 | E99: Normal | F99: €2,646.28 | G99: A010 | H99: =IFERROR(VLOOKUP(G99,Discounts!C:E,3,0),0) -> 0 | I99: €2,646.28
A100: Auto | B100: 1310 | C100: 134070 | D100: 1 | E100: Normal | F100: 0 | G100: LUXE | H100: =IFERROR(VLOOKUP(G100,Discounts!C:E,3,0),0) -> 0 | I100: 0
A101: Auto | B101: 1330 | C101: 118670 | D101: 1 | E101: Normal | F101: €2,474.38 | G101: A010 | H101: =IFERROR(VLOOKUP(G101,Discounts!C:E,3,0),0) -> 0 | I101: €2,474.38
A102: Auto | B102: 1330 | C102: 134070 | D102: 1 | E102: Normal | F102: 0 | G102: LUXE | H102: =IFERROR(VLOOKUP(G102,Discounts!C:E,3,0),0) -> 0 | I102: 0
A103: Auto | B103: 1350 | C103: 118680 | D103: 1 | E103: Normal | F103: 0 | G103: A010 | H103: =IFERROR(VLOOKUP(G103,Discounts!C:E,3,0),0) -> 0 | I103: 0
A104: Auto | B104: 1350 | C104: 134070 | D104: 1 | E104: Normal | F104: 0 | G104: LUXE | H104: =IFERROR(VLOOKUP(G104,Discounts!C:E,3,0),0) -> 0 | I104: 0
A105: Auto | B105: 1370 | C105: 118690 | D105: 1 | E105: Normal | F105: €2,728.93 | G105: A010 | H105: =IFERROR(VLOOKUP(G105,Discounts!C:E,3,0),0) -> 0 | I105: €2,728.93
A106: Auto | B106: 1370 | C106: 134070 | D106: 1 | E106: Normal | F106: 0 | G106: LUXE | H106: =IFERROR(VLOOKUP(G106,Discounts!C:E,3,0),0) -> 0 | I106: 0
A107: Auto | B107: 1390 | C107: 118700 | D107: 1 | E107: Normal | F107: €2,101.65 | G107: A010 | H107: =IFERROR(VLOOKUP(G107,Discounts!C:E,3,0),0) -> 0 | I107: €2,101.65
A108: Auto | B108: 1390 | C108: 134070 | D108: 1 | E108: Normal | F108: 0 | G108: LUXE | H108: =IFERROR(VLOOKUP(G108,Discounts!C:E,3,0),0) -> 0 | I108: 0
A109: Auto | B109: 1410 | C109: 118710 | D109: 1 | E109: Normal | F109: 0 | G109: A010 | H109: =IFERROR(VLOOKUP(G109,Discounts!C:E,3,0),0) -> 0 | I109: 0
A110: Auto | B110: 1410 | C110: 134070 | D110: 1 | E110: Normal | F110: 0 | G110: LUXE | H110: =IFERROR(VLOOKUP(G110,Discounts!C:E,3,0),0) -> 0 | I110: 0
A111: Auto | B111: 1430 | C111: 118720 | D111: 1 | E111: Normal | F111: 0 | G111: A010 | H111: =IFERROR(VLOOKUP(G111,Discounts!C:E,3,0),0) -> 0 | I111: 0
A112: Auto | B112: 1430 | C112: 134070 | D112: 1 | E112: Normal | F112: 0 | G112: LUXE | H112: =IFERROR(VLOOKUP(G112,Discounts!C:E,3,0),0) -> 0 | I112: 0
A113: Auto | B113: 1450 | C113: 118730 | D113: 1 | E113: Normal | F113: 0 | G113: A010 | H113: =IFERROR(VLOOKUP(G113,Discounts!C:E,3,0),0) -> 0 | I113: 0
A114: Auto | B114: 1450 | C114: 134070 | D114: 1 | E114: Normal | F114: 0 | G114: LUXE | H114: =IFERROR(VLOOKUP(G114,Discounts!C:E,3,0),0) -> 0 | I114: 0
A115: Auto | B115: 1470 | C115: 118740 | D115: 1 | E115: Normal | F115: 0 | G115: A010 | H115: =IFERROR(VLOOKUP(G115,Discounts!C:E,3,0),0) -> 0 | I115: 0
A116: Auto | B116: 1470 | C116: 134070 | D116: 1 | E116: Normal | F116: 0 | G116: LUXE | H116: =IFERROR(VLOOKUP(G116,Discounts!C:E,3,0),0) -> 0 | I116: 0
A117: Auto | B117: 1490 | C117: 118750 | D117: 1 | E117: Normal | F117: €2,555.37 | G117: A010 | H117: =IFERROR(VLOOKUP(G117,Discounts!C:E,3,0),0) -> 0 | I117: €2,555.37
A118: Auto | B118: 1490 | C118: 134070 | D118: 1 | E118: Normal | F118: 0 | G118: LUXE | H118: =IFERROR(VLOOKUP(G118,Discounts!C:E,3,0),0) -> 0 | I118: 0
A119: Auto | B119: 1510 | C119: 118760 | D119: 1 | E119: Normal | F119: €2,555.37 | G119: A010 | H119: =IFERROR(VLOOKUP(G119,Discounts!C:E,3,0),0) -> 0 | I119: €2,555.37
A120: Auto | B120: 1510 | C120: 134070 | D120: 1 | E120: Normal | F120: 0 | G120: LUXE | H120: =IFERROR(VLOOKUP(G120,Discounts!C:E,3,0),0) -> 0 | I120: 0
A121: Auto | B121: 1530 | C121: 118770 | D121: 1 | E121: Normal | F121: €1,885.95 | G121: A010 | H121: =IFERROR(VLOOKUP(G121,Discounts!C:E,3,0),0) -> 0 | I121: €1,885.95
A122: Auto | B122: 1530 | C122: 134070 | D122: 1 | E122: Normal | F122: 0 | G122: LUXE | H122: =IFERROR(VLOOKUP(G122,Discounts!C:E,3,0),0) -> 0 | I122: 0
A123: Auto | B123: 1550 | C123: 118780 | D123: 1 | E123: Normal | F123: €1,825.62 | G123: A010 | H123: =IFERROR(VLOOKUP(G123,Discounts!C:E,3,0),0) -> 0 | I123: €1,825.62
A124: Auto | B124: 1550 | C124: 134070 | D124: 1 | E124: Normal | F124: 0 | G124: LUXE | H124: =IFERROR(VLOOKUP(G124,Discounts!C:E,3,0),0) -> 0 | I124: 0
A125: Auto | B125: 1570 | C125: 118790 | D125: 1 | E125: Normal | F125: €1,923.97 | G125: A010 | H125: =IFERROR(VLOOKUP(G125,Discounts!C:E,3,0),0) -> 0 | I125: €1,923.97
A126: Auto | B126: 1570 | C126: 134070 | D126: 1 | E126: Normal | F126: 0 | G126: LUXE | H126: =IFERROR(VLOOKUP(G126,Discounts!C:E,3,0),0) -> 0 | I126: 0
A127: Auto | B127: 1590 | C127: 118800 | D127: 1 | E127: Normal | F127: 0 | G127: A010 | H127: =IFERROR(VLOOKUP(G127,Discounts!C:E,3,0),0) -> 0 | I127: 0
A128: Auto | B128: 1590 | C128: 134070 | D128: 1 | E128: Normal | F128: 0 | G128: LUXE | H128: =IFERROR(VLOOKUP(G128,Discounts!C:E,3,0),0) -> 0 | I128: 0
A129: Auto | B129: 1610 | C129: 118810 | D129: 1 | E129: Normal | F129: 0 | G129: A010 | H129: =IFERROR(VLOOKUP(G129,Discounts!C:E,3,0),0) -> 0 | I129: 0
A130: Auto | B130: 1610 | C130: 134070 | D130: 1 | E130: Normal | F130: 0 | G130: LUXE | H130: =IFERROR(VLOOKUP(G130,Discounts!C:E,3,0),0) -> 0 | I130: 0
A131: Auto | B131: 1630 | C131: 118820 | D131: 1 | E131: Normal | F131: 0 | G131: A010 | H131: =IFERROR(VLOOKUP(G131,Discounts!C:E,3,0),0) -> 0 | I131: =IF(E131="Normal",F131*(1-H131),SUMIF(B:B,C131,I:I)*D131) -> 0
A132: Auto | B132: 1630 | C132: 134070 | D132: 1 | E132: Normal | F132: 0 | G132: LUXE | H132: =IFERROR(VLOOKUP(G132,Discounts!C:E,3,0),0) -> 0 | I132: 0
A133: Auto | B133: 1650 | C133: 118830 | D133: 1 | E133: Normal | F133: 0 | G133: A010 | H133: =IFERROR(VLOOKUP(G133,Discounts!C:E,3,0),0) -> 0 | I133: 0
A134: Auto | B134: 1650 | C134: 134070 | D134: 1 | E134: Normal | F134: 0 | G134: LUXE | H134: =IFERROR(VLOOKUP(G134,Discounts!C:E,3,0),0) -> 0 | I134: 0
A135: Auto | B135: 1670 | C135: 118840 | D135: 1 | E135: Normal | F135: 0 | G135: A010 | H135: =IFERROR(VLOOKUP(G135,Discounts!C:E,3,0),0) -> 0 | I135: 0
A136: Auto | B136: 1670 | C136: 134070 | D136: 1 | E136: Normal | F136: 0 | G136: LUXE | H136: =IFERROR(VLOOKUP(G136,Discounts!C:E,3,0),0) -> 0 | I136: 0
A137: Auto | B137: 1690 | C137: 118850 | D137: 1 | E137: Normal | F137: 0 | G137: A010 | H137: =IFERROR(VLOOKUP(G137,Discounts!C:E,3,0),0) -> 0 | I137: 0
A138: Auto | B138: 1690 | C138: 134070 | D138: 1 | E138: Normal | F138: 0 | G138: LUXE | H138: =IFERROR(VLOOKUP(G138,Discounts!C:E,3,0),0) -> 0 | I138: 0
A139: Auto | B139: 1710 | C139: 118860 | D139: 1 | E139: Normal | F139: €2,507.44 | G139: A010 | H139: =IFERROR(VLOOKUP(G139,Discounts!C:E,3,0),0) -> 0 | I139: €2,507.44
A140: Auto | B140: 1710 | C140: 134070 | D140: 1 | E140: Normal | F140: 0 | G140: LUXE | H140: =IFERROR(VLOOKUP(G140,Discounts!C:E,3,0),0) -> 0 | I140: 0
A141: Auto | B141: 1730 | C141: 118870 | D141: 1 | E141: Normal | F141: €2,702.48 | G141: A010 | H141: =IFERROR(VLOOKUP(G141,Discounts!C:E,3,0),0) -> 0 | I141: €2,702.48
A142: Auto | B142: 1730 | C142: 134070 | D142: 1 | E142: Normal | F142: 0 | G142: LUXE | H142: =IFERROR(VLOOKUP(G142,Discounts!C:E,3,0),0) -> 0 | I142: 0
A143: Auto | B143: 1750 | C143: 118880 | D143: 1 | E143: Normal | F143: €1,301.65 | G143: A010 | H143: =IFERROR(VLOOKUP(G143,Discounts!C:E,3,0),0) -> 0 | I143: €1,301.65
A144: Auto | B144: 1750 | C144: 134070 | D144: 1 | E144: Normal | F144: 0 | G144: LUXE | H144: =IFERROR(VLOOKUP(G144,Discounts!C:E,3,0),0) -> 0 | I144: 0
A145: Auto | B145: 1770 | C145: 118890 | D145: 1 | E145: Normal | F145: €1,332.23 | G145: A010 | H145: =IFERROR(VLOOKUP(G145,Discounts!C:E,3,0),0) -> 0 | I145: €1,332.23
A146: Auto | B146: 1770 | C146: 134070 | D146: 1 | E146: Normal | F146: 0 | G146: LUXE | H146: =IFERROR(VLOOKUP(G146,Discounts!C:E,3,0),0) -> 0 | I146: 0
A147: Auto | B147: 1790 | C147: 118900 | D147: 1 | E147: Normal | F147: 0 | G147: A010 | H147: =IFERROR(VLOOKUP(G147,Discounts!C:E,3,0),0) -> 0 | I147: 0
A148: Auto | B148: 1790 | C148: 134070 | D148: 1 | E148: Normal | F148: 0 | G148: LUXE | H148: =IFERROR(VLOOKUP(G148,Discounts!C:E,3,0),0) -> 0 | I148: 0
A149: Auto | B149: 1810 | C149: 118910 | D149: 1 | E149: Normal | F149: €1,472.73 | G149: A010 | H149: =IFERROR(VLOOKUP(G149,Discounts!C:E,3,0),0) -> 0 | I149: €1,472.73
A150: Auto | B150: 1810 | C150: 134070 | D150: 1 | E150: Normal | F150: 0 | G150: LUXE | H150: =IFERROR(VLOOKUP(G150,Discounts!C:E,3,0),0) -> 0 | I150: 0
A151: Auto | B151: 1830 | C151: 118920 | D151: 1 | E151: Normal | F151: €1,428.93 | G151: A010 | H151: =IFERROR(VLOOKUP(G151,Discounts!C:E,3,0),0) -> 0 | I151: €1,428.93
A152: Auto | B152: 1830 | C152: 134070 | D152: 1 | E152: Normal | F152: 0 | G152: LUXE | H152: =IFERROR(VLOOKUP(G152,Discounts!C:E,3,0),0) -> 0 | I152: 0
A153: Auto | B153: 1850 | C153: 118930 | D153: 1 | E153: Normal | F153: 0 | G153: A010 | H153: =IFERROR(VLOOKUP(G153,Discounts!C:E,3,0),0) -> 0 | I153: 0
A154: Auto | B154: 1850 | C154: 134070 | D154: 1 | E154: Normal | F154: 0 | G154: LUXE | H154: =IFERROR(VLOOKUP(G154,Discounts!C:E,3,0),0) -> 0 | I154: 0
A155: Auto | B155: 1870 | C155: 118940 | D155: 1 | E155: Normal | F155: 0 | G155: A010 | H155: =IFERROR(VLOOKUP(G155,Discounts!C:E,3,0),0) -> 0 | I155: 0
A156: Auto | B156: 1870 | C156: 134070 | D156: 1 | E156: Normal | F156: 0 | G156: LUXE | H156: =IFERROR(VLOOKUP(G156,Discounts!C:E,3,0),0) -> 0 | I156: 0
A157: Auto | B157: 1890 | C157: 118950 | D157: 1 | E157: Normal | F157: 0 | G157: A010 | H157: =IFERROR(VLOOKUP(G157,Discounts!C:E,3,0),0) -> 0 | I157: 0
A158: Auto | B158: 1890 | C158: 134070 | D158: 1 | E158: Normal | F158: 0 | G158: LUXE | H158: =IFERROR(VLOOKUP(G158,Discounts!C:E,3,0),0) -> 0 | I158: 0
A159: Auto | B159: 1910 | C159: 118960 | D159: 1 | E159: Normal | F159: €2,060.33 | G159: A010 | H159: =IFERROR(VLOOKUP(G159,Discounts!C:E,3,0),0) -> 0 | I159: €2,060.33
A160: Auto | B160: 1910 | C160: 134070 | D160: 1 | E160: Normal | F160: 0 | G160: LUXE | H160: =IFERROR(VLOOKUP(G160,Discounts!C:E,3,0),0) -> 0 | I160: 0
A161: Auto | B161: 1930 | C161: 118970 | D161: 1 | E161: Normal | F161: €1,867.77 | G161: A010 | H161: =IFERROR(VLOOKUP(G161,Discounts!C:E,3,0),0) -> 0 | I161: €1,867.77
A162: Auto | B162: 1930 | C162: 134070 | D162: 1 | E162: Normal | F162: 0 | G162: LUXE | H162: =IFERROR(VLOOKUP(G162,Discounts!C:E,3,0),0) -> 0 | I162: 0
A163: Auto | B163: 1950 | C163: 118980 | D163: 1 | E163: Normal | F163: 0 | G163: A010 | H163: =IFERROR(VLOOKUP(G163,Discounts!C:E,3,0),0) -> 0 | I163: 0
A164: Auto | B164: 1950 | C164: 134070 | D164: 1 | E164: Normal | F164: 0 | G164: LUXE | H164: =IFERROR(VLOOKUP(G164,Discounts!C:E,3,0),0) -> 0 | I164: 0
A165: Auto | B165: 1970 | C165: 118990 | D165: 1 | E165: Normal | F165: 0 | G165: A010 | H165: =IFERROR(VLOOKUP(G165,Discounts!C:E,3,0),0) -> 0 | I165: 0
A166: Auto | B166: 1970 | C166: 134070 | D166: 1 | E166: Normal | F166: 0 | G166: LUXE | H166: =IFERROR(VLOOKUP(G166,Discounts!C:E,3,0),0) -> 0 | I166: 0
A167: Auto | B167: 1990 | C167: 119000 | D167: 1 | E167: Normal | F167: 0 | G167: A010 | H167: =IFERROR(VLOOKUP(G167,Discounts!C:E,3,0),0) -> 0 | I167: 0
A168: Auto | B168: 1990 | C168: 134070 | D168: 1 | E168: Normal | F168: 0 | G168: LUXE | H168: =IFERROR(VLOOKUP(G168,Discounts!C:E,3,0),0) -> 0 | I168: 0
A169: Auto | B169: 2010 | C169: 119010 | D169: 1 | E169: Normal | F169: €2,185.12 | G169: A010 | H169: =IFERROR(VLOOKUP(G169,Discounts!C:E,3,0),0) -> 0 | I169: €2,185.12
A170: Auto | B170: 2010 | C170: 134070 | D170: 1 | E170: Normal | F170: 0 | G170: LUXE | H170: =IFERROR(VLOOKUP(G170,Discounts!C:E,3,0),0) -> 0 | I170: 0
A171: Auto | B171: 2030 | C171: 119020 | D171: 1 | E171: Normal | F171: €1,990.91 | G171: A010 | H171: =IFERROR(VLOOKUP(G171,Discounts!C:E,3,0),0) -> 0 | I171: €1,990.91
A172: Auto | B172: 2030 | C172: 134070 | D172: 1 | E172: Normal | F172: 0 | G172: LUXE | H172: =IFERROR(VLOOKUP(G172,Discounts!C:E,3,0),0) -> 0 | I172: 0
A173: Auto | B173: 2050 | C173: 119030 | D173: 1 | E173: Normal | F173: 0 | G173: A010 | H173: =IFERROR(VLOOKUP(G173,Discounts!C:E,3,0),0) -> 0 | I173: 0
A174: Auto | B174: 2050 | C174: 134070 | D174: 1 | E174: Normal | F174: 0 | G174: LUXE | H174: =IFERROR(VLOOKUP(G174,Discounts!C:E,3,0),0) -> 0 | I174: 0
A175: Auto | B175: 2070 | C175: 119040 | D175: 1 | E175: Normal | F175: 0 | G175: A010 | H175: =IFERROR(VLOOKUP(G175,Discounts!C:E,3,0),0) -> 0 | I175: 0
A176: Auto | B176: 2070 | C176: 134070 | D176: 1 | E176: Normal | F176: 0 | G176: LUXE | H176: =IFERROR(VLOOKUP(G176,Discounts!C:E,3,0),0) -> 0 | I176: 0
A177: Auto | B177: 2090 | C177: 119050 | D177: 1 | E177: Normal | F177: €1,536.36 | G177: A010 | H177: =IFERROR(VLOOKUP(G177,Discounts!C:E,3,0),0) -> 0 | I177: €1,536.36
A178: Auto | B178: 2090 | C178: 134070 | D178: 1 | E178: Normal | F178: 0 | G178: LUXE | H178: =IFERROR(VLOOKUP(G178,Discounts!C:E,3,0),0) -> 0 | I178: 0
A179: Auto | B179: 2110 | C179: 119060 | D179: 1 | E179: Normal | F179: €1,314.05 | G179: A010 | H179: =IFERROR(VLOOKUP(G179,Discounts!C:E,3,0),0) -> 0 | I179: €1,314.05
A180: Auto | B180: 2110 | C180: 134070 | D180: 1 | E180: Normal | F180: 0 | G180: LUXE | H180: =IFERROR(VLOOKUP(G180,Discounts!C:E,3,0),0) -> 0 | I180: 0
A181: Auto | B181: 2130 | C181: 119070 | D181: 1 | E181: Normal | F181: €2,814.05 | G181: A010 | H181: =IFERROR(VLOOKUP(G181,Discounts!C:E,3,0),0) -> 0 | I181: €2,814.05
A182: Auto | B182: 2130 | C182: 134070 | D182: 1 | E182: Normal | F182: 0 | G182: LUXE | H182: =IFERROR(VLOOKUP(G182,Discounts!C:E,3,0),0) -> 0 | I182: 0
A183: Auto | B183: 2150 | C183: 119080 | D183: 1 | E183: Normal | F183: 0 | G183: A010 | H183: =IFERROR(VLOOKUP(G183,Discounts!C:E,3,0),0) -> 0 | I183: 0
A184: Auto | B184: 2150 | C184: 134070 | D184: 1 | E184: Normal | F184: 0 | G184: LUXE | H184: =IFERROR(VLOOKUP(G184,Discounts!C:E,3,0),0) -> 0 | I184: 0
A185: Auto | B185: 2170 | C185: 119090 | D185: 1 | E185: Normal | F185: €3,056.20 | G185: A010 | H185: =IFERROR(VLOOKUP(G185,Discounts!C:E,3,0),0) -> 0 | I185: €3,056.20
A186: Auto | B186: 2170 | C186: 134070 | D186: 1 | E186: Normal | F186: 0 | G186: LUXE | H186: =IFERROR(VLOOKUP(G186,Discounts!C:E,3,0),0) -> 0 | I186: 0
A187: Auto | B187: 2190 | C187: 119100 | D187: 1 | E187: Normal | F187: 0 | G187: A010 | H187: =IFERROR(VLOOKUP(G187,Discounts!C:E,3,0),0) -> 0 | I187: 0
A188: Auto | B188: 2190 | C188: 134070 | D188: 1 | E188: Normal | F188: 0 | G188: LUXE | H188: =IFERROR(VLOOKUP(G188,Discounts!C:E,3,0),0) -> 0 | I188: 0
A189: Auto | B189: 2210 | C189: 119110 | D189: 1 | E189: Normal | F189: 0 | G189: A010 | H189: =IFERROR(VLOOKUP(G189,Discounts!C:E,3,0),0) -> 0 | I189: 0
A190: Auto | B190: 2210 | C190: 134070 | D190: 1 | E190: Normal | F190: 0 | G190: LUXE | H190: =IFERROR(VLOOKUP(G190,Discounts!C:E,3,0),0) -> 0 | I190: 0
A191: Auto | B191: 2230 | C191: 119120 | D191: 1 | E191: Normal | F191: 0 | G191: A010 | H191: =IFERROR(VLOOKUP(G191,Discounts!C:E,3,0),0) -> 0 | I191: 0
A192: Auto | B192: 2230 | C192: 134070 | D192: 1 | E192: Normal | F192: 0 | G192: LUXE | H192: =IFERROR(VLOOKUP(G192,Discounts!C:E,3,0),0) -> 0 | I192: 0
A193: Auto | B193: 2250 | C193: 119130 | D193: 1 | E193: Normal | F193: 0 | G193: A010 | H193: =IFERROR(VLOOKUP(G193,Discounts!C:E,3,0),0) -> 0 | I193: 0
A194: Auto | B194: 2250 | C194: 134070 | D194: 1 | E194: Normal | F194: 0 | G194: LUXE | H194: =IFERROR(VLOOKUP(G194,Discounts!C:E,3,0),0) -> 0 | I194: 0
A195: Auto | B195: 2270 | C195: 119140 | D195: 1 | E195: Normal | F195: €1,276.03 | G195: A010 | H195: =IFERROR(VLOOKUP(G195,Discounts!C:E,3,0),0) -> 0 | I195: =IF(E195="Normal",F195*(1-H195),SUMIF(B:B,C195,I:I)*D195) -> €1,276.03
A196: Auto | B196: 2270 | C196: 134070 | D196: 1 | E196: Normal | F196: 0 | G196: LUXE | H196: =IFERROR(VLOOKUP(G196,Discounts!C:E,3,0),0) -> 0 | I196: 0
A197: Auto | B197: 2290 | C197: 119150 | D197: 1 | E197: Normal | F197: €1,276.03 | G197: A010 | H197: =IFERROR(VLOOKUP(G197,Discounts!C:E,3,0),0) -> 0 | I197: €1,276.03
A198: Auto | B198: 2290 | C198: 134070 | D198: 1 | E198: Normal | F198: 0 | G198: LUXE | H198: =IFERROR(VLOOKUP(G198,Discounts!C:E,3,0),0) -> 0 | I198: 0
A199: Auto | B199: 2310 | C199: 119160 | D199: 1 | E199: Normal | F199: 0 | G199: A010 | H199: =IFERROR(VLOOKUP(G199,Discounts!C:E,3,0),0) -> 0 | I199: 0
A200: Auto | B200: 2310 | C200: 134070 | D200: 1 | E200: Normal | F200: 0 | G200: LUXE | H200: =IFERROR(VLOOKUP(G200,Discounts!C:E,3,0),0) -> 0 | I200: 0
... 4300 more rows
